Workbook

Sheet 銷售與開支
B1: 每月銷售綜合結果
B3: 2021年
B4: 總銷售及開支
B6: 月 | C6: 一月 | D6: 二月 | E6: 三月 | F6: 4月 | G6: 5月 | H6: 6月 | I6: 7月 | J6: 8月 | K6: 9月 | L6: 10月 | M6: 11月 | N6: 12月
B7: 合共銷售 | C7: =C$16+C$26 -> 1024762 | D7: =D$16+D$26 -> 682388 | E7: 1140860 | F7: 1399549.8 | G7: 948311 | H7: 958794 | I7: 1079527 | J7: 1125943 | K7: 1122645 | L7: 1143112 | M7: 1244652 | N7: 0
B8: 合共開支 | C8: =C$17+C$27 -> 1037162.45 | D8: =D$17+D$27 -> 869794.15 | E8: 997865.07 | F8: 1194863.74 | G8: 1037158.57 | H8: 1051116.79 | I8: 1076956.51 | J8: 1141487.08 | K8: 1099298.96 | L8: 1126806.14 | M8: 1157529.09 | N8: 0
B11: 品味每月銷售及開支
B13: 2021年
B15: 月 | C15: 一月 | D15: 二月 | E15: 三月 | F15: 4月 | G15: 5月 | H15: 6月 | I15: 7月 | J15: 8月 | K15: 9月 | L15: 10月 | M15: 11月 | N15: 12月
B16: 合共銷售 | C16: =[1]Analysis!AY$51 -> 653451 | D16: =[1]Analysis!AZ$51 -> 447402 | E16: =[1]Analysis!BA$51 -> 726380 | F16: =[1]Analysis!BB$51 -> 843146.4 | G16: =[1]Analysis!BC$51 -> 635669 | H16: =[1]Analysis!BD$51 -> 620160 | I16: =[1]Analysis!BE$51 -> 728478 | J16: =[1]Analysis!BF$51 -> 767462 | K16: =[1]Analysis!BG$51 -> 749225 | L16: =[1]Analysis!BH$51 -> 793437 | M16: =[1]Analysis!BI$51 -> 855758 | N16: =[1]Analysis!BJ$51 -> 0
B17: 合共開支 | C17: =[1]Analysis!AY$52 -> 576307.97 | D17: =[1]Analysis!AZ$52 -> 463559.87 | E17: =[1]Analysis!BA$52 -> 538673.43 | F17: =[1]Analysis!BB$52 -> 650949.16 | G17: =[1]Analysis!BC$52 -> 496887.61 | H17: =[1]Analysis!BD$52 -> 543085.19 | I17: =[1]Analysis!BE$52 -> 613805.83 | J17: =[1]Analysis!BF$52 -> 654135.68 | K17: =[1]Analysis!BG$52 -> 586933.86 | L17: =[1]Analysis!BH$52 -> 617792.27 | M17: =[1]Analysis!BI$52 -> 624679.02 | N17: =[1]Analysis!BJ$52 -> 0
B21: 和味每月銷售及開支
B23: 2021年
B25: 月 | C25: 一月 | D25: 二月 | E25: 三月 | F25: 4月 | G25: 5月 | H25: 6月 | I25: 7月 | J25: 8月 | K25: 9月 | L25: 10月 | M25: 11月 | N25: 12月
B26: 合共銷售 | C26: =[1]Analysis!AY$53 -> 371311 | D26: =[1]Analysis!AZ$53 -> 234986 | E26: =[1]Analysis!BA$53 -> 414480 | F26: =[1]Analysis!BB$53 -> 556403.4 | G26: =[1]Analysis!BC$53 -> 312642 | H26: =[1]Analysis!BD$53 -> 338634 | I26: =[1]Analysis!BE$53 -> 351049 | J26: =[1]Analysis!BF$53 -> 358481 | K26: =[1]Analysis!BG$53 -> 373420 | L26: =[1]Analysis!BH$53 -> 349675 | M26: =[1]Analysis!BI$53 -> 388894 | N26: =[1]Analysis!BJ$53 -> 0
B27: 合共開支 | C27: =[1]Analysis!AY$54 -> 460854.48 | D27: =[1]Analysis!AZ$54 -> 406234.28 | E27: =[1]Analysis!BA$54 -> 459191.64 | F27: =[1]Analysis!BB$54 -> 543914.58 | G27: =[1]Analysis!BC$54 -> 540270.96 | H27: =[1]Analysis!BD$54 -> 508031.6 | I27: =[1]Analysis!BE$54 -> 463150.68 | J27: =[1]Analysis!BF$54 -> 487351.4 | K27: =[1]Analysis!BG$54 -> 512365.1 | L27: =[1]Analysis!BH$54 -> 509013.87 | M27: =[1]Analysis!BI$54 -> 532850.07 | N27: =[1]Analysis!BJ$54 -> 0

Sheet 分類銷售
B1: 每月類別綜合銷售價
B3: 2021年
B4: 月 | C4: 一月 | D4: 二月 | E4: 三月 | F4: 4月 | G4: 5月 | H4: 6月 | I4: 7月 | J4: 8月 | K4: 9月 | L4: 10月 | M4: 11月 | N4: 12月 | O4: TOTAL
B5: 中式總銷售 | C5: =C$14+C$23 -> 3980 | D5: =D$14+D$23 -> 5861.4 | E5: 5834 | F5: 4854 | G5: 7084 | H5: 7903 | I5: 7934 | J5: 12407 | K5: 8396.4 | L5: 4922.2 | M5: 532034.08 | N5: 598767.44 | O5: =SUM(C5:N5) -> 1199977.52
B6: 西式總銷售 | C6: =C$15+C$24 -> 621 | D6: =D$15+D$24 -> 245 | E6: 153 | F6: 527 | G6: 855 | H6: 1082 | I6: 906 | J6: 1066 | K6: 1588 | L6: 943 | M6: 61696.5 | N6: 63929.7 | O6: =SUM(C6:N6) -> 133612.2
B7: 越式總銷售 | C7: =C$16+C$25 -> 1484 | D7: =D$16+D$25 -> 1039 | E7: 1126 | F7: 1187 | G7: 2643 | H7: 3957.8 | I7: 3362.2 | J7: 5848 | K7: 3986.5 | L7: 3466.2 | M7: 214869 | N7: 265318.54 | O7: 508287.24
B8: 飲料總銷售 | C8: =C$17+C$26 -> 457 | D8: =D$17+D$26 -> 403 | E8: 854 | F8: 747 | G8: 1204 | H8: 1156 | I8: 1114 | J8: 1203 | K8: 968 | L8: 693 | M8: 38471.64 | N8: 59142 | O8: 106412.64
B9: 其他總銷售 | C9: =C$18+C$27 -> 4974 | D9: =D$18+D$27 -> 4594 | E9: 6321 | F9: 6438.8 | G9: 6695 | H9: 8510.8 | I9: 6389 | J9: 6124 | K9: 6519.8 | L9: 6778 | M9: 216495.26 | N9: 221207.32 | O9: 501046.98
B11: 品味類別綜合銷售
B12: 2021年
B13: 月 | C13: 一月 | D13: 二月 | E13: 三月 | F13: 4月 | G13: 5月 | H13: 6月 | I13: 7月 | J13: 8月 | K13: 9月 | L13: 10月 | M13: 11月 | N13: 12月 | O13: TOTAL
B14: 中式總銷售 | C14: =[2]GroupItem!$C37 -> 3980 | D14: =[3]GroupItem!$C37 -> 5861.4 | E14: =[4]GroupItem!$C37 -> 5834 | F14: =[5]GroupItem!$C37 -> 4854 | G14: =[6]GroupItem!$C37 -> 7084 | H14: =[7]GroupItem!$C37 -> 7903 | I14: =[8]GroupItem!$C37 -> 7934 | J14: =[9]GroupItem!$C37 -> 12407 | K14: =[10]GroupItem!$C37 -> 8396.4 | L14: =[11]GroupItem!$C37 -> 4922.2 | M14: =[12]GroupItem!$C37 -> 532034.08 | N14: =[13]GroupItem!$C37 -> 598767.44 | O14: =SUM(C14:N14) -> 1199977.52
B15: 西式總銷售 | C15: =[2]GroupItem!$C38 -> 621 | D15: =[3]GroupItem!$C38 -> 245 | E15: =[4]GroupItem!$C38 -> 153 | F15: =[5]GroupItem!$C38 -> 527 | G15: =[6]GroupItem!$C38 -> 855 | H15: =[7]GroupItem!$C38 -> 1082 | I15: =[8]GroupItem!$C38 -> 906 | J15: =[9]GroupItem!$C38 -> 1066 | K15: =[10]GroupItem!$C38 -> 1588 | L15: =[11]GroupItem!$C38 -> 943 | M15: =[12]GroupItem!$C38 -> 61696.5 | N15: =[13]GroupItem!$C38 -> 63929.7 | O15: =SUM(C15:N15) -> 133612.2
B16: 越式總銷售 | C16: =[2]GroupItem!$C39 -> 1484 | D16: =[3]GroupItem!$C39 -> 1039 | E16: =[4]GroupItem!$C39 -> 1126 | F16: =[5]GroupItem!$C39 -> 1187 | G16: =[6]GroupItem!$C39 -> 2643 | H16: =[7]GroupItem!$C39 -> 3957.8 | I16: =[8]GroupItem!$C39 -> 3362.2 | J16: =[9]GroupItem!$C39 -> 5848 | K16: =[10]GroupItem!$C39 -> 3986.5 | L16: =[11]GroupItem!$C39 -> 3466.2 | M16: =[12]GroupItem!$C39 -> 214869 | N16: =[13]GroupItem!$C39 -> 265318.54 | O16: 508287.24
B17: 飲料總銷售 | C17: =[2]GroupItem!$C40 -> 457 | D17: =[3]GroupItem!$C40 -> 403 | E17: =[4]GroupItem!$C40 -> 854 | F17: =[5]GroupItem!$C40 -> 747 | G17: =[6]GroupItem!$C40 -> 1204 | H17: =[7]GroupItem!$C40 -> 1156 | I17: =[8]GroupItem!$C40 -> 1114 | J17: =[9]GroupItem!$C40 -> 1203 | K17: =[10]GroupItem!$C40 -> 968 | L17: =[11]GroupItem!$C40 -> 693 | M17: =[12]GroupItem!$C40 -> 38471.64 | N17: =[13]GroupItem!$C40 -> 59142 | O17: 106412.64
B18: 其他總銷售 | C18: =[2]GroupItem!$C41 -> 4974 | D18: =[3]GroupItem!$C41 -> 4594 | E18: =[4]GroupItem!$C41 -> 6321 | F18: =[5]GroupItem!$C41 -> 6438.8 | G18: =[6]GroupItem!$C41 -> 6695 | H18: =[7]GroupItem!$C41 -> 8510.8 | I18: =[8]GroupItem!$C41 -> 6389 | J18: =[9]GroupItem!$C41 -> 6124 | K18: =[10]GroupItem!$C41 -> 6519.8 | L18: =[11]GroupItem!$C41 -> 6778 | M18: =[12]GroupItem!$C41 -> 216495.26 | N18: =[13]GroupItem!$C41 -> 221207.32 | O18: 501046.98
B20: 和味類別綜合銷售
B21: 2021年
B22: 月 | C22: 一月 | D22: 二月 | E22: 三月 | F22: 4月 | G22: 5月 | H22: 6月 | I22: 7月 | J22: 8月 | K22: 9月 | L22: 10月 | M22: 11月 | N22: 12月 | O22: TOTAL
B23: 中式總銷售 | C23: =[2]GroupItem!$D37 -> 0 | D23: =[3]GroupItem!$D37 -> 0 | E23: =[4]GroupItem!$D37 -> 0 | F23: =[5]GroupItem!$D37 -> 0 | G23: =[6]GroupItem!$D37 -> 0 | H23: =[7]GroupItem!$D37 -> 0 | I23: =[8]GroupItem!$D37 -> 0 | J23: =[9]GroupItem!$D37 -> 0 | K23: =[10]GroupItem!$D37 -> 0 | L23: =[11]GroupItem!$D37 -> 0 | M23: =[12]GroupItem!$D37 -> 0 | N23: =[13]GroupItem!$D37 -> 0 | O23: =SUM(C23:N23) -> 0
B24: 西式總銷售 | C24: =[2]GroupItem!$D38 -> 0 | D24: =[3]GroupItem!$D38 -> 0 | E24: =[4]GroupItem!$D38 -> 0 | F24: =[5]GroupItem!$D38 -> 0 | G24: =[6]GroupItem!$D38 -> 0 | H24: =[7]GroupItem!$D38 -> 0 | I24: =[8]GroupItem!$D38 -> 0 | J24: =[9]GroupItem!$D38 -> 0 | K24: =[10]GroupItem!$D38 -> 0 | L24: =[11]GroupItem!$D38 -> 0 | M24: =[12]GroupItem!$D38 -> 0 | N24: =[13]GroupItem!$D38 -> 0 | O24: =SUM(C24:N24) -> 0
B25: 越式總銷售 | C25: =[2]GroupItem!$D39 -> 0 | D25: =[3]GroupItem!$D39 -> 0 | E25: =[4]GroupItem!$D39 -> 0 | F25: =[5]GroupItem!$D39 -> 0 | G25: =[6]GroupItem!$D39 -> 0 | H25: =[7]GroupItem!$D39 -> 0 | I25: =[8]GroupItem!$D39 -> 0 | J25: =[9]GroupItem!$D39 -> 0 | K25: =[10]GroupItem!$D39 -> 0 | L25: =[11]GroupItem!$D39 -> 0 | M25: =[12]GroupItem!$D39 -> 0 | N25: =[13]GroupItem!$D39 -> 0 | O25: 0
B26: 飲料總銷售 | C26: =[2]GroupItem!$D40 -> 0 | D26: =[3]GroupItem!$D40 -> 0 | E26: =[4]GroupItem!$D40 -> 0 | F26: =[5]GroupItem!$D40 -> 0 | G26: =[6]GroupItem!$D40 -> 0 | H26: =[7]GroupItem!$D40 -> 0 | I26: =[8]GroupItem!$D40 -> 0 | J26: =[9]GroupItem!$D40 -> 0 | K26: =[10]GroupItem!$D40 -> 0 | L26: =[11]GroupItem!$D40 -> 0 | M26: =[12]GroupItem!$D40 -> 0 | N26: =[13]GroupItem!$D40 -> 0 | O26: 0
B27: 其他總銷售 | C27: =[2]GroupItem!$D41 -> 0 | D27: =[3]GroupItem!$D41 -> 0 | E27: =[4]GroupItem!$D41 -> 0 | F27: =[5]GroupItem!$D41 -> 0 | G27: =[6]GroupItem!$D41 -> 0 | H27: =[7]GroupItem!$D41 -> 0 | I27: =[8]GroupItem!$D41 -> 0 | J27: =[9]GroupItem!$D41 -> 0 | K27: =[10]GroupItem!$D41 -> 0 | L27: =[11]GroupItem!$D41 -> 0 | M27: =[12]GroupItem!$D41 -> 0 | N27: =[13]GroupItem!$D41 -> 0 | O27: 0
B29: 整體佔比
B32: 銷售走勢

Sheet 次分類銷售
B1: 每月次類別綜合銷售 | R1: 每月次類別品味銷售 | AH1: 每月次類別和味銷售
B3: 月 | C3: 一月 | D3: 二月 | E3: 三月 | F3: 4月 | G3: 5月 | H3: 6月 | I3: 7月 | J3: 8月 | K3: 9月 | L3: 10月 | M3: 11月 | N3: 12月 | O3: TOTAL | R3: 月 | S3: 一月 | T3: 二月 | U3: 三月 | V3: 4月 | W3: 5月 | X3: 6月 | Y3: 7月 | Z3: 8月 | AA3: 9月 | AB3: 10月 | AC3: 11月 | AD3: 12月 | AE3: TOTAL | AH3: 月 | AI3: 一月 | AJ3: 二月 | AK3: 三月 | AL3: 4月 | AM3: 5月 | AN3: 6月 | AO3: 7月 | AP3: 8月 | AQ3: 9月 | AR3: 10月 | AS3: 11月 | AT3: 12月 | AU3: TOTAL
B4: 中式頭盤 | C4: =S$4+AI$4 -> 0 | D4: =T$4+AJ$4 -> 146 | E4: =U$4+AK$4 -> 38 | F4: 38 | G4: 176 | H4: 180 | I4: 360 | J4: 556 | K4: 324 | L4: 76 | M4: 11720.88 | N4: 13328 | O4: =SUM(C4:N4) -> 26942.88 | R4: 中式頭盤 | S4: =[2]GroupItem!$L15 -> 0 | T4: =[3]GroupItem!$L15 -> 146 | U4: =[4]GroupItem!$L15 -> 38 | V4: =[5]GroupItem!$L15 -> 38 | W4: =[6]GroupItem!$L15 -> 176 | X4: =[7]GroupItem!$L15 -> 180 | Y4: =[8]GroupItem!$L15 -> 360 | Z4: =[9]GroupItem!$L15 -> 556 | AA4: =[10]GroupItem!$L15 -> 324 | AB4: =[11]GroupItem!$L15 -> 76 | AC4: =[12]GroupItem!$L15 -> 11720.88 | AD4: =[13]GroupItem!$L15 -> 13328 | AE4: =SUM(S4:AD4) -> 26942.88 | AH4: 中式頭盤 | AI4: =[2]GroupItem!$M15 -> 0 | AJ4: =[3]GroupItem!$M15 -> 0 | AK4: =[4]GroupItem!$M15 -> 0 | AL4: =[5]GroupItem!$M15 -> 0 | AM4: =[6]GroupItem!$M15 -> 0 | AN4: =[7]GroupItem!$M15 -> 0 | AO4: =[8]GroupItem!$M15 -> 0 | AP4: =[9]GroupItem!$M15 -> 0 | AQ4: =[10]GroupItem!$M15 -> 0 | AR4: =[11]GroupItem!$M15 -> 0 | AS4: =[12]GroupItem!$M15 -> 0 | AT4: =[13]GroupItem!$M15 -> 0 | AU4: =SUM(AI4:AT4) -> 0
B5: 燒味 | C5: =S$5+AI$5 -> 2874 | D5: =T$5+AJ$5 -> 4408 | E5: 4257 | F5: 3214 | G5: 5090 | H5: 5533 | I5: 4581 | J5: 5394 | K5: 4690 | L5: 3762.2 | M5: 240235.96 | N5: 264635.44 | O5: =SUM(C5:N5) -> 548674.6 | R5: 燒味 | S5: =[2]GroupItem!$L16 -> 2874 | T5: =[3]GroupItem!$L16 -> 4408 | U5: =[4]GroupItem!$L16 -> 4257 | V5: =[5]GroupItem!$L16 -> 3214 | W5: =[6]GroupItem!$L16 -> 5090 | X5: =[7]GroupItem!$L16 -> 5533 | Y5: =[8]GroupItem!$L16 -> 4581 | Z5: =[9]GroupItem!$L16 -> 5394 | AA5: =[10]GroupItem!$L16 -> 4690 | AB5: =[11]GroupItem!$L16 -> 3762.2 | AC5: =[12]GroupItem!$L16 -> 240235.96 | AD5: =[13]GroupItem!$L16 -> 264635.44 | AE5: =SUM(S5:AD5) -> 548674.6 | AH5: 燒味 | AI5: =[2]GroupItem!$M16 -> 0 | AJ5: =[3]GroupItem!$M16 -> 0 | AK5: =[4]GroupItem!$M16 -> 0 | AL5: =[5]GroupItem!$M16 -> 0 | AM5: =[6]GroupItem!$M16 -> 0 | AN5: =[7]GroupItem!$M16 -> 0 | AO5: =[8]GroupItem!$M16 -> 0 | AP5: =[9]GroupItem!$M16 -> 0 | AQ5: =[10]GroupItem!$M16 -> 0 | AR5: =[11]GroupItem!$M16 -> 0 | AS5: =[12]GroupItem!$M16 -> 0 | AT5: =[13]GroupItem!$M16 -> 0 | AU5: =SUM(AI5:AT5) -> 0
B6: 中式小菜 | C6: =S$6+AI$6 -> 0 | D6: =T$6+AJ$6 -> 254.4 | E6: 78 | F6: 208 | G6: 234 | H6: 496 | I6: 500 | J6: 1850 | K6: 348 | L6: 0 | M6: 81242 | N6: 108943.2 | O6: 194153.6 | R6: 中式小菜 | S6: =[2]GroupItem!$L17 -> 0 | T6: =[3]GroupItem!$L17 -> 254.4 | U6: =[4]GroupItem!$L17 -> 78 | V6: =[5]GroupItem!$L17 -> 208 | W6: =[6]GroupItem!$L17 -> 234 | X6: =[7]GroupItem!$L17 -> 496 | Y6: =[8]GroupItem!$L17 -> 500 | Z6: =[9]GroupItem!$L17 -> 1850 | AA6: =[10]GroupItem!$L17 -> 348 | AB6: =[11]GroupItem!$L17 -> 0 | AC6: =[12]GroupItem!$L17 -> 81242 | AD6: =[13]GroupItem!$L17 -> 108943.2 | AE6: 194153.6 | AH6: 中式小菜 | AI6: =[2]GroupItem!$M17 -> 0 | AJ6: =[3]GroupItem!$M17 -> 0 | AK6: =[4]GroupItem!$M17 -> 0 | AL6: =[5]GroupItem!$M17 -> 0 | AM6: =[6]GroupItem!$M17 -> 0 | AN6: =[7]GroupItem!$M17 -> 0 | AO6: =[8]GroupItem!$M17 -> 0 | AP6: =[9]GroupItem!$M17 -> 0 | AQ6: =[10]GroupItem!$M17 -> 0 | AR6: =[11]GroupItem!$M17 -> 0 | AS6: =[12]GroupItem!$M17 -> 0 | AT6: =[13]GroupItem!$M17 -> 0 | AU6: 0
B7: 中式海鮮 | C7: =S$7+AI$7 -> 0 | D7: =T$7+AJ$7 -> 60 | E7: 0 | F7: 0 | G7: 404 | H7: 118 | I7: 0 | J7: 748 | K7: 224 | L7: 0 | M7: 27918 | N7: 40517.2 | O7: 69989.2 | R7: 中式海鮮 | S7: =[2]GroupItem!$L18 -> 0 | T7: =[3]GroupItem!$L18 -> 60 | U7: =[4]GroupItem!$L18 -> 0 | V7: =[5]GroupItem!$L18 -> 0 | W7: =[6]GroupItem!$L18 -> 404 | X7: =[7]GroupItem!$L18 -> 118 | Y7: =[8]GroupItem!$L18 -> 0 | Z7: =[9]GroupItem!$L18 -> 748 | AA7: =[10]GroupItem!$L18 -> 224 | AB7: =[11]GroupItem!$L18 -> 0 | AC7: =[12]GroupItem!$L18 -> 27918 | AD7: =[13]GroupItem!$L18 -> 40517.2 | AE7: 69989.2 | AH7: 中式海鮮 | AI7: =[2]GroupItem!$M18 -> 0 | AJ7: =[3]GroupItem!$M18 -> 0 | AK7: =[4]GroupItem!$M18 -> 0 | AL7: =[5]GroupItem!$M18 -> 0 | AM7: =[6]GroupItem!$M18 -> 0 | AN7: =[7]GroupItem!$M18 -> 0 | AO7: =[8]GroupItem!$M18 -> 0 | AP7: =[9]GroupItem!$M18 -> 0 | AQ7: =[10]GroupItem!$M18 -> 0 | AR7: =[11]GroupItem!$M18 -> 0 | AS7: =[12]GroupItem!$M18 -> 0 | AT7: =[13]GroupItem!$M18 -> 0 | AU7: 0
B8: 中式素菜 | C8: =S$8+AI$8 -> 216 | D8: =T$8+AJ$8 -> 76 | E8: 134 | F8: 162 | G8: 160 | H8: 84 | I8: 134 | J8: 260 | K8: 56 | L8: 168 | M8: 6350 | N8: 8674 | O8: 16474 | R8: 中式素菜 | S8: =[2]GroupItem!$L19 -> 216 | T8: =[3]GroupItem!$L19 -> 76 | U8: =[4]GroupItem!$L19 -> 134 | V8: =[5]GroupItem!$L19 -> 162 | W8: =[6]GroupItem!$L19 -> 160 | X8: =[7]GroupItem!$L19 -> 84 | Y8: =[8]GroupItem!$L19 -> 134 | Z8: =[9]GroupItem!$L19 -> 260 | AA8: =[10]GroupItem!$L19 -> 56 | AB8: =[11]GroupItem!$L19 -> 168 | AC8: =[12]GroupItem!$L19 -> 6350 | AD8: =[13]GroupItem!$L19 -> 8674 | AE8: 16474 | AH8: 中式素菜 | AI8: =[2]GroupItem!$M19 -> 0 | AJ8: =[3]GroupItem!$M19 -> 0 | AK8: =[4]GroupItem!$M19 -> 0 | AL8: =[5]GroupItem!$M19 -> 0 | AM8: =[6]GroupItem!$M19 -> 0 | AN8: =[7]GroupItem!$M19 -> 0 | AO8: =[8]GroupItem!$M19 -> 0 | AP8: =[9]GroupItem!$M19 -> 0 | AQ8: =[10]GroupItem!$M19 -> 0 | AR8: =[11]GroupItem!$M19 -> 0 | AS8: =[12]GroupItem!$M19 -> 0 | AT8: =[13]GroupItem!$M19 -> 0 | AU8: 0
B9: 中式粉麵飯 | C9: =S$9+AI$9 -> 846 | D9: =T$9+AJ$9 -> 917 | E9: 1327 | F9: 1232 | G9: 1010 | H9: 1492 | I9: 2339 | J9: 3541 | K9: 2754.4 | L9: 916 | M9: 164009.24 | N9: 160667.6 | O9: 341051.24 | R9: 中式粉麵飯 | S9: =[2]GroupItem!$L20 -> 846 | T9: =[3]GroupItem!$L20 -> 917 | U9: =[4]GroupItem!$L20 -> 1327 | V9: =[5]GroupItem!$L20 -> 1232 | W9: =[6]GroupItem!$L20 -> 1010 | X9: =[7]GroupItem!$L20 -> 1492 | Y9: =[8]GroupItem!$L20 -> 2339 | Z9: =[9]GroupItem!$L20 -> 3541 | AA9: =[10]GroupItem!$L20 -> 2754.4 | AB9: =[11]GroupItem!$L20 -> 916 | AC9: =[12]GroupItem!$L20 -> 164009.24 | AD9: =[13]GroupItem!$L20 -> 160667.6 | AE9: 341051.24 | AH9: 中式粉麵飯 | AI9: =[2]GroupItem!$M20 -> 0 | AJ9: =[3]GroupItem!$M20 -> 0 | AK9: =[4]GroupItem!$M20 -> 0 | AL9: =[5]GroupItem!$M20 -> 0 | AM9: =[6]GroupItem!$M20 -> 0 | AN9: =[7]GroupItem!$M20 -> 0 | AO9: =[8]GroupItem!$M20 -> 0 | AP9: =[9]GroupItem!$M20 -> 0 | AQ9: =[10]GroupItem!$M20 -> 0 | AR9: =[11]GroupItem!$M20 -> 0 | AS9: =[12]GroupItem!$M20 -> 0 | AT9: =[13]GroupItem!$M20 -> 0 | AU9: 0
B10: 中式湯 | C10: =S$10+AI$10 -> 44 | D10: =T$10+AJ$10 -> 0 | E10: 0 | F10: 0 | G10: 10 | H10: 0 | I10: 20 | J10: 58 | K10: 0 | L10: 0 | M10: 558 | N10: 2002 | O10: 2692 | R10: 中式湯 | S10: =[2]GroupItem!$L21 -> 44 | T10: =[3]GroupItem!$L21 -> 0 | U10: =[4]GroupItem!$L21 -> 0 | V10: =[5]GroupItem!$L21 -> 0 | W10: =[6]GroupItem!$L21 -> 10 | X10: =[7]GroupItem!$L21 -> 0 | Y10: =[8]GroupItem!$L21 -> 20 | Z10: =[9]GroupItem!$L21 -> 58 | AA10: =[10]GroupItem!$L21 -> 0 | AB10: =[11]GroupItem!$L21 -> 0 | AC10: =[12]GroupItem!$L21 -> 558 | AD10: =[13]GroupItem!$L21 -> 2002 | AE10: 2692 | AH10: 中式湯 | AI10: =[2]GroupItem!$M21 -> 0 | AJ10: =[3]GroupItem!$M21 -> 0 | AK10: =[4]GroupItem!$M21 -> 0 | AL10: =[5]GroupItem!$M21 -> 0 | AM10: =[6]GroupItem!$M21 -> 0 | AN10: =[7]GroupItem!$M21 -> 0 | AO10: =[8]GroupItem!$M21 -> 0 | AP10: =[9]GroupItem!$M21 -> 0 | AQ10: =[10]GroupItem!$M21 -> 0 | AR10: =[11]GroupItem!$M21 -> 0 | AS10: =[12]GroupItem!$M21 -> 0 | AT10: =[13]GroupItem!$M21 -> 0 | AU10: 0
B11: 西式小食 | C11: =S$11+AI$11 -> 78 | D11: =T$11+AJ$11 -> 41 | E11: 15 | F11: 40 | G11: 232 | H11: 272 | I11: 100 | J11: 158 | K11: 116 | L11: 76 | M11: 4483 | N11: 5305 | O11: 10916 | R11: 西式小食 | S11: =[2]GroupItem!$L22 -> 78 | T11: =[3]GroupItem!$L22 -> 41 | U11: =[4]GroupItem!$L22 -> 15 | V11: =[5]GroupItem!$L22 -> 40 | W11: =[6]GroupItem!$L22 -> 232 | X11: =[7]GroupItem!$L22 -> 272 | Y11: =[8]GroupItem!$L22 -> 100 | Z11: =[9]GroupItem!$L22 -> 158 | AA11: =[10]GroupItem!$L22 -> 116 | AB11: =[11]GroupItem!$L22 -> 76 | AC11: =[12]GroupItem!$L22 -> 4483 | AD11: =[13]GroupItem!$L22 -> 5305 | AE11: 10916 | AH11: 西式小食 | AI11: =[2]GroupItem!$M22 -> 0 | AJ11: =[3]GroupItem!$M22 -> 0 | AK11: =[4]GroupItem!$M22 -> 0 | AL11: =[5]GroupItem!$M22 -> 0 | AM11: =[6]GroupItem!$M22 -> 0 | AN11: =[7]GroupItem!$M22 -> 0 | AO11: =[8]GroupItem!$M22 -> 0 | AP11: =[9]GroupItem!$M22 -> 0 | AQ11: =[10]GroupItem!$M22 -> 0 | AR11: =[11]GroupItem!$M22 -> 0 | AS11: =[12]GroupItem!$M22 -> 0 | AT11: =[13]GroupItem!$M22 -> 0 | AU11: 0
B12: 西式麵包 | C12: =S$12+AI$12 -> 188 | D12: =T$12+AJ$12 -> 84 | E12: 138 | F12: 247 | G12: 263 | H12: 421 | I12: 318 | J12: 371 | K12: 542 | L12: 306 | M12: 21085 | N12: 26692 | O12: 50655 | R12: 西式麵包 | S12: =[2]GroupItem!$L23 -> 188 | T12: =[3]GroupItem!$L23 -> 84 | U12: =[4]GroupItem!$L23 -> 138 | V12: =[5]GroupItem!$L23 -> 247 | W12: =[6]GroupItem!$L23 -> 263 | X12: =[7]GroupItem!$L23 -> 421 | Y12: =[8]GroupItem!$L23 -> 318 | Z12: =[9]GroupItem!$L23 -> 371 | AA12: =[10]GroupItem!$L23 -> 542 | AB12: =[11]GroupItem!$L23 -> 306 | AC12: =[12]GroupItem!$L23 -> 21085 | AD12: =[13]GroupItem!$L23 -> 26692 | AE12: 50655 | AH12: 西式麵包 | AI12: =[2]GroupItem!$M23 -> 0 | AJ12: =[3]GroupItem!$M23 -> 0 | AK12: =[4]GroupItem!$M23 -> 0 | AL12: =[5]GroupItem!$M23 -> 0 | AM12: =[6]GroupItem!$M23 -> 0 | AN12: =[7]GroupItem!$M23 -> 0 | AO12: =[8]GroupItem!$M23 -> 0 | AP12: =[9]GroupItem!$M23 -> 0 | AQ12: =[10]GroupItem!$M23 -> 0 | AR12: =[11]GroupItem!$M23 -> 0 | AS12: =[12]GroupItem!$M23 -> 0 | AT12: =[13]GroupItem!$M23 -> 0 | AU12: 0
B13: 西式粉麵飯 | C13: =S$13+AI$13 -> 355 | D13: =T$13+AJ$13 -> 120 | E13: 0 | F13: 240 | G13: 360 | H13: 389 | I13: 488 | J13: 537 | K13: 930 | L13: 561 | M13: 36128.5 | N13: 31932.7 | O13: 72041.2 | R13: 西式粉麵飯 | S13: =[2]GroupItem!$L24 -> 355 | T13: =[3]GroupItem!$L24 -> 120 | U13: =[4]GroupItem!$L24 -> 0 | V13: =[5]GroupItem!$L24 -> 240 | W13: =[6]GroupItem!$L24 -> 360 | X13: =[7]GroupItem!$L24 -> 389 | Y13: =[8]GroupItem!$L24 -> 488 | Z13: =[9]GroupItem!$L24 -> 537 | AA13: =[10]GroupItem!$L24 -> 930 | AB13: =[11]GroupItem!$L24 -> 561 | AC13: =[12]GroupItem!$L24 -> 36128.5 | AD13: =[13]GroupItem!$L24 -> 31932.7 | AE13: 72041.2 | AH13: 西式粉麵飯 | AI13: =[2]GroupItem!$M24 -> 0 | AJ13: =[3]GroupItem!$M24 -> 0 | AK13: =[4]GroupItem!$M24 -> 0 | AL13: =[5]GroupItem!$M24 -> 0 | AM13: =[6]GroupItem!$M24 -> 0 | AN13: =[7]GroupItem!$M24 -> 0 | AO13: =[8]GroupItem!$M24 -> 0 | AP13: =[9]GroupItem!$M24 -> 0 | AQ13: =[10]GroupItem!$M24 -> 0 | AR13: =[11]GroupItem!$M24 -> 0 | AS13: =[12]GroupItem!$M24 -> 0 | AT13: =[13]GroupItem!$M24 -> 0 | AU13: 0
B14: 越式小菜 | C14: =S$14+AI$14 -> 68 | D14: =T$14+AJ$14 -> 74 | E14: 84 | F14: 28 | G14: 140 | H14: 429.4 | I14: 191 | J14: 142 | K14: 152 | L14: 38 | M14: 7554 | N14: 9406 | O14: 18306.4 | R14: 越式小菜 | S14: =[2]GroupItem!$L25 -> 68 | T14: =[3]GroupItem!$L25 -> 74 | U14: =[4]GroupItem!$L25 -> 84 | V14: =[5]GroupItem!$L25 -> 28 | W14: =[6]GroupItem!$L25 -> 140 | X14: =[7]GroupItem!$L25 -> 429.4 | Y14: =[8]GroupItem!$L25 -> 191 | Z14: =[9]GroupItem!$L25 -> 142 | AA14: =[10]GroupItem!$L25 -> 152 | AB14: =[11]GroupItem!$L25 -> 38 | AC14: =[12]GroupItem!$L25 -> 7554 | AD14: =[13]GroupItem!$L25 -> 9406 | AE14: 18306.4 | AH14: 越式小菜 | AI14: =[2]GroupItem!$M25 -> 0 | AJ14: =[3]GroupItem!$M25 -> 0 | AK14: =[4]GroupItem!$M25 -> 0 | AL14: =[5]GroupItem!$M25 -> 0 | AM14: =[6]GroupItem!$M25 -> 0 | AN14: =[7]GroupItem!$M25 -> 0 | AO14: =[8]GroupItem!$M25 -> 0 | AP14: =[9]GroupItem!$M25 -> 0 | AQ14: =[10]GroupItem!$M25 -> 0 | AR14: =[11]GroupItem!$M25 -> 0 | AS14: =[12]GroupItem!$M25 -> 0 | AT14: =[13]GroupItem!$M25 -> 0 | AU14: 0
B15: 越式燒物 | C15: =S$15+AI$15 -> 0 | D15: =T$15+AJ$15 -> 0 | E15: 0 | F15: 0 | G15: 0 | H15: 0 | I15: 38 | J15: 0 | K15: 0 | L15: 0 | M15: 1064 | N15: 11984 | O15: 13086 | R15: 越式燒物 | S15: =[2]GroupItem!$L26 -> 0 | T15: =[3]GroupItem!$L26 -> 0 | U15: =[4]GroupItem!$L26 -> 0 | V15: =[5]GroupItem!$L26 -> 0 | W15: =[6]GroupItem!$L26 -> 0 | X15: =[7]GroupItem!$L26 -> 0 | Y15: =[8]GroupItem!$L26 -> 38 | Z15: =[9]GroupItem!$L26 -> 0 | AA15: =[10]GroupItem!$L26 -> 0 | AB15: =[11]GroupItem!$L26 -> 0 | AC15: =[12]GroupItem!$L26 -> 1064 | AD15: =[13]GroupItem!$L26 -> 11984 | AE15: 13086 | AH15: 越式燒物 | AI15: =[2]GroupItem!$M26 -> 0 | AJ15: =[3]GroupItem!$M26 -> 0 | AK15: =[4]GroupItem!$M26 -> 0 | AL15: =[5]GroupItem!$M26 -> 0 | AM15: =[6]GroupItem!$M26 -> 0 | AN15: =[7]GroupItem!$M26 -> 0 | AO15: =[8]GroupItem!$M26 -> 0 | AP15: =[9]GroupItem!$M26 -> 0 | AQ15: =[10]GroupItem!$M26 -> 0 | AR15: =[11]GroupItem!$M26 -> 0 | AS15: =[12]GroupItem!$M26 -> 0 | AT15: =[13]GroupItem!$M26 -> 0 | AU15: 0
B16: 越式海鮮 | C16: =S$16+AI$16 -> 0 | D16: =T$16+AJ$16 -> 0 | E16: 0 | F16: 0 | G16: 0 | H16: 0 | J16: 0 | K16: 0 | L16: 0 | M16: 690 | N16: 3224 | O16: 3914 | R16: 越式海鮮 | S16: =[2]GroupItem!$L27 -> 0 | T16: =[3]GroupItem!$L27 -> 0 | U16: =[4]GroupItem!$L27 -> 0 | V16: =[5]GroupItem!$L27 -> 0 | W16: =[6]GroupItem!$L27 -> 0 | X16: =[7]GroupItem!$L27 -> 0 | Y16: =[8]GroupItem!$L27 -> 0 | Z16: =[9]GroupItem!$L27 -> 0 | AA16: =[10]GroupItem!$L27 -> 0 | AB16: =[11]GroupItem!$L27 -> 0 | AC16: =[12]GroupItem!$L27 -> 690 | AD16: =[13]GroupItem!$L27 -> 3224 | AE16: 3914 | AH16: 越式海鮮 | AI16: =[2]GroupItem!$M27 -> 0 | AJ16: =[3]GroupItem!$M27 -> 0 | AK16: =[4]GroupItem!$M27 -> 0 | AL16: =[5]GroupItem!$M27 -> 0 | AM16: =[6]GroupItem!$M27 -> 0 | AN16: =[7]GroupItem!$M27 -> 0 | AO16: =[8]GroupItem!$M27 -> 0 | AP16: =[9]GroupItem!$M27 -> 0 | AQ16: =[10]GroupItem!$M27 -> 0 | AR16: =[11]GroupItem!$M27 -> 0 | AS16: =[12]GroupItem!$M27 -> 0 | AT16: =[13]GroupItem!$M27 -> 0 | AU16: 0
B17: 咖喱 | C17: =S$17+AI$17 -> 0 | D17: =T$17+AJ$17 -> 0 | E17: 0 | F17: 0 | G17: 0 | H17: 0 | I17: 0 | J17: 108 | K17: 0 | L17: 0 | M17: 2076 | N17: 4764 | O17: 6948 | R17: 咖喱 | S17: =[2]GroupItem!$L28 -> 0 | T17: =[3]GroupItem!$L28 -> 0 | U17: =[4]GroupItem!$L28 -> 0 | V17: =[5]GroupItem!$L28 -> 0 | W17: =[6]GroupItem!$L28 -> 0 | X17: =[7]GroupItem!$L28 -> 0 | Y17: =[8]GroupItem!$L28 -> 0 | Z17: =[9]GroupItem!$L28 -> 108 | AA17: =[10]GroupItem!$L28 -> 0 | AB17: =[11]GroupItem!$L28 -> 0 | AC17: =[12]GroupItem!$L28 -> 2076 | AD17: =[13]GroupItem!$L28 -> 4764 | AE17: 6948 | AH17: 咖喱 | AI17: =[2]GroupItem!$M28 -> 0 | AJ17: =[3]GroupItem!$M28 -> 0 | AK17: =[4]GroupItem!$M28 -> 0 | AL17: =[5]GroupItem!$M28 -> 0 | AM17: =[6]GroupItem!$M28 -> 0 | AN17: =[7]GroupItem!$M28 -> 0 | AO17: =[8]GroupItem!$M28 -> 0 | AP17: =[9]GroupItem!$M28 -> 0 | AQ17: =[10]GroupItem!$M28 -> 0 | AR17: =[11]GroupItem!$M28 -> 0 | AS17: =[12]GroupItem!$M28 -> 0 | AT17: =[13]GroupItem!$M28 -> 0 | AU17: 0
B18: 越式素菜 | C18: =S$18+AI$18 -> 0 | D18: =T$18+AJ$18 -> 76 | E18: 174 | F18: 38 | G18: 230 | H18: 228 | I18: 116 | J18: 114 | K18: 76 | L18: 114 | M18: 6922 | N18: 10620 | O18: 18708 | R18: 越式素菜 | S18: =[2]GroupItem!$L29 -> 0 | T18: =[3]GroupItem!$L29 -> 76 | U18: =[4]GroupItem!$L29 -> 174 | V18: =[5]GroupItem!$L29 -> 38 | W18: =[6]GroupItem!$L29 -> 230 | X18: =[7]GroupItem!$L29 -> 228 | Y18: =[8]GroupItem!$L29 -> 116 | Z18: =[9]GroupItem!$L29 -> 114 | AA18: =[10]GroupItem!$L29 -> 76 | AB18: =[11]GroupItem!$L29 -> 114 | AC18: =[12]GroupItem!$L29 -> 6922 | AD18: =[13]GroupItem!$L29 -> 10620 | AE18: 18708 | AH18: 越式素菜 | AI18: =[2]GroupItem!$M29 -> 0 | AJ18: =[3]GroupItem!$M29 -> 0 | AK18: =[4]GroupItem!$M29 -> 0 | AL18: =[5]GroupItem!$M29 -> 0 | AM18: =[6]GroupItem!$M29 -> 0 | AN18: =[7]GroupItem!$M29 -> 0 | AO18: =[8]GroupItem!$M29 -> 0 | AP18: =[9]GroupItem!$M29 -> 0 | AQ18: =[10]GroupItem!$M29 -> 0 | AR18: =[11]GroupItem!$M29 -> 0 | AS18: =[12]GroupItem!$M29 -> 0 | AT18: =[13]GroupItem!$M29 -> 0 | AU18: 0
B19: 米紙卷 | C19: =S$19+AI$19 -> 0 | D19: =T$19+AJ$19 -> 0 | E19: 0 | F19: 0 | G19: 0 | H19: 0 | I19: 88 | J19: 0 | K19: 0 | L19: 0 | M19: 1172 | N19: 1962 | O19: 3222 | R19: 米紙卷 | S19: =[2]GroupItem!$L30 -> 0 | T19: =[3]GroupItem!$L30 -> 0 | U19: =[4]GroupItem!$L30 -> 0 | V19: =[5]GroupItem!$L30 -> 0 | W19: =[6]GroupItem!$L30 -> 0 | X19: =[7]GroupItem!$L30 -> 0 | Y19: =[8]GroupItem!$L30 -> 88 | Z19: =[9]GroupItem!$L30 -> 0 | AA19: =[10]GroupItem!$L30 -> 0 | AB19: =[11]GroupItem!$L30 -> 0 | AC19: =[12]GroupItem!$L30 -> 1172 | AD19: =[13]GroupItem!$L30 -> 1962 | AE19: 3222 | AH19: 米紙卷 | AI19: =[2]GroupItem!$M30 -> 0 | AJ19: =[3]GroupItem!$M30 -> 0 | AK19: =[4]GroupItem!$M30 -> 0 | AL19: =[5]GroupItem!$M30 -> 0 | AM19: =[6]GroupItem!$M30 -> 0 | AN19: =[7]GroupItem!$M30 -> 0 | AO19: =[8]GroupItem!$M30 -> 0 | AP19: =[9]GroupItem!$M30 -> 0 | AQ19: =[10]GroupItem!$M30 -> 0 | AR19: =[11]GroupItem!$M30 -> 0 | AS19: =[12]GroupItem!$M30 -> 0 | AT19: =[13]GroupItem!$M30 -> 0 | AU19: 0
B20: 檬 | C20: =S$20+AI$20 -> 60 | D20: =T$20+AJ$20 -> 0 | E20: 65 | F20: 190 | G20: 0 | H20: 654 | I20: 470 | J20: 880 | K20: 1041.5 | L20: 785.2 | M20: 33285.1 | N20: 33333.2 | O20: 70764 | R20: 檬 | S20: =[2]GroupItem!$L31 -> 60 | T20: =[3]GroupItem!$L31 -> 0 | U20: =[4]GroupItem!$L31 -> 65 | V20: =[5]GroupItem!$L31 -> 190 | W20: =[6]GroupItem!$L31 -> 0 | X20: =[7]GroupItem!$L31 -> 654 | Y20: =[8]GroupItem!$L31 -> 470 | Z20: =[9]GroupItem!$L31 -> 880 | AA20: =[10]GroupItem!$L31 -> 1041.5 | AB20: =[11]GroupItem!$L31 -> 785.2 | AC20: =[12]GroupItem!$L31 -> 33285.1 | AD20: =[13]GroupItem!$L31 -> 33333.2 | AE20: 70764 | AH20: 檬 | AI20: =[2]GroupItem!$M31 -> 0 | AJ20: =[3]GroupItem!$M31 -> 0 | AK20: =[4]GroupItem!$M31 -> 0 | AL20: =[5]GroupItem!$M31 -> 0 | AM20: =[6]GroupItem!$M31 -> 0 | AN20: =[7]GroupItem!$M31 -> 0 | AO20: =[8]GroupItem!$M31 -> 0 | AP20: =[9]GroupItem!$M31 -> 0 | AQ20: =[10]GroupItem!$M31 -> 0 | AR20: =[11]GroupItem!$M31 -> 0 | AS20: =[12]GroupItem!$M31 -> 0 | AT20: =[13]GroupItem!$M31 -> 0 | AU20: 0
B21: 越式麵包 | C21: =S$21+AI$21 -> 30 | D21: =T$21+AJ$21 -> 0 | E21: 38 | F21: 0 | G21: 144 | H21: 114 | I21: 114 | J21: 76 | K21: 0 | L21: 0 | M21: 1146 | N21: 2820 | O21: 4482 | R21: 越式麵包 | S21: =[2]GroupItem!$L32 -> 30 | T21: =[3]GroupItem!$L32 -> 0 | U21: =[4]GroupItem!$L32 -> 38 | V21: =[5]GroupItem!$L32 -> 0 | W21: =[6]GroupItem!$L32 -> 144 | X21: =[7]GroupItem!$L32 -> 114 | Y21: =[8]GroupItem!$L32 -> 114 | Z21: =[9]GroupItem!$L32 -> 76 | AA21: =[10]GroupItem!$L32 -> 0 | AB21: =[11]GroupItem!$L32 -> 0 | AC21: =[12]GroupItem!$L32 -> 1146 | AD21: =[13]GroupItem!$L32 -> 2820 | AE21: 4482 | AH21: 越式麵包 | AI21: =[2]GroupItem!$M32 -> 0 | AJ21: =[3]GroupItem!$M32 -> 0 | AK21: =[4]GroupItem!$M32 -> 0 | AL21: =[5]GroupItem!$M32 -> 0 | AM21: =[6]GroupItem!$M32 -> 0 | AN21: =[7]GroupItem!$M32 -> 0 | AO21: =[8]GroupItem!$M32 -> 0 | AP21: =[9]GroupItem!$M32 -> 0 | AQ21: =[10]GroupItem!$M32 -> 0 | AR21: =[11]GroupItem!$M32 -> 0 | AS21: =[12]GroupItem!$M32 -> 0 | AT21: =[13]GroupItem!$M32 -> 0 | AU21: 0
B22: 越式粉麵飯 | C22: =S$22+AI$22 -> 1326 | D22: =T$22+AJ$22 -> 889 | E22: 765 | F22: 931 | G22: 2129 | H22: 2532.4 | I22: 2345.2 | J22: 4528 | K22: 2717 | L22: 2529 | M22: 160605.9 | N22: 187205.34 | O22: 368502.84 | R22: 越式粉麵飯 | S22: =[2]GroupItem!$L33 -> 1326 | T22: =[3]GroupItem!$L33 -> 889 | U22: =[4]GroupItem!$L33 -> 765 | V22: =[5]GroupItem!$L33 -> 931 | W22: =[6]GroupItem!$L33 -> 2129 | X22: =[7]GroupItem!$L33 -> 2532.4 | Y22: =[8]GroupItem!$L33 -> 2345.2 | Z22: =[9]GroupItem!$L33 -> 4528 | AA22: =[10]GroupItem!$L33 -> 2717 | AB22: =[11]GroupItem!$L33 -> 2529 | AC22: =[12]GroupItem!$L33 -> 160605.9 | AD22: =[13]GroupItem!$L33 -> 187205.34 | AE22: 368502.84 | AH22: 越式粉麵飯 | AI22: =[2]GroupItem!$M33 -> 0 | AJ22: =[3]GroupItem!$M33 -> 0 | AK22: =[4]GroupItem!$M33 -> 0 | AL22: =[5]GroupItem!$M33 -> 0 | AM22: =[6]GroupItem!$M33 -> 0 | AN22: =[7]GroupItem!$M33 -> 0 | AO22: =[8]GroupItem!$M33 -> 0 | AP22: =[9]GroupItem!$M33 -> 0 | AQ22: =[10]GroupItem!$M33 -> 0 | AR22: =[11]GroupItem!$M33 -> 0 | AS22: =[12]GroupItem!$M33 -> 0 | AT22: =[13]GroupItem!$M33 -> 0 | AU22: 0
B23: 越式湯 | C23: =S$23+AI$23 -> 0 | D23: =T$23+AJ$23 -> 0 | E23: 0 | F23: 0 | G23: 0 | H23: 0 | I23: 0 | J23: 0 | K23: 0 | L23: 0 | M23: 354 | N23: 0 | O23: 354 | R23: 越式湯 | S23: =[2]GroupItem!$L34 -> 0 | T23: =[3]GroupItem!$L34 -> 0 | U23: =[4]GroupItem!$L34 -> 0 | V23: =[5]GroupItem!$L34 -> 0 | W23: =[6]GroupItem!$L34 -> 0 | X23: =[7]GroupItem!$L34 -> 0 | Y23: =[8]GroupItem!$L34 -> 0 | Z23: =[9]GroupItem!$L34 -> 0 | AA23: =[10]GroupItem!$L34 -> 0 | AB23: =[11]GroupItem!$L34 -> 0 | AC23: =[12]GroupItem!$L34 -> 354 | AD23: =[13]GroupItem!$L34 -> 0 | AE23: 354 | AH23: 越式湯 | AI23: =[2]GroupItem!$M34 -> 0 | AJ23: =[3]GroupItem!$M34 -> 0 | AK23: =[4]GroupItem!$M34 -> 0 | AL23: =[5]GroupItem!$M34 -> 0 | AM23: =[6]GroupItem!$M34 -> 0 | AN23: =[7]GroupItem!$M34 -> 0 | AO23: =[8]GroupItem!$M34 -> 0 | AP23: =[9]GroupItem!$M34 -> 0 | AQ23: =[10]GroupItem!$M34 -> 0 | AR23: =[11]GroupItem!$M34 -> 0 | AS23: =[12]GroupItem!$M34 -> 0 | AT23: =[13]GroupItem!$M34 -> 0 | AU23: 0
B24: 酒精 | C24: =S$24+AI$24 -> 0 | D24: =T$24+AJ$24 -> 0 | E24: 288 | F24: 0 | G24: 160 | H24: 28 | I24: 28 | J24: 162 | K24: 38 | L24: 0 | M24: 4739 | N24: 9466 | O24: 14909 | R24: 酒精 | S24: =[2]GroupItem!$L35 -> 0 | T24: =[3]GroupItem!$L35 -> 0 | U24: =[4]GroupItem!$L35 -> 288 | V24: =[5]GroupItem!$L35 -> 0 | W24: =[6]GroupItem!$L35 -> 160 | X24: =[7]GroupItem!$L35 -> 28 | Y24: =[8]GroupItem!$L35 -> 28 | Z24: =[9]GroupItem!$L35 -> 162 | AA24: =[10]GroupItem!$L35 -> 38 | AB24: =[11]GroupItem!$L35 -> 0 | AC24: =[12]GroupItem!$L35 -> 4739 | AD24: =[13]GroupItem!$L35 -> 9466 | AE24: 14909 | AH24: 酒精 | AI24: =[2]GroupItem!$M35 -> 0 | AJ24: =[3]GroupItem!$M35 -> 0 | AK24: =[4]GroupItem!$M35 -> 0 | AL24: =[5]GroupItem!$M35 -> 0 | AM24: =[6]GroupItem!$M35 -> 0 | AN24: =[7]GroupItem!$M35 -> 0 | AO24: =[8]GroupItem!$M35 -> 0 | AP24: =[9]GroupItem!$M35 -> 0 | AQ24: =[10]GroupItem!$M35 -> 0 | AR24: =[11]GroupItem!$M35 -> 0 | AS24: =[12]GroupItem!$M35 -> 0 | AT24: =[13]GroupItem!$M35 -> 0 | AU24: 0
B25: 無酒精 | C25: =S$25+AI$25 -> 457 | D25: =T$25+AJ$25 -> 403 | E25: 566 | F25: 747 | G25: 1044 | H25: 1128 | I25: 1086 | J25: 1041 | K25: 930 | L25: 693 | M25: 33732.64 | N25: 49676 | O25: 91503.64 | R25: 無酒精 | S25: =[2]GroupItem!$L36 -> 457 | T25: =[3]GroupItem!$L36 -> 403 | U25: =[4]GroupItem!$L36 -> 566 | V25: =[5]GroupItem!$L36 -> 747 | W25: =[6]GroupItem!$L36 -> 1044 | X25: =[7]GroupItem!$L36 -> 1128 | Y25: =[8]GroupItem!$L36 -> 1086 | Z25: =[9]GroupItem!$L36 -> 1041 | AA25: =[10]GroupItem!$L36 -> 930 | AB25: =[11]GroupItem!$L36 -> 693 | AC25: =[12]GroupItem!$L36 -> 33732.64 | AD25: =[13]GroupItem!$L36 -> 49676 | AE25: 91503.64 | AH25: 無酒精 | AI25: =[2]GroupItem!$M36 -> 0 | AJ25: =[3]GroupItem!$M36 -> 0 | AK25: =[4]GroupItem!$M36 -> 0 | AL25: =[5]GroupItem!$M36 -> 0 | AM25: =[6]GroupItem!$M36 -> 0 | AN25: =[7]GroupItem!$M36 -> 0 | AO25: =[8]GroupItem!$M36 -> 0 | AP25: =[9]GroupItem!$M36 -> 0 | AQ25: =[10]GroupItem!$M36 -> 0 | AR25: =[11]GroupItem!$M36 -> 0 | AS25: =[12]GroupItem!$M36 -> 0 | AT25: =[13]GroupItem!$M36 -> 0 | AU25: 0
B26: 餐牌其他 | C26: =S$26+AI$26 -> 4974 | D26: =T$26+AJ$26 -> 4594 | E26: 6321 | F26: 6438.8 | G26: 6695 | H26: 8510.8 | I26: 6389 | J26: 6124 | K26: 6519.8 | L26: 6778 | M26: 216495.26 | N26: 221207.32 | O26: 501046.98 | R26: 餐牌其他 | S26: =[2]GroupItem!$L37 -> 4974 | T26: =[3]GroupItem!$L37 -> 4594 | U26: =[4]GroupItem!$L37 -> 6321 | V26: =[5]GroupItem!$L37 -> 6438.8 | W26: =[6]GroupItem!$L37 -> 6695 | X26: =[7]GroupItem!$L37 -> 8510.8 | Y26: =[8]GroupItem!$L37 -> 6389 | Z26: =[9]GroupItem!$L37 -> 6124 | AA26: =[10]GroupItem!$L37 -> 6519.8 | AB26: =[11]GroupItem!$L37 -> 6778 | AC26: =[12]GroupItem!$L37 -> 216495.26 | AD26: =[13]GroupItem!$L37 -> 221207.32 | AE26: 501046.98 | AH26: 餐牌其他 | AI26: =[2]GroupItem!$M37 -> 0 | AJ26: =[3]GroupItem!$M37 -> 0 | AK26: =[4]GroupItem!$M37 -> 0 | AL26: =[5]GroupItem!$M37 -> 0 | AM26: =[6]GroupItem!$M37 -> 0 | AN26: =[7]GroupItem!$M37 -> 0 | AO26: =[8]GroupItem!$M37 -> 0 | AP26: =[9]GroupItem!$M37 -> 0 | AQ26: =[10]GroupItem!$M37 -> 0 | AR26: =[11]GroupItem!$M37 -> 0 | AS26: =[12]GroupItem!$M37 -> 0 | AT26: =[13]GroupItem!$M37 -> 0 | AU26: 0

Sheet 食材分類
A1: 每月綜合食材銷售
A3: 2021年
A4: 食材/月 | B4: 1月 | C4: 2月 | D4: 3月 | E4: 4月 | F4: 5月 | G4: 6月 | H4: 7月 | I4: 8月 | J4: 9月 | K4: 10月 | L4: 11月 | M4: 12月 | N4: 總額
A5: 無分類 | B5: =B$30+B$55 -> 2169 | C5: 1882 | D5: 3000 | E5: 3476.8 | F5: 3753 | G5: 5508.8 | H5: 3166 | I5: 3392 | J5: 4119.8 | K5: 3781 | L5: 146022.26 | M5: 145065.32 | N5: =SUM(B5:M5) -> 325335.98
A6: 豬 | B6: =B$31+B$56 -> 1095 | C6: 2025 | D6: 1257 | E6: 882 | F6: 2051 | G6: 2019.4 | H6: 2900 | I6: 3897 | J6: 2442.2 | K6: 2443.2 | L6: 196346.28 | M6: 179899 | N6: =SUM(B6:M6) -> 397257.08
A7: 牛 | B7: =B$32+B$57 -> 845 | C7: 502.4 | D7: 780 | E7: 631 | F7: 752 | G7: 1615 | H7: 1903 | I7: 2204 | J7: 1932.5 | K7: 1432 | L7: 89636.84 | M7: 115188.8 | N7: 217422.54
A8: 羊 | B8: =B$33+B$58 -> 0 | C8: 0 | D8: 0 | E8: 0 | F8: 0 | G8: 0 | H8: 0 | I8: 0 | J8: 0 | K8: 0 | L8: 25078 | M8: 25666 | N8: 50744
A9: 雞 | B9: =B$34+B$59 -> 592 | C9: 1159 | D9: 457 | E9: 858 | F9: 1102 | G9: 1186 | H9: 946 | I9: 2342 | J9: 1694 | K9: 861.2 | L9: 79351 | M9: 81803.96 | N9: 172352.16
A10: 鴨 | B10: =B$35+B$60 -> 0 | C10: 0 | D10: 10 | E10: 0 | F10: 0 | G10: 0 | H10: 0 | I10: 0 | J10: 0 | K10: 0 | L10: 140 | M10: 75 | N10: 225
A11: 鵝 | B11: =B$36+B$61 -> 850 | C11: 1242 | D11: 914 | E11: 1134 | F11: 930 | G11: 988 | H11: 790 | I11: 1052 | J11: 956 | K11: 608 | L11: 48611.4 | M11: 55198.68 | N11: 113274.08
A12: 鴿 | B12: =B$37+B$62 -> 0 | C12: 68 | D12: 0 | E12: 0 | F12: 0 | G12: 136 | H12: 0 | I12: 136 | J12: 194 | K12: 194 | L12: 5716 | M12: 7946 | N12: 14390
A13: 雜肉 | B13: =B$38+B$63 -> 1857 | C13: 1000 | D13: 2500 | E13: 1897 | F13: 3510 | G13: 4562.4 | H13: 3296 | I13: 4299 | J13: 4529.2 | K13: 2568 | L13: 161018.48 | M13: 203455.5 | N13: 394492.58
A14: 海鮮 | B14: =B$39+B$64 -> 156 | C14: 272 | D14: 392 | E14: 288 | F14: 894 | G14: 528 | H14: 733 | I14: 2560 | J14: 1048 | K14: 191 | L14: 102275.18 | M14: 123056.8 | N14: 232393.98
A15: 菜 | B15: =B$40+B$65 -> 276 | C15: 490 | D15: 465 | E15: 534 | F15: 713 | G15: 951 | H15: 886.2 | I15: 1416 | J15: 570 | K15: 423 | L15: 36722.8 | M15: 46267.8 | N15: 89714.8
A16: 飲品 | B16: =B$41+B$66 -> 457 | C16: 403 | D16: 566 | E16: 747 | F16: 1044 | G16: 1128 | H16: 1086 | I16: 1041 | J16: 930 | K16: 693 | L16: 33732.64 | M16: 49676 | N16: 91503.64
A17: 酒類 | B17: =B$42+B$67 -> 0 | C17: 0 | D17: 288 | E17: 15 | F17: 160 | G17: 28 | H17: 28 | I17: 162 | J17: 38 | K17: 0 | L17: 4739 | M17: 9466 | N17: 14924
A18: 包類 | B18: =B$43+B$68 -> 355 | C18: 220 | D18: 381 | E18: 439 | F18: 544 | G18: 911 | H18: 706 | I18: 720 | J18: 845 | K18: 477 | L18: 27425 | M18: 34314 | N18: =SUM(B18:M18) -> 67337
A19: 粉麵飯 | B19: =B$44+B$69 -> 2820 | C19: 2879 | D19: 3278 | E19: 2852 | F19: 3018 | G19: 3048 | H19: 3245 | I19: 3369 | J19: 2160 | K19: 3131 | L19: 105917.6 | M19: 129284.14 | N19: 265001.74
A20: 湯 | B20: =B$45+B$70 -> 44 | C20: 0 | D20: 0 | E20: 0 | F20: 10 | G20: 0 | H20: 20 | I20: 58 | J20: 0 | K20: 0 | L20: 834 | M20: 2002 | N20: 2968
A27: 品味綜合食材銷售
A28: 2021年
A29: 食材/月 | B29: 1月 | C29: 2月 | D29: 3月 | E29: 4月 | F29: 5月 | G29: 6月 | H29: 7月 | I29: 8月 | J29: 9月 | K29: 10月 | L29: 11月 | M29: 12月 | N29: 總額
A30: 無分類 | B30: =[2]GroupItem!$C15 -> 2169 | C30: =[3]GroupItem!$C15 -> 1882 | D30: =[4]GroupItem!$C15 -> 3000 | E30: =[5]GroupItem!$C15 -> 3476.8 | F30: =[6]GroupItem!$C15 -> 3753 | G30: =[7]GroupItem!$C15 -> 5508.8 | H30: =[8]GroupItem!$C15 -> 3166 | I30: =[9]GroupItem!$C15 -> 3392 | J30: =[10]GroupItem!$C15 -> 4119.8 | K30: =[11]GroupItem!$C15 -> 3781 | L30: =[12]GroupItem!$C15 -> 146022.26 | M30: =[13]GroupItem!$C15 -> 145065.32 | N30: =SUM(B30:M30) -> 325335.98
A31: 豬 | B31: =[2]GroupItem!$C16 -> 1095 | C31: =[3]GroupItem!$C16 -> 2025 | D31: =[4]GroupItem!$C16 -> 1257 | E31: =[5]GroupItem!$C16 -> 882 | F31: =[6]GroupItem!$C16 -> 2051 | G31: =[7]GroupItem!$C16 -> 2019.4 | H31: =[8]GroupItem!$C16 -> 2900 | I31: =[9]GroupItem!$C16 -> 3897 | J31: =[10]GroupItem!$C16 -> 2442.2 | K31: =[11]GroupItem!$C16 -> 2443.2 | L31: =[12]GroupItem!$C16 -> 196346.28 | M31: =[13]GroupItem!$C16 -> 179899 | N31: =SUM(B31:M31) -> 397257.08
A32: 牛 | B32: =[2]GroupItem!$C17 -> 845 | C32: =[3]GroupItem!$C17 -> 502.4 | D32: =[4]GroupItem!$C17 -> 780 | E32: =[5]GroupItem!$C17 -> 631 | F32: =[6]GroupItem!$C17 -> 752 | G32: =[7]GroupItem!$C17 -> 1615 | H32: =[8]GroupItem!$C17 -> 1903 | I32: =[9]GroupItem!$C17 -> 2204 | J32: =[10]GroupItem!$C17 -> 1932.5 | K32: =[11]GroupItem!$C17 -> 1432 | L32: =[12]GroupItem!$C17 -> 89636.84 | M32: =[13]GroupItem!$C17 -> 115188.8 | N32: 217422.54
A33: 羊 | B33: =[2]GroupItem!$C18 -> 0 | C33: =[3]GroupItem!$C18 -> 0 | D33: =[4]GroupItem!$C18 -> 0 | E33: =[5]GroupItem!$C18 -> 0 | F33: =[6]GroupItem!$C18 -> 0 | G33: =[7]GroupItem!$C18 -> 0 | H33: =[8]GroupItem!$C18 -> 0 | I33: =[9]GroupItem!$C18 -> 0 | J33: =[10]GroupItem!$C18 -> 0 | K33: =[11]GroupItem!$C18 -> 0 | L33: =[12]GroupItem!$C18 -> 25078 | M33: =[13]GroupItem!$C18 -> 25666 | N33: 50744
A34: 雞 | B34: =[2]GroupItem!$C19 -> 592 | C34: =[3]GroupItem!$C19 -> 1159 | D34: =[4]GroupItem!$C19 -> 457 | E34: =[5]GroupItem!$C19 -> 858 | F34: =[6]GroupItem!$C19 -> 1102 | G34: =[7]GroupItem!$C19 -> 1186 | H34: =[8]GroupItem!$C19 -> 946 | I34: =[9]GroupItem!$C19 -> 2342 | J34: =[10]GroupItem!$C19 -> 1694 | K34: =[11]GroupItem!$C19 -> 861.2 | L34: =[12]GroupItem!$C19 -> 79351 | M34: =[13]GroupItem!$C19 -> 81803.96 | N34: 172352.16
A35: 鴨 | B35: =[2]GroupItem!$C20 -> 0 | C35: =[3]GroupItem!$C20 -> 0 | D35: =[4]GroupItem!$C20 -> 10 | E35: =[5]GroupItem!$C20 -> 0 | F35: =[6]GroupItem!$C20 -> 0 | G35: =[7]GroupItem!$C20 -> 0 | H35: =[8]GroupItem!$C20 -> 0 | I35: =[9]GroupItem!$C20 -> 0 | J35: =[10]GroupItem!$C20 -> 0 | K35: =[11]GroupItem!$C20 -> 0 | L35: =[12]GroupItem!$C20 -> 140 | M35: =[13]GroupItem!$C20 -> 75 | N35: 225
A36: 鵝 | B36: =[2]GroupItem!$C21 -> 850 | C36: =[3]GroupItem!$C21 -> 1242 | D36: =[4]GroupItem!$C21 -> 914 | E36: =[5]GroupItem!$C21 -> 1134 | F36: =[6]GroupItem!$C21 -> 930 | G36: =[7]GroupItem!$C21 -> 988 | H36: =[8]GroupItem!$C21 -> 790 | I36: =[9]GroupItem!$C21 -> 1052 | J36: =[10]GroupItem!$C21 -> 956 | K36: =[11]GroupItem!$C21 -> 608 | L36: =[12]GroupItem!$C21 -> 48611.4 | M36: =[13]GroupItem!$C21 -> 55198.68 | N36: 113274.08
A37: 鴿 | B37: =[2]GroupItem!$C22 -> 0 | C37: =[3]GroupItem!$C22 -> 68 | D37: =[4]GroupItem!$C22 -> 0 | E37: =[5]GroupItem!$C22 -> 0 | F37: =[6]GroupItem!$C22 -> 0 | G37: =[7]GroupItem!$C22 -> 136 | H37: =[8]GroupItem!$C22 -> 0 | I37: =[9]GroupItem!$C22 -> 136 | J37: =[10]GroupItem!$C22 -> 194 | K37: =[11]GroupItem!$C22 -> 194 | L37: =[12]GroupItem!$C22 -> 5716 | M37: =[13]GroupItem!$C22 -> 7946 | N37: 14390
A38: 雜肉 | B38: =[2]GroupItem!$C23 -> 1857 | C38: =[3]GroupItem!$C23 -> 1000 | D38: =[4]GroupItem!$C23 -> 2500 | E38: =[5]GroupItem!$C23 -> 1897 | F38: =[6]GroupItem!$C23 -> 3510 | G38: =[7]GroupItem!$C23 -> 4562.4 | H38: =[8]GroupItem!$C23 -> 3296 | I38: =[9]GroupItem!$C23 -> 4299 | J38: =[10]GroupItem!$C23 -> 4529.2 | K38: =[11]GroupItem!$C23 -> 2568 | L38: =[12]GroupItem!$C23 -> 161018.48 | M38: =[13]GroupItem!$C23 -> 203455.5 | N38: 394492.58
A39: 海鮮 | B39: =[2]GroupItem!$C24 -> 156 | C39: =[3]GroupItem!$C24 -> 272 | D39: =[4]GroupItem!$C24 -> 392 | E39: =[5]GroupItem!$C24 -> 288 | F39: =[6]GroupItem!$C24 -> 894 | G39: =[7]GroupItem!$C24 -> 528 | H39: =[8]GroupItem!$C24 -> 733 | I39: =[9]GroupItem!$C24 -> 2560 | J39: =[10]GroupItem!$C24 -> 1048 | K39: =[11]GroupItem!$C24 -> 191 | L39: =[12]GroupItem!$C24 -> 102275.18 | M39: =[13]GroupItem!$C24 -> 123056.8 | N39: 232393.98
A40: 菜 | B40: =[2]GroupItem!$C25 -> 276 | C40: =[3]GroupItem!$C25 -> 490 | D40: =[4]GroupItem!$C25 -> 465 | E40: =[5]GroupItem!$C25 -> 534 | F40: =[6]GroupItem!$C25 -> 713 | G40: =[7]GroupItem!$C25 -> 951 | H40: =[8]GroupItem!$C25 -> 886.2 | I40: =[9]GroupItem!$C25 -> 1416 | J40: =[10]GroupItem!$C25 -> 570 | K40: =[11]GroupItem!$C25 -> 423 | L40: =[12]GroupItem!$C25 -> 36722.8 | M40: =[13]GroupItem!$C25 -> 46267.8 | N40: 89714.8
A41: 飲品 | B41: =[2]GroupItem!$C26 -> 457 | C41: =[3]GroupItem!$C26 -> 403 | D41: =[4]GroupItem!$C26 -> 566 | E41: =[5]GroupItem!$C26 -> 747 | F41: =[6]GroupItem!$C26 -> 1044 | G41: =[7]GroupItem!$C26 -> 1128 | H41: =[8]GroupItem!$C26 -> 1086 | I41: =[9]GroupItem!$C26 -> 1041 | J41: =[10]GroupItem!$C26 -> 930 | K41: =[11]GroupItem!$C26 -> 693 | L41: =[12]GroupItem!$C26 -> 33732.64 | M41: =[13]GroupItem!$C26 -> 49676 | N41: 91503.64
A42: 酒類 | B42: =[2]GroupItem!$C27 -> 0 | C42: =[3]GroupItem!$C27 -> 0 | D42: =[4]GroupItem!$C27 -> 288 | E42: =[5]GroupItem!$C27 -> 15 | F42: =[6]GroupItem!$C27 -> 160 | G42: =[7]GroupItem!$C27 -> 28 | H42: =[8]GroupItem!$C27 -> 28 | I42: =[9]GroupItem!$C27 -> 162 | J42: =[10]GroupItem!$C27 -> 38 | K42: =[11]GroupItem!$C27 -> 0 | L42: =[12]GroupItem!$C27 -> 4739 | M42: =[13]GroupItem!$C27 -> 9466 | N42: 14924
A43: 包類 | B43: =[2]GroupItem!$C28 -> 355 | C43: =[3]GroupItem!$C28 -> 220 | D43: =[4]GroupItem!$C28 -> 381 | E43: =[5]GroupItem!$C28 -> 439 | F43: =[6]GroupItem!$C28 -> 544 | G43: =[7]GroupItem!$C28 -> 911 | H43: =[8]GroupItem!$C28 -> 706 | I43: =[9]GroupItem!$C28 -> 720 | J43: =[10]GroupItem!$C28 -> 845 | K43: =[11]GroupItem!$C28 -> 477 | L43: =[12]GroupItem!$C28 -> 27425 | M43: =[13]GroupItem!$C28 -> 34314 | N43: =SUM(B43:M43) -> 67337
A44: 粉麵飯 | B44: =[2]GroupItem!$C29 -> 2820 | C44: =[3]GroupItem!$C29 -> 2879 | D44: =[4]GroupItem!$C29 -> 3278 | E44: =[5]GroupItem!$C29 -> 2852 | F44: =[6]GroupItem!$C29 -> 3018 | G44: =[7]GroupItem!$C29 -> 3048 | H44: =[8]GroupItem!$C29 -> 3245 | I44: =[9]GroupItem!$C29 -> 3369 | J44: =[10]GroupItem!$C29 -> 2160 | K44: =[11]GroupItem!$C29 -> 3131 | L44: =[12]GroupItem!$C29 -> 105917.6 | M44: =[13]GroupItem!$C29 -> 129284.14 | N44: 265001.74
A45: 湯 | B45: =[2]GroupItem!$C30 -> 44 | C45: =[3]GroupItem!$C30 -> 0 | D45: =[4]GroupItem!$C30 -> 0 | E45: =[5]GroupItem!$C30 -> 0 | F45: =[6]GroupItem!$C30 -> 10 | G45: =[7]GroupItem!$C30 -> 0 | H45: =[8]GroupItem!$C30 -> 20 | I45: =[9]GroupItem!$C30 -> 58 | J45: =[10]GroupItem!$C30 -> 0 | K45: =[11]GroupItem!$C30 -> 0 | L45: =[12]GroupItem!$C30 -> 834 | M45: =[13]GroupItem!$C30 -> 2002 | N45: 2968
A52: 和味綜合食材銷售
A53: 2021年
A54: 食材/月 | B54: 1月 | C54: 2月 | D54: 3月 | E54: 4月 | F54: 5月 | G54: 6月 | H54: 7月 | I54: 8月 | J54: 9月 | K54: 10月 | L54: 11月 | M54: 12月 | N54: 總額
A55: 無分類 | B55: =[2]GroupItem!$D15 -> 0 | C55: =[3]GroupItem!$D15 -> 0 | D55: =[4]GroupItem!$D15 -> 0 | E55: =[5]GroupItem!$D15 -> 0 | F55: =[6]GroupItem!$D15 -> 0 | G55: =[7]GroupItem!$D15 -> 0 | H55: =[8]GroupItem!$D15 -> 0 | I55: =[9]GroupItem!$D15 -> 0 | J55: =[10]GroupItem!$D15 -> 0 | K55: =[11]GroupItem!$D15 -> 0 | L55: =[12]GroupItem!$D16 -> 0 | M55: =[13]GroupItem!$D15 -> 0 | N55: =SUM(B55:M55) -> 0
A56: 豬 | B56: =[2]GroupItem!$D16 -> 0 | C56: =[3]GroupItem!$D16 -> 0 | D56: =[4]GroupItem!$D16 -> 0 | E56: =[5]GroupItem!$D16 -> 0 | F56: =[6]GroupItem!$D16 -> 0 | G56: =[7]GroupItem!$D16 -> 0 | H56: =[8]GroupItem!$D16 -> 0 | I56: =[9]GroupItem!$D16 -> 0 | J56: =[10]GroupItem!$D16 -> 0 | K56: =[11]GroupItem!$D16 -> 0 | L56: =[12]GroupItem!$D17 -> 0 | M56: =[13]GroupItem!$D16 -> 0 | N56: =SUM(B56:M56) -> 0
A57: 牛 | B57: =[2]GroupItem!$D17 -> 0 | C57: =[3]GroupItem!$D17 -> 0 | D57: =[4]GroupItem!$D17 -> 0 | E57: =[5]GroupItem!$D17 -> 0 | F57: =[6]GroupItem!$D17 -> 0 | G57: =[7]GroupItem!$D17 -> 0 | H57: =[8]GroupItem!$D17 -> 0 | I57: =[9]GroupItem!$D17 -> 0 | J57: =[10]GroupItem!$D17 -> 0 | K57: =[11]GroupItem!$D17 -> 0 | L57: =[12]GroupItem!$D18 -> 0 | M57: =[13]GroupItem!$D17 -> 0 | N57: 0
A58: 羊 | B58: =[2]GroupItem!$D18 -> 0 | C58: =[3]GroupItem!$D18 -> 0 | D58: =[4]GroupItem!$D18 -> 0 | E58: =[5]GroupItem!$D18 -> 0 | F58: =[6]GroupItem!$D18 -> 0 | G58: =[7]GroupItem!$D18 -> 0 | H58: =[8]GroupItem!$D18 -> 0 | I58: =[9]GroupItem!$D18 -> 0 | J58: =[10]GroupItem!$D18 -> 0 | K58: =[11]GroupItem!$D18 -> 0 | L58: =[12]GroupItem!$D19 -> 0 | M58: =[13]GroupItem!$D18 -> 0 | N58: 0
A59: 雞 | B59: =[2]GroupItem!$D19 -> 0 | C59: =[3]GroupItem!$D19 -> 0 | D59: =[4]GroupItem!$D19 -> 0 | E59: =[5]GroupItem!$D19 -> 0 | F59: =[6]GroupItem!$D19 -> 0 | G59: =[7]GroupItem!$D19 -> 0 | H59: =[8]GroupItem!$D19 -> 0 | I59: =[9]GroupItem!$D19 -> 0 | J59: =[10]GroupItem!$D19 -> 0 | K59: =[11]GroupItem!$D19 -> 0 | L59: =[12]GroupItem!$D20 -> 0 | M59: =[13]GroupItem!$D19 -> 0 | N59: 0
A60: 鴨 | B60: =[2]GroupItem!$D20 -> 0 | C60: =[3]GroupItem!$D20 -> 0 | D60: =[4]GroupItem!$D20 -> 0 | E60: =[5]GroupItem!$D20 -> 0 | F60: =[6]GroupItem!$D20 -> 0 | G60: =[7]GroupItem!$D20 -> 0 | H60: =[8]GroupItem!$D20 -> 0 | I60: =[9]GroupItem!$D20 -> 0 | J60: =[10]GroupItem!$D20 -> 0 | K60: =[11]GroupItem!$D20 -> 0 | L60: =[12]GroupItem!$D21 -> 0 | M60: =[13]GroupItem!$D20 -> 0 | N60: 0
A61: 鵝 | B61: =[2]GroupItem!$D21 -> 0 | C61: =[3]GroupItem!$D21 -> 0 | D61: =[4]GroupItem!$D21 -> 0 | E61: =[5]GroupItem!$D21 -> 0 | F61: =[6]GroupItem!$D21 -> 0 | G61: =[7]GroupItem!$D21 -> 0 | H61: =[8]GroupItem!$D21 -> 0 | I61: =[9]GroupItem!$D21 -> 0 | J61: =[10]GroupItem!$D21 -> 0 | K61: =[11]GroupItem!$D21 -> 0 | L61: =[12]GroupItem!$D22 -> 0 | M61: =[13]GroupItem!$D21 -> 0 | N61: 0
A62: 鴿 | B62: =[2]GroupItem!$D22 -> 0 | C62: =[3]GroupItem!$D22 -> 0 | D62: =[4]GroupItem!$D22 -> 0 | E62: =[5]GroupItem!$D22 -> 0 | F62: =[6]GroupItem!$D22 -> 0 | G62: =[7]GroupItem!$D22 -> 0 | H62: =[8]GroupItem!$D22 -> 0 | I62: =[9]GroupItem!$D22 -> 0 | J62: =[10]GroupItem!$D22 -> 0 | K62: =[11]GroupItem!$D22 -> 0 | L62: =[12]GroupItem!$D23 -> 0 | M62: =[13]GroupItem!$D22 -> 0 | N62: 0
A63: 雜肉 | B63: =[2]GroupItem!$D23 -> 0 | C63: =[3]GroupItem!$D23 -> 0 | D63: =[4]GroupItem!$D23 -> 0 | E63: =[5]GroupItem!$D23 -> 0 | F63: =[6]GroupItem!$D23 -> 0 | G63: =[7]GroupItem!$D23 -> 0 | H63: =[8]GroupItem!$D23 -> 0 | I63: =[9]GroupItem!$D23 -> 0 | J63: =[10]GroupItem!$D23 -> 0 | K63: =[11]GroupItem!$D23 -> 0 | L63: =[12]GroupItem!$D24 -> 0 | M63: =[13]GroupItem!$D23 -> 0 | N63: 0
A64: 海鮮 | B64: =[2]GroupItem!$D24 -> 0 | C64: =[3]GroupItem!$D24 -> 0 | D64: =[4]GroupItem!$D24 -> 0 | E64: =[5]GroupItem!$D24 -> 0 | F64: =[6]GroupItem!$D24 -> 0 | G64: =[7]GroupItem!$D24 -> 0 | H64: =[8]GroupItem!$D24 -> 0 | I64: =[9]GroupItem!$D24 -> 0 | J64: =[10]GroupItem!$D24 -> 0 | K64: =[11]GroupItem!$D24 -> 0 | L64: =[12]GroupItem!$D25 -> 0 | M64: =[13]GroupItem!$D24 -> 0 | N64: 0
A65: 菜 | B65: =[2]GroupItem!$D25 -> 0 | C65: =[3]GroupItem!$D25 -> 0 | D65: =[4]GroupItem!$D25 -> 0 | E65: =[5]GroupItem!$D25 -> 0 | F65: =[6]GroupItem!$D25 -> 0 | G65: =[7]GroupItem!$D25 -> 0 | H65: =[8]GroupItem!$D25 -> 0 | I65: =[9]GroupItem!$D25 -> 0 | J65: =[10]GroupItem!$D25 -> 0 | K65: =[11]GroupItem!$D25 -> 0 | L65: =[12]GroupItem!$D26 -> 0 | M65: =[13]GroupItem!$D25 -> 0 | N65: 0
A66: 飲品 | B66: =[2]GroupItem!$D26 -> 0 | C66: =[3]GroupItem!$D26 -> 0 | D66: =[4]GroupItem!$D26 -> 0 | E66: =[5]GroupItem!$D26 -> 0 | F66: =[6]GroupItem!$D26 -> 0 | G66: =[7]GroupItem!$D26 -> 0 | H66: =[8]GroupItem!$D26 -> 0 | I66: =[9]GroupItem!$D26 -> 0 | J66: =[10]GroupItem!$D26 -> 0 | K66: =[11]GroupItem!$D26 -> 0 | L66: =[12]GroupItem!$D27 -> 0 | M66: =[13]GroupItem!$D26 -> 0 | N66: 0
A67: 酒類 | B67: =[2]GroupItem!$D27 -> 0 | C67: =[3]GroupItem!$D27 -> 0 | D67: =[4]GroupItem!$D27 -> 0 | E67: =[5]GroupItem!$D27 -> 0 | F67: =[6]GroupItem!$D27 -> 0 | G67: =[7]GroupItem!$D27 -> 0 | H67: =[8]GroupItem!$D27 -> 0 | I67: =[9]GroupItem!$D27 -> 0 | J67: =[10]GroupItem!$D27 -> 0 | K67: =[11]GroupItem!$D27 -> 0 | L67: =[12]GroupItem!$D28 -> 0 | M67: =[13]GroupItem!$D27 -> 0 | N67: 0
A68: 包類 | B68: =[2]GroupItem!$D28 -> 0 | C68: =[3]GroupItem!$D28 -> 0 | D68: =[4]GroupItem!$D28 -> 0 | E68: =[5]GroupItem!$D28 -> 0 | F68: =[6]GroupItem!$D28 -> 0 | G68: =[7]GroupItem!$D28 -> 0 | H68: =[8]GroupItem!$D28 -> 0 | I68: =[9]GroupItem!$D28 -> 0 | J68: =[10]GroupItem!$D28 -> 0 | K68: =[11]GroupItem!$D28 -> 0 | L68: =[12]GroupItem!$D29 -> 0 | M68: =[13]GroupItem!$D28 -> 0 | N68: 0
A69: 粉麵飯 | B69: =[2]GroupItem!$D29 -> 0 | C69: =[3]GroupItem!$D29 -> 0 | D69: =[4]GroupItem!$D29 -> 0 | E69: =[5]GroupItem!$D29 -> 0 | F69: =[6]GroupItem!$D29 -> 0 | G69: =[7]GroupItem!$D29 -> 0 | H69: =[8]GroupItem!$D29 -> 0 | I69: =[9]GroupItem!$D29 -> 0 | J69: =[10]GroupItem!$D29 -> 0 | K69: =[11]GroupItem!$D29 -> 0 | L69: =[12]GroupItem!$D30 -> 0 | M69: =[13]GroupItem!$D29 -> 0 | N69: 0
A70: 湯 | B70: =[2]GroupItem!$D30 -> 0 | C70: =[3]GroupItem!$D30 -> 0 | D70: =[4]GroupItem!$D30 -> 0 | E70: =[5]GroupItem!$D30 -> 0 | F70: =[6]GroupItem!$D30 -> 0 | G70: =[7]GroupItem!$D30 -> 0 | H70: =[8]GroupItem!$D30 -> 0 | I70: =[9]GroupItem!$D30 -> 0 | J70: =[10]GroupItem!$D30 -> 0 | K70: =[11]GroupItem!$D30 -> 0 | L70: =[12]GroupItem!$D31 -> 0 | M70: =[13]GroupItem!$D30 -> 0 | N70: 0

Sheet 付款統計
A1: 每月付款統計 | J1: *總銷售就要食銷售資料
J2: *卡付款要去食不同付款收集的資料
B3: Month Select: | C3: May | J3: *再利用銷售去扣減, 就可求出現金
A4: 付款比例 | B4: 總銷售 | C4: 現金 | D4: VISA | E4: MASTER | F4: 銀聯 | G4: 八達通 | H4: 支付寶 | I4: 微信 | J4: 戶戶送 | K4: FOOD PANDA | L4: UBEREATS
A5: 綜合 | B5: =B6+B7 -> 23090.2 | C5: =C6+C7 -> 15029.2 | D5: =D6+D7 -> 607 | E5: 0 | F5: 258 | G5: 6468 | H5: 676 | I5: 52 | J5: 0 | K5: 0 | L5: 0
A6: 品味 | B6: =[6]GroupItem!$D$7 -> 23090.2 | C6: =B6-SUM(D6:L6) -> 15029.2 | D6: =[6]GroupItem!$G$7 -> 607 | E6: =[6]GroupItem!$I$7 -> 0 | F6: =[6]GroupItem!$H$7 -> 258 | G6: =[6]GroupItem!$F$7 -> 6468 | H6: =[6]GroupItem!$J$7 -> 676 | I6: =[6]GroupItem!$K$7 -> 52 | J6: =[6]GroupItem!$P$7 -> 0 | K6: =[6]GroupItem!$L$7 -> 0 | L6: =[6]GroupItem!$O$7 -> 0
A7: 和味 | B7: =[6]GroupItem!$D$8 -> 0 | C7: =B7-SUM(D7:L7) -> 0 | D7: =[6]GroupItem!$G$8 -> 0 | E7: =[6]GroupItem!$I$8 -> 0 | F7: =[6]GroupItem!$H$8 -> 0 | G7: =[6]GroupItem!$F$8 -> 0 | H7: =[6]GroupItem!$J$8 -> 0 | I7: =[6]GroupItem!$K$8 -> 0 | J7: =[6]GroupItem!$P$8 -> 0 | K7: =[6]GroupItem!$L$8 -> 0 | L7: =[6]GroupItem!$O$8 -> 0
A10: 綜合差額
C11: VISA | D11: MASTER | E11: 銀聯 | F11: 八達通 | G11: 支付寶 | H11: 微信 | I11: 戶戶送 | J11: FOOD PANDA | K11: UBEREATS
A12: 綜合 | B12: 費用對比 | C12: =C14+C16 -> 772.546 | D12: 225.19 | E12: 61.764 | F12: 1873.916 | G12: 389.72 | H12: 22.65 | I12: 0 | J12: 796.65 | K12: 0
B13: 收費率對比 | C13: =AVERAGE(C15,C17) -> 0.3602850082 | D13: 0 | E13: 0.04051162791 | F13: 0.1142088745 | G13: 0.1564571006 | H13: 0.2177884615 | I13: 0 | J13: 0 | K13: 0
A14: 品味 | B14: 費用對比 | C14: =不同付款對比數據!W11 -> 437.386 | D14: =不同付款對比數據!W22 -> 153.26 | E14: =不同付款對比數據!W33 -> 20.904 | F14: =不同付款對比數據!W44 -> 1477.406 | G14: =不同付款對比數據!W55 -> 211.53 | H14: =不同付款對比數據!W66 -> 22.65 | I14: =不同付款對比數據!W77 -> 0 | J14: =不同付款對比數據!W88 -> 100.2 | K14: =不同付款對比數據!W99 -> 0
B15: 收費率對比 | C15: =不同付款對比數據!W12 -> 0.7205700165 | D15: =不同付款對比數據!W23 -> 0 | E15: =不同付款對比數據!W34 -> 0.08102325581 | F15: =不同付款對比數據!W45 -> 0.2284177489 | G15: =不同付款對比數據!W56 -> 0.3129142012 | H15: =不同付款對比數據!W67 -> 0.4355769231 | I15: =不同付款對比數據!W78 -> 0 | J15: =不同付款對比數據!W89 -> 0 | K15: =不同付款對比數據!W100 -> 0
A16: 和味 | B16: 費用對比 | C16: =不同付款對比數據!AM11 -> 335.16 | D16: =不同付款對比數據!AM22 -> 71.93 | E16: =不同付款對比數據!AM33 -> 40.86 | F16: =不同付款對比數據!AM44 -> 396.51 | G16: =不同付款對比數據!AM55 -> 178.19 | H16: =不同付款對比數據!AM66 -> 0 | I16: =不同付款對比數據!AM77 -> 0 | J16: =不同付款對比數據!AM88 -> 696.45 | K16: =不同付款對比數據!AM99 -> 0
B17: 收費率對比 | C17: =不同付款對比數據!AM12 -> 0 | D17: =不同付款對比數據!AM23 -> 0 | E17: =不同付款對比數據!AM34 -> 0 | F17: =不同付款對比數據!AM45 -> 0 | G17: =不同付款對比數據!AM56 -> 0 | H17: =不同付款對比數據!AM67 -> 0 | I17: =不同付款對比數據!AM78 -> 0 | J17: =不同付款對比數據!AM89 -> 0 | K17: =不同付款對比數據!AM100 -> 0

Sheet 不同付款對比數據
B1: 每月綜合付款 | R1: 品味綜合付款 | AH1: 和味綜合付款
B3: 信用卡 VISA | R3: 信用卡 VISA | AH3: 信用卡 VISA
C4: 一月 | D4: 二月 | E4: 三月 | F4: 4月 | G4: 5月 | H4: 6月 | I4: 7月 | J4: 8月 | K4: 9月 | L4: 10月 | M4: 11月 | N4: 12月 | O4: 合共 | S4: 一月 | T4: 二月 | U4: 三月 | V4: 4月 | W4: 5月 | X4: 6月 | Y4: 7月 | Z4: 8月 | AA4: 9月 | AB4: 10月 | AC4: 11月 | AD4: 12月 | AE4: 合共 | AI4: 一月 | AJ4: 二月 | AK4: 三月 | AL4: 4月 | AM4: 5月 | AN4: 6月 | AO4: 7月 | AP4: 8月 | AQ4: 9月 | AR4: 10月 | AS4: 11月 | AT4: 12月 | AU4: 合共
B5: 付款總額 | C5: =S5+AI5 -> 0 | D5: =T5+AJ5 -> 249 | E5: =U5+AK5 -> 0 | F5: 301.6 | G5: 607 | H5: 478 | I5: 484 | J5: 0 | K5: 965.5 | L5: 275 | M5: 9941.8 | N5: 20925.4 | O5: =SUM(C5:N5) -> 34227.3 | R5: 付款總額 | S5: =[2]GroupItem!$G$7 -> 0 | T5: =[3]GroupItem!$G$7 -> 249 | U5: =[4]GroupItem!$G$7 -> 0 | V5: =[5]GroupItem!$G$7 -> 301.6 | W5: =[6]GroupItem!$G$7 -> 607 | X5: =[7]GroupItem!$G$7 -> 478 | Y5: =[8]GroupItem!$G$7 -> 484 | Z5: =[9]GroupItem!$G$7 -> 0 | AA5: =[10]GroupItem!$G$7 -> 965.5 | AB5: =[11]GroupItem!$G$7 -> 275 | AC5: =[12]GroupItem!$G$7 -> 9941.8 | AD5: =[13]GroupItem!$G$7 -> 20925.4 | AE5: =SUM(S5:AD5) -> 34227.3 | AH5: 付款總額 | AI5: =[2]GroupItem!$G$8 -> 0 | AJ5: =[3]GroupItem!$G$8 -> 0 | AK5: =[4]GroupItem!$G$8 -> 0 | AL5: =[5]GroupItem!$G$8 -> 0 | AM5: =[6]GroupItem!$G$8 -> 0 | AN5: =[7]GroupItem!$G$8 -> 0 | AO5: =[8]GroupItem!$G$8 -> 0 | AP5: =[9]GroupItem!$G$8 -> 0 | AQ5: =[10]GroupItem!$G$8 -> 0 | AR5: =[11]GroupItem!$G$8 -> 0 | AS5: =[12]GroupItem!$G$8 -> 0 | AT5: =[13]GroupItem!$G$8 -> 0 | AU5: =SUM(AI5:AT5) -> 0
B6: 設定率 | C6: =AVERAGE(S6,AI6) -> 0.022 | R6: 設定率 | S6: ='[14]PAYMENT MASTER'!$D$4 -> 0.022 | T6: =S6 -> 0.022 | U6: =T6 -> 0.022 | V6: 0.022 | W6: 0.022 | X6: 0.022 | Y6: 0.022 | Z6: 0.022 | AA6: 0.022 | AB6: 0.022 | AC6: 0.022 | AD6: 0.022 | AH6: 設定率 | AI6: ='[14]PAYMENT MASTER'!$E$4 -> 0.022 | AJ6: =$AI$6 -> 0.022 | AK6: =$AI$6 -> 0.022 | AL6: 0.022 | AM6: 0.022 | AN6: 0.022 | AO6: 0.022 | AP6: 0.022 | AQ6: 0.022 | AR6: 0.022 | AS6: 0.022 | AT6: 0.022 | AW6: 係master入面的Rate
B7: 設定收款 | C7: =S7+AI7 -> 0 | R7: 設定最底收款 | S7: ='[14]PAYMENT MASTER'!$D$5 -> 0 | T7: =S7 -> 0 | U7: =T7 -> 0 | V7: 0 | W7: 0 | X7: 0 | Y7: 0 | Z7: 0 | AA7: 0 | AB7: 0 | AC7: 0 | AD7: 0 | AH7: 設定收款 | AI7: ='[14]PAYMENT MASTER'!$E$5 -> 0 | AJ7: =$AI$7 -> 0 | AK7: =$AI$7 -> 0 | AL7: 0 | AM7: 0 | AN7: 0 | AO7: 0 | AP7: 0 | AQ7: 0 | AR7: 0 | AS7: 0 | AT7: 0 | AW7: 係master入面的最低消費
B8: 應付費用 | C8: =S8+AI8 -> 0 | O8: =SUM(C8:N8) -> 0 | R8: 應付費用 | S8: =IF(S5<S7,S7,S5*S6) -> 0 | T8: =IF(T5<T7,T7,T5*T6) -> 5.478 | U8: 0 | V8: 6.6352 | W8: 13.354 | X8: 10.516 | Y8: 10.648 | Z8: 0 | AA8: 21.241 | AB8: 6.05 | AC8: 218.7196 | AD8: 460.3588 | AH8: 應付費用 | AI8: =IF(AI5<AI7,AI7,AI5*AI6) -> 0 | AJ8: =IF(AJ5<AJ7,AJ7,AJ5*AJ6) -> 0 | AK8: 0 | AL8: 0 | AM8: 0 | AN8: 0 | AO8: 0 | AP8: 0 | AQ8: 0 | AR8: 0 | AS8: 0 | AT8: 0 | AW8: 因為出現不夠298, 所以, 其實係應該收298
B9: 會計費用 | C9: =S9+AI9 -> 301.65 | O9: =SUM(C9:N9) -> 301.65 | R9: 會計費用 | S9: =[1]Analysis!AY$58 -> 216.67 | T9: =[1]Analysis!AZ$58 -> 114.19 | U9: =[1]Analysis!BA$58 -> 177.47 | V9: =[1]Analysis!BB$58 -> 273.22 | W9: =[1]Analysis!BC$58 -> 450.74 | X9: =[1]Analysis!BD$58 -> 0 | Y9: =[1]Analysis!BE$58 -> 769.18 | Z9: =[1]Analysis!BF$58 -> 207.78 | AA9: =[1]Analysis!BG$58 -> 221.75 | AB9: =[1]Analysis!BH$58 -> 200.18 | AC9: =[1]Analysis!BI$58 -> 194.38 | AD9: =[1]Analysis!BJ$58 -> 0 | AH9: 會計費用 | AI9: =[1]Analysis!AY$69 -> 84.98 | AJ9: =[1]Analysis!AZ$69 -> 303.49 | AK9: =[1]Analysis!BA$69 -> 167.01 | AL9: =[1]Analysis!BB$69 -> 222.79 | AM9: =[1]Analysis!BC$69 -> 335.16 | AN9: =[1]Analysis!BD$69 -> 4.41 | AO9: =[1]Analysis!BE$69 -> 222.75 | AP9: =[1]Analysis!BF$69 -> 209.69 | AQ9: =[1]Analysis!BG$69 -> 178.16 | AR9: =[1]Analysis!BH$69 -> 144.63 | AS9: =[1]Analysis!BI$69 -> 283.06 | AT9: =[1]Analysis!BJ$69 -> 0 | AW9: copy from statement
B10: 收費率計算 | C10: =AVERAGE(S10,AI10) -> 0 | R10: 收費率計算 | S10: =IFERROR(S9/S5,0) -> 0 | T10: =IFERROR(T9/T5,0) -> 0.4585943775 | U10: 0 | V10: 0.9059018568 | W10: 0.7425700165 | X10: 0 | Y10: 1.589214876 | Z10: 0 | AA10: 0.2296737442 | AB10: 0.7279272727 | AC10: 0.01955179143 | AD10: 0 | AH10: 收費率計算 | AI10: =IFERROR(AI9/AI5,0) -> 0 | AJ10: =IFERROR(AJ9/AJ5,0) -> 0 | AK10: 0 | AL10: 0 | AM10: 0 | AN10: 0 | AO10: 0 | AP10: 0 | AQ10: 0 | AR10: 0 | AS10: 0 | AT10: 0 | AW10: 求收費=幾多%
B11: 費用對比 | C11: =S11+AI11 -> 301.65 | R11: 費用對比 | S11: =IF(S9-S8<0,0,S9-S8) -> 216.67 | T11: =IF(T9-T8<0,0,T9-T8) -> 108.712 | U11: 177.47 | V11: 266.5848 | W11: 437.386 | X11: 0 | Y11: 758.532 | Z11: 207.78 | AA11: 200.509 | AB11: 194.13 | AC11: 0 | AD11: 0 | AE11: =SUM(S11:AD11) -> 2567.7738 | AH11: 費用對比 | AI11: =IF(AI9-AI8<0,0,AI9-AI8) -> 84.98 | AJ11: =IF(AJ9-AJ8<0,0,AJ9-AJ8) -> 303.49 | AK11: 167.01 | AL11: 222.79 | AM11: 335.16 | AN11: 4.41 | AO11: 222.75 | AP11: 209.69 | AQ11: 178.16 | AR11: 144.63 | AS11: 283.06 | AT11: 0 | AU11: =SUM(AI11:AT11) -> 2156.13 | AW11: 多少左212元
B12: 收費率對比 | C12: =C6-C10 -> 0.022 | R12: 收費率對比 | S12: =IF(S10-S6<S6,0,S10-S6) -> 0 | T12: =IF(T10-T6<T6,0,T10-T6) -> 0.4365943775 | U12: 0 | V12: 0.8839018568 | W12: 0.7205700165 | X12: 0 | Y12: 1.567214876 | Z12: 0 | AA12: 0.2076737442 | AB12: 0.7059272727 | AC12: 0 | AD12: 0 | AE12: =AVERAGE(S12:AD12) -> 0.376823512 | AH12: 收費率對比 | AI12: =IF(AI10-AI6<AI6,0,AI10-AI6) -> 0 | AJ12: =IF(AJ10-AJ6<AJ6,0,AJ10-AJ6) -> 0 | AK12: 0 | AL12: 0 | AM12: 0 | AN12: 0 | AO12: 0 | AP12: 0 | AQ12: 0 | AR12: 0 | AS12: 0 | AT12: 0 | AU12: =AVERAGE(AI12:AT12) -> 0 | AW12: 多少左1.17%
B14: 信用卡 MASTER | R14: 信用卡 MASTER | AH14: 信用卡 MASTER
C15: 一月 | D15: 二月 | E15: 三月 | F15: 4月 | G15: 5月 | H15: 6月 | I15: 7月 | J15: 8月 | K15: 9月 | L15: 10月 | M15: 11月 | N15: 12月 | O15: 合共 | S15: 一月 | T15: 二月 | U15: 三月 | V15: 4月 | W15: 5月 | X15: 6月 | Y15: 7月 | Z15: 8月 | AA15: 9月 | AB15: 10月 | AC15: 11月 | AD15: 12月 | AE15: 合共 | AI15: 一月 | AJ15: 二月 | AK15: 三月 | AL15: 4月 | AM15: 5月 | AN15: 6月 | AO15: 7月 | AP15: 8月 | AQ15: 9月 | AR15: 10月 | AS15: 11月 | AT15: 12月 | AU15: 合共
B16: 付款總額 | C16: =S16+AI16 -> 0 | D16: =T16+AJ16 -> 0 | E16: 0 | F16: 134 | G16: 0 | H16: 0 | I16: 206 | J16: 0 | K16: 0 | L16: 0 | M16: 6011.4 | N16: 13348.7 | O16: =SUM(C16:N16) -> 19700.1 | R16: 付款總額 | S16: =[2]GroupItem!$I$7 -> 0 | T16: =[3]GroupItem!$I$7 -> 0 | U16: =[4]GroupItem!$I$7 -> 0 | V16: =[5]GroupItem!$I$7 -> 134 | W16: =[6]GroupItem!$I$7 -> 0 | X16: =[7]GroupItem!$I$7 -> 0 | Y16: =[8]GroupItem!$I$7 -> 206 | Z16: =[9]GroupItem!$I$7 -> 0 | AA16: =[10]GroupItem!$I$7 -> 0 | AB16: =[11]GroupItem!$I$7 -> 0 | AC16: =[12]GroupItem!$I$7 -> 6011.4 | AD16: =[13]GroupItem!$I$7 -> 13348.7 | AE16: =SUM(S16:AD16) -> 19700.1 | AH16: 付款總額 | AI16: =[2]GroupItem!$I$8 -> 0 | AJ16: =[3]GroupItem!$I$8 -> 0 | AK16: =[4]GroupItem!$I$8 -> 0 | AL16: =[5]GroupItem!$I$8 -> 0 | AM16: =[6]GroupItem!$I$8 -> 0 | AN16: =[7]GroupItem!$I$8 -> 0 | AO16: =[8]GroupItem!$I$8 -> 0 | AP16: =[9]GroupItem!$I$8 -> 0 | AQ16: =[10]GroupItem!$I$8 -> 0 | AR16: =[11]GroupItem!$I$8 -> 0 | AS16: =[12]GroupItem!$I$8 -> 0 | AT16: =[13]GroupItem!$I$8 -> 0 | AU16: =SUM(AI16:AT16) -> 0
B17: 設定率 | C17: =AVERAGE(S17,AI17) -> 0.022 | R17: 設定率 | S17: ='[14]PAYMENT MASTER'!$D$6 -> 0.022 | T17: ='[14]PAYMENT MASTER'!$D$6 -> 0.022 | U17: ='[14]PAYMENT MASTER'!$D$6 -> 0.022 | V17: ='[14]PAYMENT MASTER'!$D$6 -> 0.022 | W17: ='[14]PAYMENT MASTER'!$D$6 -> 0.022 | X17: ='[14]PAYMENT MASTER'!$D$6 -> 0.022 | Y17: ='[14]PAYMENT MASTER'!$D$6 -> 0.022 | Z17: ='[14]PAYMENT MASTER'!$D$6 -> 0.022 | AA17: ='[14]PAYMENT MASTER'!$D$6 -> 0.022 | AB17: ='[14]PAYMENT MASTER'!$D$6 -> 0.022 | AC17: ='[14]PAYMENT MASTER'!$D$6 -> 0.022 | AD17: ='[14]PAYMENT MASTER'!$D$6 -> 0.022 | AH17: 設定率 | AI17: ='[14]PAYMENT MASTER'!$E$6 -> 0.022 | AJ17: =$AI$17 -> 0.022 | AK17: =$AI$17 -> 0.022 | AL17: 0.022 | AM17: 0.022 | AN17: 0.022 | AO17: 0.022 | AP17: 0.022 | AQ17: 0.022 | AR17: 0.022 | AS17: 0.022 | AT17: 0.022
B18: 設定收款 | C18: =S18+AI18 -> 0 | R18: 設定最底收款 | S18: ='[14]PAYMENT MASTER'!$D$7 -> 0 | T18: ='[14]PAYMENT MASTER'!$D$7 -> 0 | U18: ='[14]PAYMENT MASTER'!$D$7 -> 0 | V18: ='[14]PAYMENT MASTER'!$D$7 -> 0 | W18: ='[14]PAYMENT MASTER'!$D$7 -> 0 | X18: ='[14]PAYMENT MASTER'!$D$7 -> 0 | Y18: ='[14]PAYMENT MASTER'!$D$7 -> 0 | Z18: ='[14]PAYMENT MASTER'!$D$7 -> 0 | AA18: ='[14]PAYMENT MASTER'!$D$7 -> 0 | AB18: ='[14]PAYMENT MASTER'!$D$7 -> 0 | AC18: ='[14]PAYMENT MASTER'!$D$7 -> 0 | AD18: ='[14]PAYMENT MASTER'!$D$7 -> 0 | AH18: 設定收款 | AI18: ='[14]PAYMENT MASTER'!$E$7 -> 0 | AJ18: =$AI$18 -> 0 | AK18: =$AI$18 -> 0 | AL18: 0 | AM18: 0 | AN18: 0 | AO18: 0 | AP18: 0 | AQ18: 0 | AR18: 0 | AS18: 0 | AT18: 0
B19: 應付費用 | C19: =S19+AI19 -> 0 | R19: 應付費用 | S19: =IF(S16<S18,S18,S16*S17) -> 0 | T19: =IF(T16<T18,T18,T16*T17) -> 0 | U19: 0 | V19: 2.948 | W19: 0 | X19: 0 | Y19: 4.532 | Z19: 0 | AA19: 0 | AB19: 0 | AC19: 132.2508 | AD19: 293.6714 | AH19: 應付費用 | AI19: =IF(AI16<AI18,AI18,AI16*AI17) -> 0 | AJ19: =IF(AJ16<AJ18,AJ18,AJ16*AJ17) -> 0 | AK19: 0 | AL19: 0 | AM19: 0 | AN19: 0 | AO19: 0 | AP19: 0 | AQ19: 0 | AR19: 0 | AS19: 0 | AT19: 0
B20: 會計費用 | C20: 450 | R20: 會計費用 | S20: =[1]Analysis!AY$59 -> 60.56 | T20: =[1]Analysis!AZ$59 -> 59.05 | U20: =[1]Analysis!BA$59 -> 94.98 | V20: =[1]Analysis!BB$59 -> 162.39 | W20: =[1]Analysis!BC$59 -> 153.26 | X20: =[1]Analysis!BD$59 -> 0 | Y20: =[1]Analysis!BE$59 -> 186.45 | Z20: =[1]Analysis!BF$59 -> 150.02 | AA20: =[1]Analysis!BG$59 -> 145.77 | AB20: =[1]Analysis!BH$59 -> 98.16 | AC20: =[1]Analysis!BI$59 -> 100.93 | AD20: =[1]Analysis!BJ$59 -> 0 | AH20: 會計費用 | AI20: =[1]Analysis!AY$70 -> 170.09 | AJ20: =[1]Analysis!AZ$70 -> 89.4 | AK20: =[1]Analysis!BA$70 -> 117.2 | AL20: =[1]Analysis!BB$70 -> 200.55 | AM20: =[1]Analysis!BC$70 -> 71.93 | AN20: =[1]Analysis!BD$70 -> 156.19 | AO20: =[1]Analysis!BE$70 -> 112.28 | AP20: =[1]Analysis!BF$70 -> 171.39 | AQ20: =[1]Analysis!BG$70 -> 166.97 | AR20: =[1]Analysis!BH$70 -> 96.26 | AS20: =[1]Analysis!BI$70 -> 152.63 | AT20: =[1]Analysis!BJ$70 -> 0
B21: 收費率計算 | C21: =AVERAGE(S21,AI21) -> 0 | R21: 收費率計算 | S21: =IFERROR(S20/S16,0) -> 0 | T21: =IFERROR(T20/T16,0) -> 0 | U21: 0 | V21: 1.211865672 | W21: 0 | X21: 0 | Y21: 0.9050970874 | Z21: 0 | AA21: 0 | AB21: 0 | AC21: 0.01678976611 | AD21: 0 | AH21: 收費率計算 | AI21: =IFERROR(AI20/AI16,0) -> 0 | AJ21: =IFERROR(AJ20/AJ16,0) -> 0 | AK21: 0 | AL21: 0 | AM21: 0 | AN21: 0 | AO21: 0 | AP21: 0 | AQ21: 0 | AR21: 0 | AS21: 0 | AT21: 0
B22: 費用對比 | C22: =S22+AI22 -> 230.65 | R22: 費用對比 | S22: =IF(S20-S19<0,0,S20-S19) -> 60.56 | T22: =IF(T20-T19<0,0,T20-T19) -> 59.05 | U22: 94.98 | V22: 159.442 | W22: 153.26 | X22: 0 | Y22: 181.918 | Z22: 150.02 | AA22: 145.77 | AB22: 98.16 | AC22: 0 | AD22: 0 | AE22: =SUM(S22:AD22) -> 1103.16 | AH22: 費用對比 | AI22: =IF(AI20-AI19<0,0,AI20-AI19) -> 170.09 | AJ22: =IF(AJ20-AJ19<0,0,AJ20-AJ19) -> 89.4 | AK22: 117.2 | AL22: 200.55 | AM22: 71.93 | AN22: 156.19 | AO22: 112.28 | AP22: 171.39 | AQ22: 166.97 | AR22: 96.26 | AS22: 152.63 | AT22: 0 | AU22: =SUM(AI22:AT22) -> 1504.89
B23: 收費率對比 | C23: =C17-C21 -> 0.022 | R23: 收費率對比 | S23: =IF(S21-S17<S17,0,S21-S17) -> 0 | T23: =IF(T21-T17<T17,0,T21-T17) -> 0 | U23: 0 | V23: 1.189865672 | W23: 0 | X23: 0 | Y23: 0.8830970874 | Z23: 0 | AA23: 0 | AB23: 0 | AC23: 0 | AD23: 0 | AE23: =AVERAGE(S23:AD23) -> 0.1727468966 | AH23: 收費率對比 | AI23: =IF(AI21-AI17<AI17,0,AI21-AI17) -> 0 | AJ23: =IF(AJ21-AJ17<AJ17,0,AJ21-AJ17) -> 0 | AK23: 0 | AL23: 0 | AM23: 0 | AN23: 0 | AO23: 0 | AP23: 0 | AQ23: 0 | AR23: 0 | AS23: 0 | AT23: 0 | AU23: =AVERAGE(AI23:AT23) -> 0
B25: 信用卡 銀聯 | R25: 信用卡 銀聯 | AH25: 信用卡 銀聯
C26: 一月 | D26: 二月 | E26: 三月 | F26: 4月 | G26: 5月 | H26: 6月 | I26: 7月 | J26: 8月 | K26: 9月 | L26: 10月 | M26: 11月 | N26: 12月 | O26: 合共 | S26: 一月 | T26: 二月 | U26: 三月 | V26: 4月 | W26: 5月 | X26: 6月 | Y26: 7月 | Z26: 8月 | AA26: 9月 | AB26: 10月 | AC26: 11月 | AD26: 12月 | AE26: 合共 | AI26: 一月 | AJ26: 二月 | AK26: 三月 | AL26: 4月 | AM26: 5月 | AN26: 6月 | AO26: 7月 | AP26: 8月 | AQ26: 9月 | AR26: 10月 | AS26: 11月 | AT26: 12月 | AU26: 合共
B27: 付款總額 | C27: =S27+AI27 -> 0 | D27: =T27+AJ27 -> 0 | E27: 0 | F27: 0 | G27: 258 | H27: 0 | I27: 0 | J27: 304 | K27: =AA27+AQ27 -> 0 | L27: 0 | M27: 3066 | N27: 4046 | O27: =SUM(C27:N27) -> 7674 | R27: 付款總額 | S27: =[2]GroupItem!$H$7 -> 0 | T27: =[3]GroupItem!$H$7 -> 0 | U27: =[4]GroupItem!$H$7 -> 0 | V27: =[5]GroupItem!$H$7 -> 0 | W27: =[6]GroupItem!$H$7 -> 258 | X27: =[7]GroupItem!$H$7 -> 0 | Y27: =[8]GroupItem!$H$7 -> 0 | Z27: =[9]GroupItem!$H$7 -> 304 | AA27: =[10]GroupItem!$H$7 -> 0 | AB27: =[11]GroupItem!$H$7 -> 0 | AC27: =[12]GroupItem!$H$7 -> 3066 | AD27: =[13]GroupItem!$H$7 -> 4046 | AE27: =SUM(S27:AD27) -> 7674 | AH27: 付款總額 | AI27: =[2]GroupItem!$H$8 -> 0 | AJ27: =[3]GroupItem!$H$8 -> 0 | AK27: =[4]GroupItem!$H$8 -> 0 | AL27: =[5]GroupItem!$H$8 -> 0 | AM27: =[6]GroupItem!$H$8 -> 0 | AN27: =[7]GroupItem!$H$8 -> 0 | AO27: =[8]GroupItem!$H$8 -> 0 | AP27: =[9]GroupItem!$H$8 -> 0 | AQ27: =[10]GroupItem!$H$8 -> 0 | AR27: =[11]GroupItem!$H$8 -> 0 | AS27: =[12]GroupItem!$H$8 -> 0 | AT27: =[13]GroupItem!$H$8 -> 0 | AU27: =SUM(AI27:AT27) -> 0
B28: 設定率 | C28: =AVERAGE(S28,AI28) -> 0.022 | R28: 設定率 | S28: ='[14]PAYMENT MASTER'!$D$8 -> 0.022 | T28: ='[14]PAYMENT MASTER'!$D$8 -> 0.022 | U28: ='[14]PAYMENT MASTER'!$D$8 -> 0.022 | V28: ='[14]PAYMENT MASTER'!$D$8 -> 0.022 | W28: ='[14]PAYMENT MASTER'!$D$8 -> 0.022 | X28: ='[14]PAYMENT MASTER'!$D$8 -> 0.022 | Y28: ='[14]PAYMENT MASTER'!$D$8 -> 0.022 | Z28: ='[14]PAYMENT MASTER'!$D$8 -> 0.022 | AA28: ='[14]PAYMENT MASTER'!$D$8 -> 0.022 | AB28: ='[14]PAYMENT MASTER'!$D$8 -> 0.022 | AC28: ='[14]PAYMENT MASTER'!$D$8 -> 0.022 | AD28: ='[14]PAYMENT MASTER'!$D$8 -> 0.022 | AH28: 設定率 | AI28: ='[14]PAYMENT MASTER'!$D$8 -> 0.022 | AJ28: =$AI$28 -> 0.022 | AK28: =$AI$28 -> 0.022 | AL28: 0.022 | AM28: 0.022 | AN28: 0.022 | AO28: 0.022 | AP28: 0.022 | AQ28: 0.022 | AR28: 0.022 | AS28: 0.022 | AT28: 0.022
B29: 設定收款 | C29: =S29+AI29 -> 0 | R29: 設定最底收款 | S29: ='[14]PAYMENT MASTER'!$D$9 -> 0 | T29: ='[14]PAYMENT MASTER'!$D$9 -> 0 | U29: ='[14]PAYMENT MASTER'!$D$9 -> 0 | V29: ='[14]PAYMENT MASTER'!$D$9 -> 0 | W29: ='[14]PAYMENT MASTER'!$D$9 -> 0 | X29: ='[14]PAYMENT MASTER'!$D$9 -> 0 | Y29: ='[14]PAYMENT MASTER'!$D$9 -> 0 | Z29: ='[14]PAYMENT MASTER'!$D$9 -> 0 | AA29: ='[14]PAYMENT MASTER'!$D$9 -> 0 | AB29: ='[14]PAYMENT MASTER'!$D$9 -> 0 | AC29: ='[14]PAYMENT MASTER'!$D$9 -> 0 | AD29: ='[14]PAYMENT MASTER'!$D$9 -> 0 | AH29: 設定收款 | AI29: ='[14]PAYMENT MASTER'!$D$9 -> 0 | AJ29: =$AI$29 -> 0 | AK29: =$AI$29 -> 0 | AL29: 0 | AM29: 0 | AN29: 0 | AO29: 0 | AP29: 0 | AQ29: 0 | AR29: 0 | AS29: 0 | AT29: 0
B30: 應付費用 | C30: =S30+AI30 -> 0 | R30: 應付費用 | S30: =IF(S27<S29,S29,S27*S28) -> 0 | T30: =IF(T27<T29,T29,T27*T28) -> 0 | U30: 0 | V30: 0 | W30: 5.676 | X30: 0 | Y30: 0 | Z30: 6.688 | AA30: 0 | AB30: 0 | AC30: 67.452 | AD30: 89.012 | AH30: 應付費用 | AI30: =IF(AI27<AI29,AI29,AI27*AI28) -> 0 | AJ30: =IF(AJ27<AJ29,AJ29,AJ27*AJ28) -> 0 | AK30: 0 | AL30: 0 | AM30: 0 | AN30: 0 | AO30: 0 | AP30: 0 | AQ30: 0 | AR30: 0 | AS30: 0 | AT30: 0
B31: 會計費用 | C31: 450 | R31: 會計費用 | S31: =[1]Analysis!AY$60 -> 17.23 | T31: =[1]Analysis!AZ$60 -> 4.31 | U31: =[1]Analysis!BA$60 -> 24.53 | V31: =[1]Analysis!BB$60 -> 30.36 | W31: =[1]Analysis!BC$60 -> 26.58 | X31: =[1]Analysis!BD$60 -> 0 | Y31: =[1]Analysis!BE$60 -> 50.64 | Z31: =[1]Analysis!BF$60 -> 17.21 | AA31: =[1]Analysis!BG$60 -> 40.54 | AB31: =[1]Analysis!BH$60 -> 22.18 | AC31: =[1]Analysis!BI$60 -> 55.98 | AD31: =[1]Analysis!BJ$60 -> 0 | AH31: 會計費用 | AI31: =[1]Analysis!AY$71 -> 55.42 | AJ31: =[1]Analysis!AZ$71 -> 33.11 | AK31: =[1]Analysis!BA$71 -> 49.31 | AL31: =[1]Analysis!BB$71 -> 48.93 | AM31: =[1]Analysis!BC$71 -> 40.86 | AN31: =[1]Analysis!BD$71 -> 0 | AO31: =[1]Analysis!BE$71 -> 73.41 | AP31: =[1]Analysis!BF$71 -> 64.87 | AQ31: =[1]Analysis!BG$71 -> 154.22 | AR31: =[1]Analysis!BH$71 -> 64.69 | AS31: =[1]Analysis!BI$71 -> 61.38 | AT31: =[1]Analysis!BJ$71 -> 0
B32: 收費率計算 | C32: =AVERAGE(S32,AI32) -> 0 | R32: 收費率計算 | S32: =IFERROR(S31/S27,0) -> 0 | T32: =IFERROR(T31/T27,0) -> 0 | U32: 0 | V32: 0 | W32: 0.1030232558 | X32: 0 | Y32: 0 | Z32: 0.05661184211 | AA32: 0 | AB32: 0 | AC32: 0.01825831703 | AD32: 0 | AH32: 收費率計算 | AI32: =IFERROR(AI31/AI27,0) -> 0 | AJ32: =IFERROR(AJ31/AJ27,0) -> 0 | AK32: 0 | AL32: 0 | AM32: 0 | AN32: 0 | AO32: 0 | AP32: 0 | AQ32: 0 | AR32: 0 | AS32: 0 | AT32: 0
B33: 費用對比 | C33: =S33+AI33 -> 72.65 | R33: 費用對比 | S33: =IF(S31-S30<0,0,S31-S30) -> 17.23 | T33: =IF(T31-T30<0,0,T31-T30) -> 4.31 | U33: 24.53 | V33: 30.36 | W33: 20.904 | X33: 0 | Y33: 50.64 | Z33: 10.522 | AA33: 40.54 | AB33: 22.18 | AC33: 0 | AD33: 0 | AE33: =SUM(S33:AD33) -> 221.216 | AH33: 費用對比 | AI33: =IF(AI31-AI30<0,0,AI31-AI30) -> 55.42 | AJ33: =IF(AJ31-AJ30<0,0,AJ31-AJ30) -> 33.11 | AK33: 49.31 | AL33: 48.93 | AM33: 40.86 | AN33: 0 | AO33: 73.41 | AP33: 64.87 | AQ33: 154.22 | AR33: 64.69 | AS33: 61.38 | AT33: 0 | AU33: =SUM(AI33:AT33) -> 646.2
B34: 收費率對比 | C34: =C28-C32 -> 0.022 | R34: 收費率對比 | S34: =IF(S32-S28<S28,0,S32-S28) -> 0 | T34: =IF(T32-T28<T28,0,T32-T28) -> 0 | U34: 0 | V34: 0 | W34: 0.08102325581 | X34: 0 | Y34: 0 | Z34: 0.03461184211 | AA34: 0 | AB34: 0 | AC34: 0 | AD34: 0 | AE34: =AVERAGE(S34:AD34) -> 0.00963625816 | AH34: 收費率對比 | AI34: =IF(AI32-AI28<AI28,0,AI32-AI28) -> 0 | AJ34: =IF(AJ32-AJ28<AJ28,0,AJ32-AJ28) -> 0 | AK34: 0 | AL34: 0 | AM34: 0 | AN34: 0 | AO34: 0 | AP34: 0 | AQ34: 0 | AR34: 0 | AS34: 0 | AT34: 0 | AU34: =AVERAGE(AI34:AT34) -> 0
B36: 八達通 | R36: 八達通 | AH36: 八達通
C37: 一月 | D37: 二月 | E37: 三月 | F37: 4月 | G37: 5月 | H37: 6月 | I37: 7月 | J37: 8月 | K37: 9月 | L37: 10月 | M37: 11月 | N37: 12月 | O37: 合共 | S37: 一月 | T37: 二月 | U37: 三月 | V37: 4月 | W37: 5月 | X37: 6月 | Y37: 7月 | Z37: 8月 | AA37: 9月 | AB37: 10月 | AC37: 11月 | AD37: 12月 | AE37: 合共 | AI37: 一月 | AJ37: 二月 | AK37: 三月 | AL37: 4月 | AM37: 5月 | AN37: 6月 | AO37: 7月 | AP37: 8月 | AQ37: 9月 | AR37: 10月 | AS37: 11月 | AT37: 12月 | AU37: 合共
B38: 付款總額 | C38: =S38+AI38 -> 3865 | D38: =T38+AJ38 -> 4070 | E38: 4602 | F38: 6099 | G38: 6468 | H38: 6700 | I38: 6350 | J38: 11780 | K38: 7717.3 | L38: 8547.2 | M38: 358530.08 | N38: 382994.84 | O38: =SUM(C38:N38) -> 807723.42 | R38: 付款總額 | S38: =[2]GroupItem!$F$7 -> 3865 | T38: =[3]GroupItem!$F$7 -> 4070 | U38: =[4]GroupItem!$F$7 -> 4602 | V38: =[5]GroupItem!$F$7 -> 6099 | W38: =[6]GroupItem!$F$7 -> 6468 | X38: =[7]GroupItem!$F$7 -> 6700 | Y38: =[8]GroupItem!$F$7 -> 6350 | Z38: =[9]GroupItem!$F$7 -> 11780 | AA38: =[10]GroupItem!$F$7 -> 7717.3 | AB38: =[11]GroupItem!$F$7 -> 8547.2 | AC38: =[12]GroupItem!$F$7 -> 358530.08 | AD38: =[13]GroupItem!$F$7 -> 382994.84 | AE38: =SUM(S38:AD38) -> 807723.42 | AH38: 付款總額 | AI38: =[2]GroupItem!$F$8 -> 0 | AJ38: =[3]GroupItem!$F$8 -> 0 | AK38: =[4]GroupItem!$F$8 -> 0 | AL38: =[5]GroupItem!$F$8 -> 0 | AM38: =[6]GroupItem!$F$8 -> 0 | AN38: =[7]GroupItem!$F$8 -> 0 | AO38: =[8]GroupItem!$F$8 -> 0 | AP38: =[9]GroupItem!$F$8 -> 0 | AQ38: =[10]GroupItem!$F$8 -> 0 | AR38: =[11]GroupItem!$F$8 -> 0 | AS38: =[12]GroupItem!$F$8 -> 0 | AT38: =[13]GroupItem!$F$8 -> 0 | AU38: =SUM(AI38:AT38) -> 0
B39: 設定率 | C39: =AVERAGE(S39,AI39) -> 0.013 | R39: 設定率 | S39: ='[14]PAYMENT MASTER'!$D$10 -> 0.013 | T39: ='[14]PAYMENT MASTER'!$D$10 -> 0.013 | U39: ='[14]PAYMENT MASTER'!$D$10 -> 0.013 | V39: ='[14]PAYMENT MASTER'!$D$10 -> 0.013 | W39: ='[14]PAYMENT MASTER'!$D$10 -> 0.013 | X39: ='[14]PAYMENT MASTER'!$D$10 -> 0.013 | Y39: ='[14]PAYMENT MASTER'!$D$10 -> 0.013 | Z39: ='[14]PAYMENT MASTER'!$D$10 -> 0.013 | AA39: ='[14]PAYMENT MASTER'!$D$10 -> 0.013 | AB39: ='[14]PAYMENT MASTER'!$D$10 -> 0.013 | AC39: ='[14]PAYMENT MASTER'!$D$10 -> 0.013 | AD39: ='[14]PAYMENT MASTER'!$D$10 -> 0.013 | AH39: 設定率 | AI39: ='[14]PAYMENT MASTER'!$E$10 -> 0.013 | AJ39: =$AI$39 -> 0.013 | AK39: =$AI$39 -> 0.013 | AL39: 0.013 | AM39: 0.013 | AN39: 0.013 | AO39: 0.013 | AP39: 0.013 | AQ39: 0.013 | AR39: 0.013 | AS39: 0.013 | AT39: 0.013
B40: 設定收款 | C40: 0 | R40: 設定最底收款 | S40: ='[14]PAYMENT MASTER'!$D$11 -> 298 | T40: ='[14]PAYMENT MASTER'!$D$11 -> 298 | U40: ='[14]PAYMENT MASTER'!$D$11 -> 298 | V40: ='[14]PAYMENT MASTER'!$D$11 -> 298 | W40: ='[14]PAYMENT MASTER'!$D$11 -> 298 | X40: ='[14]PAYMENT MASTER'!$D$11 -> 298 | Y40: ='[14]PAYMENT MASTER'!$D$11 -> 298 | Z40: ='[14]PAYMENT MASTER'!$D$11 -> 298 | AA40: ='[14]PAYMENT MASTER'!$D$11 -> 298 | AB40: ='[14]PAYMENT MASTER'!$D$11 -> 298 | AC40: ='[14]PAYMENT MASTER'!$D$11 -> 298 | AD40: ='[14]PAYMENT MASTER'!$D$11 -> 298 | AH40: 設定收款 | AI40: ='[14]PAYMENT MASTER'!$E$11 -> 298 | AJ40: =$AI$40 -> 298 | AK40: =$AI$40 -> 298 | AL40: 298 | AM40: 298 | AN40: 298 | AO40: 298 | AP40: 298 | AQ40: 298 | AR40: 298 | AS40: 298 | AT40: 298
B41: 應付費用 | C41: =S41+AI41 -> 348.245 | R41: 應付費用 | S41: =IF(S38<S40,S40,S38*S39) -> 50.245 | T41: =IF(T38<T40,T40,T38*T39) -> 52.91 | U41: 59.826 | V41: 79.287 | W41: 84.084 | X41: 87.1 | Y41: 82.55 | Z41: 153.14 | AA41: 100.3249 | AB41: 111.1136 | AC41: 4660.89104 | AD41: 4978.93292 | AH41: 應付費用 | AI41: =IF(AI38<AI40,AI40,AI38*AI39) -> 298 | AJ41: =IF(AJ38<AJ40,AJ40,AJ38*AJ39) -> 298 | AK41: 298 | AL41: 298 | AM41: 298 | AN41: 298 | AO41: 298 | AP41: 298 | AQ41: 298 | AR41: 298 | AS41: 298 | AT41: 298
B42: 會計費用 | C42: =S42+AI42 -> 2459.8 | R42: 會計費用 | S42: =[1]Analysis!AY$61 -> 1808.14 | T42: =[1]Analysis!AZ$61 -> 1447.46 | U42: =[1]Analysis!BA$61 -> 2208.82 | V42: =[1]Analysis!BB$61 -> 2025.53 | W42: =[1]Analysis!BC$61 -> 1561.49 | X42: =[1]Analysis!BD$61 -> 76.79 | Y42: =[1]Analysis!BE$61 -> 2342.05 | Z42: =[1]Analysis!BF$61 -> 3967.45 | AA42: =[1]Analysis!BG$61 -> 3159.51 | AB42: =[1]Analysis!BH$61 -> 3614.08 | AC42: =[1]Analysis!BI$61 -> 4029.29 | AD42: =[1]Analysis!BJ$61 -> 0 | AH42: 會計費用 | AI42: =[1]Analysis!AY$72 -> 651.66 | AJ42: =[1]Analysis!AZ$72 -> 741.74 | AK42: =[1]Analysis!BA$72 -> 1011.58 | AL42: =[1]Analysis!BB$72 -> 922.47 | AM42: =[1]Analysis!BC$72 -> 694.51 | AN42: =[1]Analysis!BD$72 -> 25.21 | AO42: =[1]Analysis!BE$72 -> 1101.45 | AP42: =[1]Analysis!BF$72 -> 1700.65 | AQ42: =[1]Analysis!BG$72 -> 1477.19 | AR42: =[1]Analysis!BH$72 -> 1503.07 | AS42: =[1]Analysis!BI$72 -> 1677.31 | AT42: =[1]Analysis!BJ$72 -> 0
B43: 收費率計算 | C43: =AVERAGE(S43,AI43) -> 0.233912031 | R43: 收費率計算 | S43: =IFERROR(S42/S38,0) -> 0.4678240621 | T43: =IFERROR(T42/T38,0) -> 0.3556412776 | U43: 0.4799695784 | V43: 0.3321085424 | W43: 0.2414177489 | X43: 0.01146119403 | Y43: 0.3688267717 | Z43: 0.336795416 | AA43: 0.4094061395 | AB43: 0.4228378884 | AC43: 0.01123835969 | AD43: 0 | AH43: 收費率計算 | AI43: =IFERROR(AI42/AI38,0) -> 0 | AJ43: =IFERROR(AJ42/AJ38,0) -> 0 | AK43: 0 | AL43: 0 | AM43: 0 | AN43: 0 | AO43: 0 | AP43: 0 | AQ43: 0 | AR43: 0 | AS43: 0 | AT43: 0
B44: 費用對比 | C44: =S44+AI44 -> 2111.555 | R44: 費用對比 | S44: =IF(S42-S41<0,0,S42-S41) -> 1757.895 | T44: =IF(T42-T41<0,0,T42-T41) -> 1394.55 | U44: 2148.994 | V44: 1946.243 | W44: 1477.406 | X44: 0 | Y44: 2259.5 | Z44: 3814.31 | AA44: 3059.1851 | AB44: 3502.9664 | AC44: 0 | AD44: 0 | AE44: =SUM(S44:AD44) -> 21361.0495 | AH44: 費用對比 | AI44: =IF(AI42-AI41<0,0,AI42-AI41) -> 353.66 | AJ44: =IF(AJ42-AJ41<0,0,AJ42-AJ41) -> 443.74 | AK44: 713.58 | AL44: 624.47 | AM44: 396.51 | AN44: 0 | AO44: 803.45 | AP44: 1402.65 | AQ44: 1179.19 | AR44: 1205.07 | AS44: 1379.31 | AT44: 0 | AU44: =SUM(AI44:AT44) -> 8501.63
B45: 收費率對比 | C45: =C39-C43 -> -0.220912031 | R45: 收費率對比 | S45: =IF(S43-S39<S39,0,S43-S39) -> 0.4548240621 | T45: =IF(T43-T39<T39,0,T43-T39) -> 0.3426412776 | U45: 0.4669695784 | V45: 0.3191085424 | W45: 0.2284177489 | X45: 0 | Y45: 0.3558267717 | Z45: 0.323795416 | AA45: 0.3964061395 | AB45: 0.4098378884 | AC45: 0 | AD45: 0 | AE45: =AVERAGE(S45:AD45) -> 0.2748189521 | AH45: 收費率對比 | AI45: =IF(AI43-AI39<AI39,0,AI43-AI39) -> 0 | AJ45: =IF(AJ43-AJ39<AJ39,0,AJ43-AJ39) -> 0 | AK45: 0 | AL45: 0 | AM45: 0 | AN45: 0 | AO45: 0 | AP45: 0 | AQ45: 0 | AR45: 0 | AS45: 0 | AT45: 0 | AU45: =AVERAGE(AI45:AT45) -> 0
B47: 支付寶 | R47: 支付寶 | AH47: 支付寶
C48: 一月 | D48: 二月 | E48: 三月 | F48: 4月 | G48: 5月 | H48: 6月 | I48: 7月 | J48: 8月 | K48: 9月 | L48: 10月 | M48: 11月 | N48: 12月 | O48: 合共 | S48: 一月 | T48: 二月 | U48: 三月 | V48: 4月 | W48: 5月 | X48: 6月 | Y48: 7月 | Z48: 8月 | AA48: 9月 | AB48: 10月 | AC48: 11月 | AD48: 12月 | AE48: 合共 | AI48: 一月 | AJ48: 二月 | AK48: 三月 | AL48: 4月 | AM48: 5月 | AN48: 6月 | AO48: 7月 | AP48: 8月 | AQ48: 9月 | AR48: 10月 | AS48: 11月 | AT48: 12月 | AU48: 合共
B49: 付款總額 | C49: =S49+AI49 -> 656 | D49: =T49+AJ49 -> 840.4 | E49: 724 | F49: 840 | G49: 676 | H49: 1284.4 | I49: 1192 | J49: 2008 | K49: 862 | L49: 1619 | M49: 61756.34 | N49: 59687.8 | O49: =SUM(C49:N49) -> 132145.94 | R49: 付款總額 | S49: =[2]GroupItem!$J$7 -> 656 | T49: =[3]GroupItem!$J$7 -> 840.4 | U49: =[4]GroupItem!$J$7 -> 724 | V49: =[5]GroupItem!$J$7 -> 840 | W49: =[6]GroupItem!$J$7 -> 676 | X49: =[7]GroupItem!$J$7 -> 1284.4 | Y49: =[8]GroupItem!$J$7 -> 1192 | Z49: =[9]GroupItem!$J$7 -> 2008 | AA49: =[10]GroupItem!$J$7 -> 862 | AB49: =[11]GroupItem!$J$7 -> 1619 | AC49: =[12]GroupItem!$J$7 -> 61756.34 | AD49: =[13]GroupItem!$J$7 -> 59687.8 | AE49: =SUM(S49:AD49) -> 132145.94 | AH49: 付款總額 | AI49: =[2]GroupItem!$J$8 -> 0 | AJ49: =[3]GroupItem!$J$8 -> 0 | AK49: =[4]GroupItem!$J$8 -> 0 | AL49: =[5]GroupItem!$J$8 -> 0 | AM49: =[6]GroupItem!$J$8 -> 0 | AN49: =[7]GroupItem!$J$8 -> 0 | AO49: =[8]GroupItem!$J$8 -> 0 | AP49: =[9]GroupItem!$J$8 -> 0 | AQ49: =[10]GroupItem!$J$8 -> 0 | AR49: =[11]GroupItem!$J$8 -> 0 | AS49: =[12]GroupItem!$J$8 -> 0 | AT49: =[13]GroupItem!$J$8 -> 0 | AU49: =SUM(AI49:AT49) -> 0
B50: 設定率 | C50: =AVERAGE(S50,AI50) -> 0.011 | R50: 設定率 | S50: ='[14]PAYMENT MASTER'!$D$12 -> 0.01 | T50: ='[14]PAYMENT MASTER'!$D$12 -> 0.01 | U50: ='[14]PAYMENT MASTER'!$D$12 -> 0.01 | V50: ='[14]PAYMENT MASTER'!$D$12 -> 0.01 | W50: ='[14]PAYMENT MASTER'!$D$12 -> 0.01 | X50: ='[14]PAYMENT MASTER'!$D$12 -> 0.01 | Y50: ='[14]PAYMENT MASTER'!$D$12 -> 0.01 | Z50: ='[14]PAYMENT MASTER'!$D$12 -> 0.01 | AA50: ='[14]PAYMENT MASTER'!$D$12 -> 0.01 | AB50: ='[14]PAYMENT MASTER'!$D$12 -> 0.01 | AC50: ='[14]PAYMENT MASTER'!$D$12 -> 0.01 | AD50: ='[14]PAYMENT MASTER'!$D$12 -> 0.01 | AH50: 設定率 | AI50: ='[14]PAYMENT MASTER'!$E$12 -> 0.012 | AJ50: =$AI$50 -> 0.012 | AK50: =$AI$50 -> 0.012 | AL50: 0.012 | AM50: 0.012 | AN50: 0.012 | AO50: 0.012 | AP50: 0.012 | AQ50: 0.012 | AR50: 0.012 | AS50: 0.012 | AT50: 0.012
B51: 設定收款 | C51: 0 | R51: 設定最底收款 | S51: ='[14]PAYMENT MASTER'!$D$13 -> 0 | T51: ='[14]PAYMENT MASTER'!$D$13 -> 0 | U51: ='[14]PAYMENT MASTER'!$D$13 -> 0 | V51: ='[14]PAYMENT MASTER'!$D$13 -> 0 | W51: ='[14]PAYMENT MASTER'!$D$13 -> 0 | X51: ='[14]PAYMENT MASTER'!$D$13 -> 0 | Y51: ='[14]PAYMENT MASTER'!$D$13 -> 0 | Z51: ='[14]PAYMENT MASTER'!$D$13 -> 0 | AA51: ='[14]PAYMENT MASTER'!$D$13 -> 0 | AB51: ='[14]PAYMENT MASTER'!$D$13 -> 0 | AC51: ='[14]PAYMENT MASTER'!$D$13 -> 0 | AD51: ='[14]PAYMENT MASTER'!$D$13 -> 0 | AH51: 設定收款 | AI51: ='[14]PAYMENT MASTER'!$E$13 -> 0 | AJ51: =$AI$51 -> 0 | AK51: =$AI$51 -> 0 | AL51: 0 | AM51: 0 | AN51: 0 | AO51: 0 | AP51: 0 | AQ51: 0 | AR51: 0 | AS51: 0 | AT51: 0
B52: 應付費用 | C52: =S52+AI52 -> 6.56 | R52: 應付費用 | S52: =IF(S49<S51,S51,S49*S50) -> 6.56 | T52: =IF(T49<T51,T51,T49*T50) -> 8.404 | U52: 7.24 | V52: 8.4 | W52: 6.76 | X52: 12.844 | Y52: 11.92 | Z52: 20.08 | AA52: 8.62 | AB52: 16.19 | AC52: 617.5634 | AD52: 596.878 | AH52: 應付費用 | AI52: =IF(AI49<AI51,AI51,AI49*AI50) -> 0 | AJ52: =IF(AJ49<AJ51,AJ51,AJ49*AJ50) -> 0 | AK52: 0 | AL52: 0 | AM52: 0 | AN52: 0 | AO52: 0 | AP52: 0 | AQ52: 0 | AR52: 0 | AS52: 0 | AT52: 0
B53: 會計費用 | C53: =S53+AI53 -> 427.35 | R53: 會計費用 | S53: =[1]Analysis!AY$62 -> 262.3 | T53: =[1]Analysis!AZ$62 -> 161.9 | U53: =[1]Analysis!BA$62 -> 177.57 | V53: =[1]Analysis!BB$62 -> 146.66 | W53: =[1]Analysis!BC$62 -> 218.29 | X53: =[1]Analysis!BD$62 -> 26.48 | Y53: =[1]Analysis!BE$62 -> 287.64 | Z53: =[1]Analysis!BF$62 -> 585.69 | AA53: =[1]Analysis!BG$62 -> 371.75 | AB53: =[1]Analysis!BH$62 -> 606.95 | AC53: =[1]Analysis!BI$62 -> 538.99 | AD53: =[1]Analysis!BJ$62 -> 0 | AH53: 會計費用 | AI53: =[1]Analysis!AY$73 -> 165.05 | AJ53: =[1]Analysis!AZ$73 -> 86.16 | AK53: =[1]Analysis!BA$73 -> 237.23 | AL53: =[1]Analysis!BB$73 -> 160.47 | AM53: =[1]Analysis!BC$73 -> 178.19 | AN53: =[1]Analysis!BD$73 -> 11.09 | AO53: =[1]Analysis!BE$73 -> 241.82 | AP53: =[1]Analysis!BF$73 -> 439.85 | AQ53: =[1]Analysis!BG$73 -> 372.51 | AR53: =[1]Analysis!BH$73 -> 565.26 | AS53: =[1]Analysis!BI$73 -> 483.59 | AT53: =[1]Analysis!BJ$73 -> 0
B54: 收費率計算 | C54: =AVERAGE(S54,AI54) -> 0.1999237805 | R54: 收費率計算 | S54: =IFERROR(S53/S49,0) -> 0.399847561 | T54: =IFERROR(T53/T49,0) -> 0.1926463589 | U54: 0.2452624309 | V54: 0.1745952381 | W54: 0.3229142012 | X54: 0.02061663033 | Y54: 0.2413087248 | Z54: 0.2916782869 | AA54: 0.4312645012 | AB54: 0.3748919086 | AC54: 0.008727686906 | AD54: 0 | AH54: 收費率計算 | AI54: =IFERROR(AI53/AI49,0) -> 0 | AJ54: =IFERROR(AJ53/AJ49,0) -> 0 | AK54: 0 | AL54: 0 | AM54: 0 | AN54: 0 | AO54: 0 | AP54: 0 | AQ54: 0 | AR54: 0 | AS54: 0 | AT54: 0
B55: 費用對比 | C55: =S55+AI55 -> 420.79 | R55: 費用對比 | S55: =IF(S53-S52<0,0,S53-S52) -> 255.74 | T55: =IF(T53-T52<0,0,T53-T52) -> 153.496 | U55: 170.33 | V55: 138.26 | W55: 211.53 | X55: 13.636 | Y55: 275.72 | Z55: 565.61 | AA55: 363.13 | AB55: 590.76 | AC55: 0 | AD55: 0 | AE55: =SUM(S55:AD55) -> 2738.212 | AH55: 費用對比 | AI55: =IF(AI53-AI52<0,0,AI53-AI52) -> 165.05 | AJ55: =IF(AJ53-AJ52<0,0,AJ53-AJ52) -> 86.16 | AK55: 237.23 | AL55: 160.47 | AM55: 178.19 | AN55: 11.09 | AO55: 241.82 | AP55: 439.85 | AQ55: 372.51 | AR55: 565.26 | AS55: 483.59 | AT55: 0 | AU55: =SUM(AI55:AT55) -> 2941.22
B56: 收費率對比 | C56: =C50-C54 -> -0.1889237805 | R56: 收費率對比 | S56: =IF(S54-S50<S50,0,S54-S50) -> 0.389847561 | T56: =IF(T54-T50<T50,0,T54-T50) -> 0.1826463589 | U56: 0.2352624309 | V56: 0.1645952381 | W56: 0.3129142012 | X56: 0.01061663033 | Y56: 0.2313087248 | Z56: 0.2816782869 | AA56: 0.4212645012 | AB56: 0.3648919086 | AC56: 0 | AD56: 0 | AE56: =AVERAGE(S56:AD56) -> 0.2162521535 | AH56: 收費率對比 | AI56: =IF(AI54-AI50<AI50,0,AI54-AI50) -> 0 | AJ56: =IF(AJ54-AJ50<AJ50,0,AJ54-AJ50) -> 0 | AK56: 0 | AL56: 0 | AM56: 0 | AN56: 0 | AO56: 0 | AP56: 0 | AQ56: 0 | AR56: 0 | AS56: 0 | AT56: 0 | AU56: =AVERAGE(AI56:AT56) -> 0
B58: 微信 | R58: 微信 | AH58: 微信
C59: 一月 | D59: 二月 | E59: 三月 | F59: 4月 | G59: 5月 | H59: 6月 | I59: 7月 | J59: 8月 | K59: 9月 | L59: 10月 | M59: 11月 | N59: 12月 | O59: 合共 | S59: 一月 | T59: 二月 | U59: 三月 | V59: 4月 | W59: 5月 | X59: 6月 | Y59: 7月 | Z59: 8月 | AA59: 9月 | AB59: 10月 | AC59: 11月 | AD59: 12月 | AE59: 合共 | AI59: 一月 | AJ59: 二月 | AK59: 三月 | AL59: 4月 | AM59: 5月 | AN59: 6月 | AO59: 7月 | AP59: 8月 | AQ59: 9月 | AR59: 10月 | AS59: 11月 | AT59: 12月 | AU59: 合共
B60: 付款總額 | C60: =S60+AI60 -> 63 | D60: =T60+AJ60 -> 79 | E60: 34 | F60: 104 | G60: 52 | H60: 124 | I60: 78 | J60: 1134 | K60: 316 | L60: 259 | M60: 13149.5 | N60: 20336.2 | O60: =SUM(C60:N60) -> 35728.7 | R60: 付款總額 | S60: =[2]GroupItem!$K$7 -> 63 | T60: =[3]GroupItem!$K$7 -> 79 | U60: =[4]GroupItem!$K$7 -> 34 | V60: =[5]GroupItem!$K$7 -> 104 | W60: =[6]GroupItem!$K$7 -> 52 | X60: =[7]GroupItem!$K$7 -> 124 | Y60: =[8]GroupItem!$K$7 -> 78 | Z60: =[9]GroupItem!$K$7 -> 1134 | AA60: =[10]GroupItem!$K$7 -> 316 | AB60: =[11]GroupItem!$K$7 -> 259 | AC60: =[12]GroupItem!$K$7 -> 13149.5 | AD60: =[13]GroupItem!$K$7 -> 20336.2 | AE60: =SUM(S60:AD60) -> 35728.7 | AH60: 付款總額 | AI60: =[2]GroupItem!$K$8 -> 0 | AJ60: =[3]GroupItem!$K$8 -> 0 | AK60: =[4]GroupItem!$K$8 -> 0 | AL60: =[5]GroupItem!$K$8 -> 0 | AM60: =[6]GroupItem!$K$8 -> 0 | AN60: =[7]GroupItem!$K$8 -> 0 | AO60: =[8]GroupItem!$K$8 -> 0 | AP60: =[9]GroupItem!$K$8 -> 0 | AQ60: =[10]GroupItem!$K$8 -> 0 | AR60: =[11]GroupItem!$K$8 -> 0 | AS60: =[12]GroupItem!$K$8 -> 0 | AT60: =[13]GroupItem!$K$8 -> 0 | AU60: =SUM(AI60:AT60) -> 0
B61: 設定率 | C61: =AVERAGE(S61,AI61) -> 0.01 | R61: 設定率 | S61: ='[14]PAYMENT MASTER'!$D$14 -> 0.01 | T61: ='[14]PAYMENT MASTER'!$D$14 -> 0.01 | U61: ='[14]PAYMENT MASTER'!$D$14 -> 0.01 | V61: ='[14]PAYMENT MASTER'!$D$14 -> 0.01 | W61: ='[14]PAYMENT MASTER'!$D$14 -> 0.01 | X61: ='[14]PAYMENT MASTER'!$D$14 -> 0.01 | Y61: ='[14]PAYMENT MASTER'!$D$14 -> 0.01 | Z61: ='[14]PAYMENT MASTER'!$D$14 -> 0.01 | AA61: ='[14]PAYMENT MASTER'!$D$14 -> 0.01 | AB61: ='[14]PAYMENT MASTER'!$D$14 -> 0.01 | AC61: ='[14]PAYMENT MASTER'!$D$14 -> 0.01 | AD61: ='[14]PAYMENT MASTER'!$D$14 -> 0.01 | AH61: 設定率 | AI61: ='[14]PAYMENT MASTER'!$E$14 -> 0.01 | AJ61: =$AI$61 -> 0.01 | AK61: =$AI$61 -> 0.01 | AL61: 0.01 | AM61: 0.01 | AN61: 0.01 | AO61: 0.01 | AP61: 0.01 | AQ61: 0.01 | AR61: 0.01 | AS61: 0.01 | AT61: 0.01
B62: 設定收款 | C62: 0 | R62: 設定最底收款 | S62: ='[14]PAYMENT MASTER'!$D$15 -> 0 | T62: ='[14]PAYMENT MASTER'!$D$15 -> 0 | U62: ='[14]PAYMENT MASTER'!$D$15 -> 0 | V62: ='[14]PAYMENT MASTER'!$D$15 -> 0 | W62: ='[14]PAYMENT MASTER'!$D$15 -> 0 | X62: ='[14]PAYMENT MASTER'!$D$15 -> 0 | Y62: ='[14]PAYMENT MASTER'!$D$15 -> 0 | Z62: ='[14]PAYMENT MASTER'!$D$15 -> 0 | AA62: ='[14]PAYMENT MASTER'!$D$15 -> 0 | AB62: ='[14]PAYMENT MASTER'!$D$15 -> 0 | AC62: ='[14]PAYMENT MASTER'!$D$15 -> 0 | AD62: ='[14]PAYMENT MASTER'!$D$15 -> 0 | AH62: 設定收款 | AI62: ='[14]PAYMENT MASTER'!$E$15 -> 0 | AJ62: =$AI$62 -> 0 | AK62: =$AI$62 -> 0 | AL62: 0 | AM62: 0 | AN62: 0 | AO62: 0 | AP62: 0 | AQ62: 0 | AR62: 0 | AS62: 0 | AT62: 0
B63: 應付費用 | C63: =S63+AI63 -> 0.63 | R63: 應付費用 | S63: =IF(S60<S62,S62,S60*S61) -> 0.63 | T63: =IF(T60<T62,T62,T60*T61) -> 0.79 | U63: 0.34 | V63: 1.04 | W63: 0.52 | X63: 1.24 | Y63: 0.78 | Z63: 11.34 | AA63: 3.16 | AB63: 2.59 | AC63: 131.495 | AD63: 203.362 | AH63: 應付費用 | AI63: =IF(AI60<AI62,AI62,AI60*AI61) -> 0 | AJ63: =IF(AJ60<AJ62,AJ62,AJ60*AJ61) -> 0 | AK63: 0 | AL63: 0 | AM63: 0 | AN63: 0 | AO63: 0 | AP63: 0 | AQ63: 0 | AR63: 0 | AS63: 0 | AT63: 0
B64: 會計費用 | C64: =S64+AI64 -> 30.25 | R64: 會計費用 | S64: =[1]Analysis!AY$63 -> 30.25 | T64: =[1]Analysis!AZ$63 -> 39 | U64: =[1]Analysis!BA$63 -> 44.39 | V64: =[1]Analysis!BB$63 -> 22.29 | W64: =[1]Analysis!BC$63 -> 23.17 | X64: =[1]Analysis!BD$63 -> 3.06 | Y64: =[1]Analysis!BE$63 -> 67.36 | Z64: =[1]Analysis!BF$63 -> 168.68 | AA64: =[1]Analysis!BG$63 -> 122.57 | AB64: =[1]Analysis!BH$63 -> 205.9 | AC64: =[1]Analysis!BI$63 -> 131.38 | AD64: =[1]Analysis!BJ$63 -> 0 | AH64: 會計費用 | AI64: =[1]Analysis!AY$74 -> 0 | AJ64: =[1]Analysis!AZ$74 -> 0 | AK64: =[1]Analysis!BA$74 -> 0 | AL64: =[1]Analysis!BB$74 -> 0 | AM64: =[1]Analysis!BC$74 -> 0 | AN64: =[1]Analysis!BD$74 -> 0 | AO64: =[1]Analysis!BE$74 -> 0 | AP64: =[1]Analysis!BF$74 -> 0 | AQ64: =[1]Analysis!BG$74 -> 0 | AR64: =[1]Analysis!BH$74 -> 0 | AS64: =[1]Analysis!BI$74 -> 2.04 | AT64: =[1]Analysis!BJ$74 -> 0
B65: 收費率計算 | C65: =AVERAGE(S65,AI65) -> 0.2400793651 | R65: 收費率計算 | S65: =IFERROR(S64/S60,0) -> 0.4801587302 | T65: =IFERROR(T64/T60,0) -> 0.4936708861 | U65: 1.305588235 | V65: 0.2143269231 | W65: 0.4455769231 | X65: 0.02467741935 | Y65: 0.8635897436 | Z65: 0.1487477954 | AA65: 0.3878797468 | AB65: 0.794980695 | AC65: 0.00999125442 | AD65: 0 | AH65: 收費率計算 | AI65: =IFERROR(AI64/AI60,0) -> 0 | AJ65: =IFERROR(AJ64/AJ60,0) -> 0 | AK65: 0 | AL65: 0 | AM65: 0 | AN65: 0 | AO65: 0 | AP65: 0 | AQ65: 0 | AR65: 0 | AS65: 0 | AT65: 0
B66: 費用對比 | C66: =S66+AI66 -> 29.62 | R66: 費用對比 | S66: =IF(S64-S63<0,0,S64-S63) -> 29.62 | T66: =IF(T64-T63<0,0,T64-T63) -> 38.21 | U66: 44.05 | V66: 21.25 | W66: 22.65 | X66: 1.82 | Y66: 66.58 | Z66: 157.34 | AA66: 119.41 | AB66: 203.31 | AC66: 0 | AD66: 0 | AE66: =SUM(S66:AD66) -> 704.24 | AH66: 費用對比 | AI66: =IF(AI64-AI63<0,0,AI64-AI63) -> 0 | AJ66: =IF(AJ64-AJ63<0,0,AJ64-AJ63) -> 0 | AK66: 0 | AL66: 0 | AM66: 0 | AN66: 0 | AO66: 0 | AP66: 0 | AQ66: 0 | AR66: 0 | AS66: 2.04 | AT66: 0 | AU66: =SUM(AI66:AT66) -> 2.04
B67: 收費率對比 | C67: =C61-C65 -> -0.2300793651 | R67: 收費率對比 | S67: =IF(S65-S61<S61,0,S65-S61) -> 0.4701587302 | T67: =IF(T65-T61<T61,0,T65-T61) -> 0.4836708861 | U67: 1.295588235 | V67: 0.2043269231 | W67: 0.4355769231 | X67: 0.01467741935 | Y67: 0.8535897436 | Z67: 0.1387477954 | AA67: 0.3778797468 | AB67: 0.784980695 | AC67: 0 | AD67: 0 | AE67: =AVERAGE(S67:AD67) -> 0.4215997582 | AH67: 收費率對比 | AI67: =IF(AI65-AI61<AI61,0,AI65-AI61) -> 0 | AJ67: =IF(AJ65-AJ61<AJ61,0,AJ65-AJ61) -> 0 | AK67: 0 | AL67: 0 | AM67: 0 | AN67: 0 | AO67: 0 | AP67: 0 | AQ67: 0 | AR67: 0 | AS67: 0 | AT67: 0 | AU67: =AVERAGE(AI67:AT67) -> 0
B69: 戶戶送 | R69: 戶戶送 | AH69: 戶戶送
C70: 一月 | D70: 二月 | E70: 三月 | F70: 4月 | G70: 5月 | H70: 6月 | I70: 7月 | J70: 8月 | K70: 9月 | L70: 10月 | M70: 11月 | N70: 12月 | O70: 合共 | S70: 一月 | T70: 二月 | U70: 三月 | V70: 4月 | W70: 5月 | X70: 6月 | Y70: 7月 | Z70: 8月 | AA70: 9月 | AB70: 10月 | AC70: 11月 | AD70: 12月 | AE70: 合共 | AI70: 一月 | AJ70: 二月 | AK70: 三月 | AL70: 4月 | AM70: 5月 | AN70: 6月 | AO70: 7月 | AP70: 8月 | AQ70: 9月 | AR70: 10月 | AS70: 11月 | AT70: 12月 | AU70: 合共
B71: 付款總額 | C71: =S71+AI71 -> 0 | D71: =T71+AJ71 -> 149 | E71: 0 | F71: 0 | G71: 0 | H71: 0 | I71: 0 | J71: 0 | K71: 0 | L71: 0 | M71: 918 | N71: 477 | O71: =SUM(C71:N71) -> 1544 | R71: 付款總額 | S71: =[2]GroupItem!$P$7 -> 0 | T71: =[3]GroupItem!$P$7 -> 149 | U71: =[4]GroupItem!$P$7 -> 0 | V71: =[5]GroupItem!$P$7 -> 0 | W71: =[6]GroupItem!$P$7 -> 0 | X71: =[7]GroupItem!$P$7 -> 0 | Y71: =[8]GroupItem!$P$7 -> 0 | Z71: =[9]GroupItem!$P$7 -> 0 | AA71: =[10]GroupItem!$P$7 -> 0 | AB71: =[11]GroupItem!$P$7 -> 0 | AC71: =[12]GroupItem!$P$7 -> 918 | AD71: =[13]GroupItem!$P$7 -> 477 | AE71: =SUM(S71:AD71) -> 1544 | AH71: 付款總額 | AI71: =[2]GroupItem!$P$8 -> 0 | AJ71: =[3]GroupItem!$P$8 -> 0 | AK71: =[4]GroupItem!$P$8 -> 0 | AL71: =[5]GroupItem!$P$8 -> 0 | AM71: =[6]GroupItem!$P$8 -> 0 | AN71: =[7]GroupItem!$P$8 -> 0 | AO71: =[8]GroupItem!$P$8 -> 0 | AP71: =[9]GroupItem!$P$8 -> 0 | AQ71: =[10]GroupItem!$P$8 -> 0 | AR71: =[11]GroupItem!$P$8 -> 0 | AS71: =[12]GroupItem!$P$8 -> 0 | AT71: =[13]GroupItem!$P$8 -> 0 | AU71: =SUM(AI71:AT71) -> 0
B72: 設定率 | C72: =AVERAGE(S72,AI72) -> 0.33 | R72: 設定率 | S72: ='[14]PAYMENT MASTER'!$D$16 -> 0.33 | T72: ='[14]PAYMENT MASTER'!$D$16 -> 0.33 | U72: ='[14]PAYMENT MASTER'!$D$16 -> 0.33 | V72: ='[14]PAYMENT MASTER'!$D$16 -> 0.33 | W72: ='[14]PAYMENT MASTER'!$D$16 -> 0.33 | X72: ='[14]PAYMENT MASTER'!$D$16 -> 0.33 | Y72: ='[14]PAYMENT MASTER'!$D$16 -> 0.33 | Z72: ='[14]PAYMENT MASTER'!$D$16 -> 0.33 | AA72: ='[14]PAYMENT MASTER'!$D$16 -> 0.33 | AB72: ='[14]PAYMENT MASTER'!$D$16 -> 0.33 | AC72: ='[14]PAYMENT MASTER'!$D$16 -> 0.33 | AD72: ='[14]PAYMENT MASTER'!$D$16 -> 0.33 | AH72: 設定率 | AI72: ='[14]PAYMENT MASTER'!$E$16 -> 0.33 | AJ72: =$AI$72 -> 0.33 | AK72: =$AI$72 -> 0.33 | AL72: 0.33 | AM72: 0.33 | AN72: 0.33 | AO72: 0.33 | AP72: 0.33 | AQ72: 0.33 | AR72: 0.33 | AS72: 0.33 | AT72: 0.33
B73: 設定收款 | C73: 0 | R73: 設定最底收款 | S73: ='[14]PAYMENT MASTER'!$D$17 -> 0 | T73: ='[14]PAYMENT MASTER'!$D$17 -> 0 | U73: ='[14]PAYMENT MASTER'!$D$17 -> 0 | V73: ='[14]PAYMENT MASTER'!$D$17 -> 0 | W73: ='[14]PAYMENT MASTER'!$D$17 -> 0 | X73: ='[14]PAYMENT MASTER'!$D$17 -> 0 | Y73: ='[14]PAYMENT MASTER'!$D$17 -> 0 | Z73: ='[14]PAYMENT MASTER'!$D$17 -> 0 | AA73: ='[14]PAYMENT MASTER'!$D$17 -> 0 | AB73: ='[14]PAYMENT MASTER'!$D$17 -> 0 | AC73: ='[14]PAYMENT MASTER'!$D$17 -> 0 | AD73: ='[14]PAYMENT MASTER'!$D$17 -> 0 | AH73: 設定收款 | AI73: ='[14]PAYMENT MASTER'!$E$17 -> 0 | AJ73: =$AI$73 -> 0 | AK73: =$AI$73 -> 0 | AL73: 0 | AM73: 0 | AN73: 0 | AO73: 0 | AP73: 0 | AQ73: 0 | AR73: 0 | AS73: 0 | AT73: 0
B74: 應付費用 | C74: =S74+AI74 -> 0 | R74: 應付費用 | S74: =IF(S71<S73,S73,S71*S72) -> 0 | T74: =IF(T71<T73,T73,T71*T72) -> 49.17 | U74: 0 | V74: 0 | W74: 0 | X74: 0 | Y74: 0 | Z74: 0 | AA74: 0 | AB74: 0 | AC74: 302.94 | AD74: 157.41 | AH74: 應付費用 | AI74: =IF(AI71<AI73,AI73,AI71*AI72) -> 0 | AJ74: =IF(AJ71<AJ73,AJ73,AJ71*AJ72) -> 0 | AK74: 0 | AL74: 0 | AM74: 0 | AN74: 0 | AO74: 0 | AP74: 0 | AQ74: 0 | AR74: 0 | AS74: 0 | AT74: 0
B75: 會計費用 | C75: =S75+AI75 -> 145.9 | R75: 會計費用 | S75: =[1]Analysis!AY$64 -> 145.9 | T75: =[1]Analysis!AZ$64 -> 225.75 | U75: =[1]Analysis!BA$64 -> 230.7 | V75: =[1]Analysis!BB$64 -> 163.8 | W75: =[1]Analysis!BC$64 -> 0 | X75: =[1]Analysis!BD$64 -> 0 | Y75: =[1]Analysis!BE$64 -> 107.1 | Z75: =[1]Analysis!BF$64 -> 175.7 | AA75: =[1]Analysis!BG$64 -> 337.4 | AB75: =[1]Analysis!BH$64 -> 207.55 | AC75: =[1]Analysis!BI$64 -> 44.8 | AD75: =[1]Analysis!BJ$64 -> 0 | AH75: 會計費用 | AI75: =[1]Analysis!AY$75 -> 0 | AJ75: =[1]Analysis!AZ$75 -> 0 | AK75: =[1]Analysis!BA$75 -> 0 | AL75: =[1]Analysis!BB$75 -> 0 | AM75: =[1]Analysis!BC$75 -> 0 | AN75: =[1]Analysis!BD$75 -> 0 | AO75: =[1]Analysis!BE$75 -> 0 | AP75: =[1]Analysis!BF$75 -> 0 | AQ75: =[1]Analysis!BG$75 -> 0 | AR75: =[1]Analysis!BH$75 -> 0 | AS75: =[1]Analysis!BI$75 -> 0 | AT75: =[1]Analysis!BJ$75 -> 0
B76: 收費率計算 | C76: =AVERAGE(S76,AI76) -> 0 | R76: 收費率計算 | S76: =IFERROR(S75/S71,0) -> 0 | T76: =IFERROR(T75/T71,0) -> 1.515100671 | U76: 0 | V76: 0 | W76: 0 | X76: 0 | Y76: 0 | Z76: 0 | AA76: 0 | AB76: 0 | AC76: 0.04880174292 | AD76: 0 | AH76: 收費率計算 | AI76: =IFERROR(AI75/AI71,0) -> 0 | AJ76: =IFERROR(AJ75/AJ71,0) -> 0 | AK76: 0 | AL76: 0 | AM76: 0 | AN76: 0 | AO76: 0 | AP76: 0 | AQ76: 0 | AR76: 0 | AS76: 0 | AT76: 0
B77: 費用對比 | C77: =S77+AI77 -> 145.9 | R77: 費用對比 | S77: =IF(S75-S74<0,0,S75-S74) -> 145.9 | T77: =IF(T75-T74<0,0,T75-T74) -> 176.58 | U77: 230.7 | V77: 163.8 | W77: 0 | X77: 0 | Y77: 107.1 | Z77: 175.7 | AA77: 337.4 | AB77: 207.55 | AC77: 0 | AD77: 0 | AE77: =SUM(S77:AD77) -> 1544.73 | AH77: 費用對比 | AI77: =IF(AI75-AI74<0,0,AI75-AI74) -> 0 | AJ77: =IF(AJ75-AJ74<0,0,AJ75-AJ74) -> 0 | AK77: 0 | AL77: 0 | AM77: 0 | AN77: 0 | AO77: 0 | AP77: 0 | AQ77: 0 | AR77: 0 | AS77: 0 | AT77: 0 | AU77: =SUM(AI77:AT77) -> 0
B78: 收費率對比 | C78: =C72-C76 -> 0.33 | R78: 收費率對比 | S78: =IF(S76-S72<S72,0,S76-S72) -> 0 | T78: =IF(T76-T72<T72,0,T76-T72) -> 1.185100671 | U78: 0 | V78: 0 | W78: 0 | X78: 0 | Y78: 0 | Z78: 0 | AA78: 0 | AB78: 0 | AC78: 0 | AD78: 0 | AE78: =AVERAGE(S78:AD78) -> 0.09875838926 | AH78: 收費率對比 | AI78: =IF(AI76-AI72<AI72,0,AI76-AI72) -> 0 | AJ78: =IF(AJ76-AJ72<AJ72,0,AJ76-AJ72) -> 0 | AK78: 0 | AL78: 0 | AM78: 0 | AN78: 0 | AO78: 0 | AP78: 0 | AQ78: 0 | AR78: 0 | AS78: 0 | AT78: 0 | AU78: =AVERAGE(AI78:AT78) -> 0
B80: FOOD PANDA | R80: FOOD PANDA | AH80: FOOD PANDA
C81: 一月 | D81: 二月 | E81: 三月 | F81: 4月 | G81: 5月 | H81: 6月 | I81: 7月 | J81: 8月 | K81: 9月 | L81: 10月 | M81: 11月 | N81: 12月 | O81: 合共 | S81: 一月 | T81: 二月 | U81: 三月 | V81: 4月 | W81: 5月 | X81: 6月 | Y81: 7月 | Z81: 8月 | AA81: 9月 | AB81: 10月 | AC81: 11月 | AD81: 12月 | AE81: 合共 | AI81: 一月 | AJ81: 二月 | AK81: 三月 | AL81: 4月 | AM81: 5月 | AN81: 6月 | AO81: 7月 | AP81: 8月 | AQ81: 9月 | AR81: 10月 | AS81: 11月 | AT81: 12月 | AU81: 合共
B82: 付款總額 | C82: =S82+AI82 -> 70 | D82: =T82+AJ82 -> 0 | E82: 0 | F82: 599 | G82: 0 | H82: 0 | I82: 0 | J82: 0 | K82: 0 | L82: 0 | M82: 993 | N82: 3912 | O82: =SUM(C82:N82) -> 5574 | R82: 付款總額 | S82: =[2]GroupItem!$L$7 -> 70 | T82: =[3]GroupItem!$L$7 -> 0 | U82: =[4]GroupItem!$L$7 -> 0 | V82: =[5]GroupItem!$L$7 -> 599 | W82: =[6]GroupItem!$L$7 -> 0 | X82: =[7]GroupItem!$L$7 -> 0 | Y82: =[8]GroupItem!$L$7 -> 0 | Z82: =[9]GroupItem!$L$7 -> 0 | AA82: =[10]GroupItem!$L$7 -> 0 | AB82: =[11]GroupItem!$L$7 -> 0 | AC82: =[12]GroupItem!$L$7 -> 993 | AD82: =[13]GroupItem!$L$7 -> 3912 | AE82: =SUM(S82:AD82) -> 5574 | AH82: 付款總額 | AI82: =[2]GroupItem!$L$8 -> 0 | AJ82: =[3]GroupItem!$L$8 -> 0 | AK82: =[4]GroupItem!$L$8 -> 0 | AL82: =[5]GroupItem!$L$8 -> 0 | AM82: =[6]GroupItem!$L$8 -> 0 | AN82: =[7]GroupItem!$L$8 -> 0 | AO82: =[8]GroupItem!$L$8 -> 0 | AP82: =[9]GroupItem!$L$8 -> 0 | AQ82: =[10]GroupItem!$L$8 -> 0 | AR82: =[11]GroupItem!$L$8 -> 0 | AS82: =[12]GroupItem!$L$8 -> 0 | AT82: =[13]GroupItem!$L$8 -> 0 | AU82: =SUM(AI82:AT82) -> 0
B83: 設定率 | C83: =AVERAGE(S83,AI83) -> 0.33 | R83: 設定率 | S83: ='[14]PAYMENT MASTER'!$D$18 -> 0.33 | T83: ='[14]PAYMENT MASTER'!$D$18 -> 0.33 | U83: ='[14]PAYMENT MASTER'!$D$18 -> 0.33 | V83: ='[14]PAYMENT MASTER'!$D$18 -> 0.33 | W83: ='[14]PAYMENT MASTER'!$D$18 -> 0.33 | X83: ='[14]PAYMENT MASTER'!$D$18 -> 0.33 | Y83: ='[14]PAYMENT MASTER'!$D$18 -> 0.33 | Z83: ='[14]PAYMENT MASTER'!$D$18 -> 0.33 | AA83: ='[14]PAYMENT MASTER'!$D$18 -> 0.33 | AB83: ='[14]PAYMENT MASTER'!$D$18 -> 0.33 | AC83: ='[14]PAYMENT MASTER'!$D$18 -> 0.33 | AD83: ='[14]PAYMENT MASTER'!$D$18 -> 0.33 | AH83: 設定率 | AI83: ='[14]PAYMENT MASTER'!$E$18 -> 0.33 | AJ83: =$AI$83 -> 0.33 | AK83: =$AI$83 -> 0.33 | AL83: 0.33 | AM83: 0.33 | AN83: 0.33 | AO83: 0.33 | AP83: 0.33 | AQ83: 0.33 | AR83: 0.33 | AS83: 0.33 | AT83: 0.33
B84: 設定收款 | C84: 0 | R84: 設定最底收款 | S84: ='[14]PAYMENT MASTER'!$D$19 -> 0 | T84: ='[14]PAYMENT MASTER'!$D$19 -> 0 | U84: ='[14]PAYMENT MASTER'!$D$19 -> 0 | V84: ='[14]PAYMENT MASTER'!$D$19 -> 0 | W84: ='[14]PAYMENT MASTER'!$D$19 -> 0 | X84: ='[14]PAYMENT MASTER'!$D$19 -> 0 | Y84: ='[14]PAYMENT MASTER'!$D$19 -> 0 | Z84: ='[14]PAYMENT MASTER'!$D$19 -> 0 | AA84: ='[14]PAYMENT MASTER'!$D$19 -> 0 | AB84: ='[14]PAYMENT MASTER'!$D$19 -> 0 | AC84: ='[14]PAYMENT MASTER'!$D$19 -> 0 | AD84: ='[14]PAYMENT MASTER'!$D$19 -> 0 | AH84: 設定收款 | AI84: ='[14]PAYMENT MASTER'!$E$19 -> 0 | AJ84: =$AI$84 -> 0 | AK84: =$AI$84 -> 0 | AL84: 0 | AM84: 0 | AN84: 0 | AO84: 0 | AP84: 0 | AQ84: 0 | AR84: 0 | AS84: 0 | AT84: 0
B85: 應付費用 | C85: =S85+AI85 -> 23.1 | R85: 應付費用 | S85: =IF(S82<S84,S84,S82*S83) -> 23.1 | T85: =IF(T82<T84,T84,T82*T83) -> 0 | U85: 0 | V85: 197.67 | W85: 0 | X85: 0 | Y85: 0 | Z85: 0 | AA85: 0 | AB85: 0 | AC85: 327.69 | AD85: 1290.96 | AH85: 應付費用 | AI85: =IF(AI82<AI84,AI84,AI82*AI83) -> 0 | AJ85: =IF(AJ82<AJ84,AJ84,AJ82*AJ83) -> 0 | AK85: 0 | AL85: 0 | AM85: 0 | AN85: 0 | AO85: 0 | AP85: 0 | AQ85: 0 | AR85: 0 | AS85: 0 | AT85: 0
B86: 會計費用 | C86: =S86+AI86 -> 2295.65 | R86: 會計費用 | S86: =[1]Analysis!AY$65 -> 1471.33 | T86: =[1]Analysis!AZ$65 -> 744.07 | U86: =[1]Analysis!BA$65 -> 272.45 | V86: =[1]Analysis!BB$65 -> 684.74 | W86: =[1]Analysis!BC$65 -> 100.2 | X86: =[1]Analysis!BD$65 -> 0 | Y86: =[1]Analysis!BE$65 -> 306.3 | Z86: =[1]Analysis!BF$65 -> 900.5 | AA86: =[1]Analysis!BG$65 -> 531.73 | AB86: =[1]Analysis!BH$65 -> 122.4 | AC86: =[1]Analysis!BI$65 -> 176.7 | AD86: =[1]Analysis!BJ$65 -> 0 | AH86: 會計費用 | AI86: =[1]Analysis!AY$76 -> 824.32 | AJ86: =[1]Analysis!AZ$76 -> 747.5 | AK86: =[1]Analysis!BA$76 -> 589.04 | AL86: =[1]Analysis!BB$76 -> 577.9 | AM86: =[1]Analysis!BC$76 -> 696.45 | AN86: =[1]Analysis!BD$76 -> 0 | AO86: =[1]Analysis!BE$76 -> 752.98 | AP86: =[1]Analysis!BF$76 -> 342.53 | AQ86: =[1]Analysis!BG$76 -> 463.11 | AR86: =[1]Analysis!BH$76 -> 385 | AS86: =[1]Analysis!BI$76 -> 1319.94 | AT86: =[1]Analysis!BJ$76 -> 0
B87: 收費率計算 | C87: =AVERAGE(S87,AI87) -> 10.5095 | R87: 收費率計算 | S87: =IFERROR(S86/S82,0) -> 21.019 | T87: =IFERROR(T86/T82,0) -> 0 | U87: 0 | V87: 1.143138564 | W87: 0 | X87: 0 | Y87: 0 | Z87: 0 | AA87: 0 | AB87: 0 | AC87: 0.1779456193 | AD87: 0 | AH87: 收費率計算 | AI87: =IFERROR(AI86/AI82,0) -> 0 | AJ87: =IFERROR(AJ86/AJ82,0) -> 0 | AK87: 0 | AL87: 0 | AM87: 0 | AN87: 0 | AO87: 0 | AP87: 0 | AQ87: 0 | AR87: 0 | AS87: 0 | AT87: 0
B88: 費用對比 | C88: =S88+AI88 -> 2272.55 | R88: 費用對比 | S88: =IF(S86-S85<0,0,S86-S85) -> 1448.23 | T88: =IF(T86-T85<0,0,T86-T85) -> 744.07 | U88: 272.45 | V88: 487.07 | W88: 100.2 | X88: 0 | Y88: 306.3 | Z88: 900.5 | AA88: 531.73 | AB88: 122.4 | AC88: 0 | AD88: 0 | AE88: =SUM(S88:AD88) -> 4912.95 | AH88: 費用對比 | AI88: =IF(AI86-AI85<0,0,AI86-AI85) -> 824.32 | AJ88: =IF(AJ86-AJ85<0,0,AJ86-AJ85) -> 747.5 | AK88: 589.04 | AL88: 577.9 | AM88: 696.45 | AN88: 0 | AO88: 752.98 | AP88: 342.53 | AQ88: 463.11 | AR88: 385 | AS88: 1319.94 | AT88: 0 | AU88: =SUM(AI88:AT88) -> 6698.77
B89: 收費率對比 | C89: =C83-C87 -> -10.1795 | R89: 收費率對比 | S89: =IF(S87-S83<S83,0,S87-S83) -> 20.689 | T89: =IF(T87-T83<T83,0,T87-T83) -> 0 | U89: 0 | V89: 0.8131385643 | W89: 0 | X89: 0 | Y89: 0 | Z89: 0 | AA89: 0 | AB89: 0 | AC89: 0 | AD89: 0 | AE89: =AVERAGE(S89:AD89) -> 1.79184488 | AH89: 收費率對比 | AI89: =IF(AI87-AI83<AI83,0,AI87-AI83) -> 0 | AJ89: =IF(AJ87-AJ83<AJ83,0,AJ87-AJ83) -> 0 | AK89: 0 | AL89: 0 | AM89: 0 | AN89: 0 | AO89: 0 | AP89: 0 | AQ89: 0 | AR89: 0 | AS89: 0 | AT89: 0 | AU89: =AVERAGE(AI89:AT89) -> 0
B91: UBEREATS | R91: UBEREATS | AH91: UBEREATS
C92: 一月 | D92: 二月 | E92: 三月 | F92: 4月 | G92: 5月 | H92: 6月 | I92: 7月 | J92: 8月 | K92: 9月 | L92: 10月 | M92: 11月 | N92: 12月 | O92: 合共 | S92: 一月 | T92: 二月 | U92: 三月 | V92: 4月 | W92: 5月 | X92: 6月 | Y92: 7月 | Z92: 8月 | AA92: 9月 | AB92: 10月 | AC92: 11月 | AD92: 12月 | AE92: 合共 | AI92: 一月 | AJ92: 二月 | AK92: 三月 | AL92: 4月 | AM92: 5月 | AN92: 6月 | AO92: 7月 | AP92: 8月 | AQ92: 9月 | AR92: 10月 | AS92: 11月 | AT92: 12月 | AU92: 合共
B93: 付款總額 | C93: =S93+AI93 -> 0 | D93: =T93+AJ93 -> 0 | E93: 0 | F93: 0 | G93: 0 | H93: 0 | I93: 0 | J93: 0 | K93: 0 | L93: 0 | M93: 0 | N93: 0 | O93: =SUM(C93:N93) -> 0 | R93: 付款總額 | S93: =[2]GroupItem!$O$7 -> 0 | T93: =[3]GroupItem!$O$7 -> 0 | U93: =[4]GroupItem!$O$7 -> 0 | V93: =[5]GroupItem!$O$7 -> 0 | W93: =[6]GroupItem!$O$7 -> 0 | X93: =[7]GroupItem!$O$7 -> 0 | Y93: =[8]GroupItem!$O$7 -> 0 | Z93: =[9]GroupItem!$O$7 -> 0 | AA93: =[10]GroupItem!$O$7 -> 0 | AB93: =[11]GroupItem!$O$7 -> 0 | AC93: =[12]GroupItem!$O$7 -> 0 | AD93: =[13]GroupItem!$O$7 -> 0 | AE93: =SUM(S93:AD93) -> 0 | AH93: 付款總額 | AI93: =[2]GroupItem!$O$8 -> 0 | AJ93: =[3]GroupItem!$O$8 -> 0 | AK93: =[4]GroupItem!$O$8 -> 0 | AL93: =[5]GroupItem!$O$8 -> 0 | AM93: =[6]GroupItem!$O$8 -> 0 | AN93: =[7]GroupItem!$O$8 -> 0 | AO93: =[8]GroupItem!$O$7 -> 0 | AP93: =[9]GroupItem!$O$8 -> 0 | AQ93: =[10]GroupItem!$O$8 -> 0 | AR93: =[11]GroupItem!$O$8 -> 0 | AS93: =[12]GroupItem!$O$8 -> 0 | AT93: =[13]GroupItem!$O$8 -> 0 | AU93: =SUM(AI93:AT93) -> 0
B94: 設定率 | C94: =AVERAGE(S94,AI94) -> 0.35 | R94: 設定率 | S94: ='[14]PAYMENT MASTER'!$D$20 -> 0.35 | T94: ='[14]PAYMENT MASTER'!$D$20 -> 0.35 | U94: ='[14]PAYMENT MASTER'!$D$20 -> 0.35 | V94: ='[14]PAYMENT MASTER'!$D$20 -> 0.35 | W94: ='[14]PAYMENT MASTER'!$D$20 -> 0.35 | X94: ='[14]PAYMENT MASTER'!$D$20 -> 0.35 | Y94: ='[14]PAYMENT MASTER'!$D$20 -> 0.35 | Z94: ='[14]PAYMENT MASTER'!$D$20 -> 0.35 | AA94: ='[14]PAYMENT MASTER'!$D$20 -> 0.35 | AB94: ='[14]PAYMENT MASTER'!$D$20 -> 0.35 | AC94: ='[14]PAYMENT MASTER'!$D$20 -> 0.35 | AD94: ='[14]PAYMENT MASTER'!$D$20 -> 0.35 | AH94: 設定率 | AI94: ='[14]PAYMENT MASTER'!$E$20 -> 0.35 | AJ94: =$AI$94 -> 0.35 | AK94: =$AI$94 -> 0.35 | AL94: 0.35 | AM94: 0.35 | AN94: 0.35 | AO94: 0.35 | AP94: 0.35 | AQ94: 0.35 | AR94: 0.35 | AS94: 0.35 | AT94: 0.35
B95: 設定收款 | C95: 0 | R95: 設定最底收款 | S95: ='[14]PAYMENT MASTER'!$D$21 -> 0 | T95: ='[14]PAYMENT MASTER'!$D$21 -> 0 | U95: ='[14]PAYMENT MASTER'!$D$21 -> 0 | V95: ='[14]PAYMENT MASTER'!$D$21 -> 0 | W95: ='[14]PAYMENT MASTER'!$D$21 -> 0 | X95: ='[14]PAYMENT MASTER'!$D$21 -> 0 | Y95: ='[14]PAYMENT MASTER'!$D$21 -> 0 | Z95: ='[14]PAYMENT MASTER'!$D$21 -> 0 | AA95: ='[14]PAYMENT MASTER'!$D$21 -> 0 | AB95: ='[14]PAYMENT MASTER'!$D$21 -> 0 | AC95: ='[14]PAYMENT MASTER'!$D$21 -> 0 | AD95: ='[14]PAYMENT MASTER'!$D$21 -> 0 | AH95: 設定收款 | AI95: ='[14]PAYMENT MASTER'!$E$21 -> 0 | AJ95: =$AI$95 -> 0 | AK95: =$AI$95 -> 0 | AL95: 0 | AM95: 0 | AN95: 0 | AO95: 0 | AP95: 0 | AQ95: 0 | AR95: 0 | AS95: 0 | AT95: 0
B96: 應付費用 | C96: =S96+AI96 -> 0 | R96: 應付費用 | S96: =IF(S93<S95,S95,S93*S94) -> 0 | T96: =IF(T93<T95,T95,T93*T94) -> 0 | U96: 0 | V96: 0 | W96: 0 | X96: 0 | Y96: 0 | Z96: 0 | AA96: 0 | AB96: 0 | AC96: 0 | AD96: 0 | AH96: 應付費用 | AI96: =IF(AI93<AI95,AI95,AI93*AI94) -> 0 | AJ96: =IF(AJ93<AJ95,AJ95,AJ93*AJ94) -> 0 | AK96: 0 | AL96: 0 | AM96: 0 | AN96: 0 | AO96: 0 | AP96: 0 | AQ96: 0 | AR96: 0 | AS96: 0 | AT96: 0
B97: 會計費用 | C97: =S97+AI97 -> 105.6 | R97: 會計費用 | S97: =[1]Analysis!AY$66 -> 26.24 | T97: =[1]Analysis!AZ$66 -> 0 | U97: =[1]Analysis!BA$66 -> 0 | V97: =[1]Analysis!BB$66 -> 0 | W97: =[1]Analysis!BC$66 -> 0 | X97: =[1]Analysis!BD$66 -> 0 | Y97: =[1]Analysis!BE$66 -> 0 | Z97: =[1]Analysis!BF$66 -> 0 | AA97: =[1]Analysis!BG$66 -> 0 | AB97: =[1]Analysis!BH$66 -> 0 | AC97: =[1]Analysis!BI$66 -> 0 | AD97: =[1]Analysis!BJ$66 -> 0 | AH97: 會計費用 | AI97: =[1]Analysis!AY$77 -> 79.36 | AJ97: =[1]Analysis!AZ$77 -> 0 | AK97: =[1]Analysis!BA$77 -> 53.76 | AL97: =[1]Analysis!BB$77 -> 0 | AM97: =[1]Analysis!BC$77 -> 0 | AN97: =[1]Analysis!BD$77 -> 0 | AO97: =[1]Analysis!BE$77 -> 0 | AP97: =[1]Analysis!BF$77 -> 139.52 | AQ97: =[1]Analysis!BG$77 -> 0 | AR97: =[1]Analysis!BH$77 -> 0 | AS97: =[1]Analysis!BI$77 -> 0 | AT97: =[1]Analysis!BJ$77 -> 0
B98: 收費率計算 | C98: =AVERAGE(S98,AI98) -> 0 | R98: 收費率計算 | S98: =IFERROR(S97/S93,0) -> 0 | T98: =IFERROR(T97/T93,0) -> 0 | U98: 0 | V98: 0 | W98: 0 | X98: 0 | Y98: 0 | Z98: 0 | AA98: 0 | AB98: 0 | AC98: 0 | AD98: 0 | AH98: 收費率計算 | AI98: =IFERROR(AI97/AI93,0) -> 0 | AJ98: =IFERROR(AJ97/AJ93,0) -> 0 | AK98: 0 | AL98: 0 | AM98: 0 | AN98: 0 | AO98: 0 | AP98: 0 | AQ98: 0 | AR98: 0 | AS98: 0 | AT98: 0
B99: 費用對比 | C99: =S99+AI99 -> 105.6 | R99: 費用對比 | S99: =IF(S97-S96<0,0,S97-S96) -> 26.24 | T99: =IF(T97-T96<0,0,T97-T96) -> 0 | U99: 0 | V99: 0 | W99: 0 | X99: 0 | Y99: 0 | Z99: 0 | AA99: 0 | AB99: 0 | AC99: 0 | AD99: 0 | AE99: =SUM(S99:AD99) -> 26.24 | AH99: 費用對比 | AI99: =IF(AI97-AI96<0,0,AI97-AI96) -> 79.36 | AJ99: =IF(AJ97-AJ96<0,0,AJ97-AJ96) -> 0 | AK99: 53.76 | AL99: 0 | AM99: 0 | AN99: 0 | AO99: 0 | AP99: 139.52 | AQ99: 0 | AR99: 0 | AS99: 0 | AT99: 0 | AU99: =SUM(AI99:AT99) -> 272.64
B100: 收費率對比 | C100: =C94-C98 -> 0.35 | R100: 收費率對比 | S100: =IF(S98-S94<S94,0,S98-S94) -> 0 | T100: =IF(T98-T94<T94,0,T98-T94) -> 0 | U100: 0 | V100: 0 | W100: 0 | X100: 0 | Y100: 0 | Z100: 0 | AA100: 0 | AB100: 0 | AC100: 0 | AD100: 0 | AE100: =AVERAGE(S100:AD100) -> 0 | AH100: 收費率對比 | AI100: =IF(AI98-AI94<AI94,0,AI98-AI94) -> 0 | AJ100: =IF(AJ98-AJ94<AJ94,0,AJ98-AJ94) -> 0 | AK100: 0 | AL100: 0 | AM100: 0 | AN100: 0 | AO100: 0 | AP100: 0 | AQ100: 0 | AR100: 0 | AS100: 0 | AT100: 0 | AU100: =AVERAGE(AI100:AT100) -> 0

Sheet FoodItem
A1: 字號 | B1: 主類別 | C1: 副類別 | D1: 次類別 | E1: 產品名稱 | F1: 食材分類 | I1: 字號 | J1: 主類別 | K1: 副類別 | P1: 字號 | Q1: 主類別 | R1: 副類別 | S1: 次類別 | T1: 產品名稱 | U1: 食材分類
A2: 品味 | B2: 中式 | C2: 中式粉麵飯 | D2: 中式河 | E2: 鮮蝦雲吞河 | F2: 海鮮 | I2: =INDIRECT("工作表2!M"&I4) -> 品味 | J2: =INDIRECT("工作表2!D"&J4) -> 中式 | K2: =INDIRECT("工作表2!L"&K4) ->  | P2: 品味 | Q2: 中式 | R2: 燒味 | S2: 燒味飯 | T2: 明爐燒鵝髀飯 | U2: 鵝
A3: 品味 | B3: 越式 | C3: 越式粉麵飯 | D3: 越式河 | E3: 雞絲扎肉河 | F3: 雞 | P3: 品味 | Q3: 中式 | R3: 燒味 | S3: 燒味飯 | T3: 海蜇燻蹄飯 | U3: 雜肉
A4: 品味 | B4: 中式 | C4: 中式粉麵飯 | D4: 中式河 | E4: 乾炒牛河 | F4: 牛 | I4: 1 | J4: 1 | K4: 2 | P4: 品味 | Q4: 中式 | R4: 燒味 | S4: 淨燒味 | T4: 紅燒乳鴿 | U4: 鴿
A5: 品味 | B5: 中式 | C5: 中式粉麵飯 | D5: 中式飯 | E5: 揚州炒飯 | F5: 粉麵飯 | P5: 品味 | Q5: 中式 | R5: 燒味 | S5: 淨燒味 | T5: 燒味三拼 | U5: 雜肉
A6: 品味 | B6: 中式 | C6: 中式粉麵飯 | D6: 中式河 | E6: 豬扒炒河 | F6: 豬 | P6: 品味 | Q6: 中式 | R6: 燒味 | S6: 燒味飯 | T6: 燒味三寶飯 | U6: 雜肉
A7: 品味 | B7: 中式 | C7: 中式粉麵飯 | D7: 中式飯 | E7: 田園菜粒炒飯 | F7: 菜 | P7: 品味 | Q7: 中式 | R7: 燒味 | S7: 淨燒味 | T7: 燒味雙拼 | U7: 雜肉
A8: 品味 | B8: 越式 | C8: 越式粉麵飯 | D8: 越式河 | E8: 豬肚絲豬肉丸湯河 | F8: 豬 | P8: 品味 | Q8: 中式 | R8: 燒味 | S8: 燒味飯 | T8: 明爐燒鵝飯 | U8: 鵝
A9: 品味 | B9: 中式 | C9: 中式粉麵飯 | D9: 中式河 | E9: 牛肉拼豬手湯河 | F9: 雜肉 | P9: 品味 | Q9: 中式 | R9: 燒味 | S9: 燒味飯 | T9: 脆皮燒腩仔飯 | U9: 豬
A10: 品味 | B10: 越式 | C10: 檬 | D10: 湯檬 | E10: 蝦餅湯檬 | F10: 海鮮 | P10: 品味 | Q10: 中式 | R10: 燒味 | S10: 燒味飯 | T10: 蜜汁叉燒飯 | U10: 豬
A11: 品味 | B11: 中式 | C11: 中式粉麵飯 | D11: 中式米線 | E11: 雪菜肉碎豬肉丸米線 | F11: 豬 | P11: 品味 | Q11: 中式 | R11: 燒味 | S11: 燒味飯 | T11: 白切雞飯 | U11: 雞
A12: 品味 | B12: 中式 | C12: 中式粉麵飯 | D12: 中式河 | E12: 豉油雞湯河粉 | F12: 雞 | P12: 品味 | Q12: 中式 | R12: 燒味 | S12: 燒味飯 | T12: 豉油雞飯 | U12: 雞
A13: 品味 | B13: 西式 | C13: 西式粉麵飯 | D13: 西式粉麵飯菜式 | E13: 午餐肉肉碎飯 | F13: 豬 | P13: 品味 | Q13: 中式 | R13: 燒味 | S13: 燒味飯 | T13: 燻蹄飯 | U13: 豬
A14: 品味 | B14: 越式 | C14: 越式素菜 | D14: 越式素菜菜式 | E14: 牙車快 | F14: 菜 | P14: 品味 | Q14: 中式 | R14: 燒味 | S14: 燒味飯 | T14: 白切雞髀飯 | U14: 雞
A15: 和味 | B15: 中式 | C15: 中式小菜 | D15: 中式小菜菜式 | E15: 水煮斑球 | F15: 海鮮 | P15: 品味 | Q15: 中式 | R15: 燒味 | S15: 燒味飯 | T15: 豉油雞髀飯 | U15: 雞
A16: 品味 | B16: 越式 | C16: 越式粉麵飯 | D16: 越式其他 | E16: 冬陰功三寶米線 | F16: 雜肉 | P16: 品味 | Q16: 中式 | R16: 燒味 | S16: 燒味飯 | T16: 燒味四寶飯 | U16: 雜肉
A17: 品味 | B17: 越式 | C17: 越式粉麵飯 | D17: 越式河 | E17: 冬陰功湯三寶湯河 | F17: 雜肉 | P17: 品味 | Q17: 中式 | R17: 燒味 | S17: 燒味飯 | T17: 雙拼飯 | U17: 雜肉
A18: 品味 | B18: 越式 | C18: 越式粉麵飯 | D18: 越式河 | E18: 冬陰功湯河 | F18: 雜肉 | P18: 品味 | Q18: 中式 | R18: 燒味 | S18: 淨燒味 | T18: 蜜汁叉燒 | U18: 豬
A19: 和味 | B19: 越式 | C19: 越式粉麵飯 | D19: 越式其他 | E19: 冬陰功三寶米線 | F19: 雜肉 | P19: 品味 | Q19: 中式 | R19: 燒味 | S19: 淨燒味 | T19: 白切農場雞 | U19: 雞
A20: 和味 | B20: 越式 | C20: 越式粉麵飯 | D20: 越式河 | E20: 冬陰功湯三寶湯河 | F20: 雜肉 | P20: 品味 | Q20: 中式 | R20: 燒味 | S20: 淨燒味 | T20: 白切雞脾 | U20: 雞
A21: 和味 | B21: 越式 | C21: 越式粉麵飯 | D21: 越式河 | E21: 冬陰功湯三寶湯河 | F21: 雜肉 | P21: 品味 | Q21: 中式 | R21: 燒味 | S21: 淨燒味 | T21: 燒鵝皇 | U21: 鵝
A22: 和味 | B22: 越式 | C22: 越式粉麵飯 | D22: 越式河 | E22: 冬陰功湯河 | F22: 雜肉 | P22: 品味 | Q22: 中式 | R22: 燒味 | S22: 淨燒味 | T22: 玫瑰豉油雞 | U22: 雞
A23: 品味 | B23: 越式 | C23: 越式粉麵飯 | D23: 越式河 | E23: 冬陰功湯三寶湯河 | F23: 雜肉 | P23: 品味 | Q23: 中式 | R23: 燒味 | S23: 淨燒味 | T23: 迷你拼盤 | U23: 雜肉
A24: 和味 | B24: 越式 | C24: 越式粉麵飯 | D24: 越式其他 | E24: 鮮茄三寶米線 | F24: 雜肉 | P24: 品味 | Q24: 中式 | R24: 燒味 | S24: 淨燒味 | T24: 豉油雞脾 | U24: 雞
A25: 品味 | B25: 越式 | C25: 越式粉麵飯 | D25: 越式其他 | E25: 鮮茄三寶米線 | F25: 雜肉 | P25: 品味 | Q25: 中式 | R25: 燒味 | S25: 淨燒味 | T25: 脆皮三層焼腩仔 | U25: 豬
A26: 和味 | B26: 越式 | C26: 越式粉麵飯 | D26: 越式河 | E26: 鮮茄三寶湯河 | F26: 雜肉 | P26: 品味 | Q26: 中式 | R26: 燒味 | S26: 淨燒味 | T26: 鵝頭 | U26: 鵝
A27: 品味 | B27: 越式 | C27: 越式粉麵飯 | D27: 越式河 | E27: 鮮茄三寶湯河 | F27: 雜肉 | P27: 品味 | Q27: 中式 | R27: 燒味 | S27: 淨燒味 | T27: 鹹蛋 | U27: 鴨
A28: 品味 | B28: 越式 | C28: 檬 | D28: 撈檬 | E28: 迷你春卷撈檬 | F28: 菜 | P28: 品味 | Q28: 中式 | R28: 燒味 | S28: 淨燒味 | T28: 乳豬全體 | U28: 豬
A29: 品味 | B29: 中式 | C29: 中式粉麵飯 | D29: 中式河 | E29: 鮮蝦雲吞河 | F29: 海鮮 | P29: 品味 | Q29: 中式 | R29: 燒味 | S29: 淨燒味 | T29: 油鴨脾拼臘味 | U29: 雜肉
A30: 品味 | B30: 中式 | C30: 中式粉麵飯 | D30: 中式河 | E30: 乾炒雑菜河粉 | F30: 菜
A31: 品味 | B31: 中式 | C31: 燒味 | D31: 燒味飯 | E31: 明爐燒鵝髀飯 | F31: 鵝
A32: 品味 | B32: 越式 | C32: 越式粉麵飯 | D32: 越式飯 | E32: 香茅雞扒煎蛋飯 | F32: 雞
A33: 品味 | B33: 越式 | C33: 越式粉麵飯 | D33: 越式飯 | E33: 香茅豬扒飯 | F33: 豬
A34: 品味 | B34: 越式 | C34: 越式粉麵飯 | D34: 越式飯 | E34: 豬頸肉飯 | F34: 豬
A35: 品味 | B35: 中式 | C35: 中式粉麵飯 | D35: 中式飯 | E35: 欖菜薑米炒飯 | F35: 菜
A36: 和味 | B36: 中式 | C36: 中式小菜 | D36: 中式小菜菜式 | E36: 海皇粉絲雑菜煲 | F36: 海鮮
A37: 品味 | B37: 越式 | C37: 越式粉麵飯 | D37: 越式飯 | E37: 越式三拼飯 | F37: 雜肉
A38: 和味 | B38: 越式 | C38: 越式粉麵飯 | D38: 越式飯 | E38: 越式三拼飯 | F38: 雜肉
A39: 和味 | B39: 越式 | C39: 越式粉麵飯 | D39: 越式飯 | E39: 蝦餅肉碎飯 | F39: 雜肉
A40: 品味 | B40: 越式 | C40: 越式粉麵飯 | D40: 越式飯 | E40: 蝦餅肉碎飯 | F40: 雜肉
A41: 和味 | B41: 越式 | C41: 越式粉麵飯 | D41: 越式飯 | E41: 蝦餅拼餐肉飯 | F41: 雜肉
A42: 品味 | B42: 越式 | C42: 越式粉麵飯 | D42: 越式飯 | E42: 蝦餅拼餐肉飯 | F42: 雜肉
A43: 和味 | B43: 越式 | C43: 越式粉麵飯 | D43: 越式飯 | E43: 餐肉肉碎飯 | F43: 豬
A44: 品味 | B44: 越式 | C44: 越式粉麵飯 | D44: 越式飯 | E44: 餐肉肉碎飯 | F44: 豬
A45: 品味 | B45: 中式 | C45: 燒味 | D45: 燒味飯 | E45: 海蜇燻蹄飯 | F45: 雜肉
A46: 和味 | B46: 越式 | C46: 檬 | D46: 湯檬 | E46: 鮮茄豬肉丸扎肉湯檬 | F46: 豬
A47: 和味 | B47: 越式 | C47: 越式粉麵飯 | D47: 越式河 | E47: 越式三寶湯河 | F47: 雜肉
A48: 品味 | B48: 中式 | C48: 中式頭盤 | D48: 中式頭盤菜式 | E48: 酸辣無骨鳯爪 | F48: 雞
A49: 品味 | B49: 中式 | C49: 燒味 | D49: 淨燒味 | E49: 紅燒乳鴿 | F49: 鴿
A50: 和味 | B50: 中式 | C50: 燒味 | D50: 淨燒味 | E50: 紅燒乳鴿 | F50: 鴿
A51: 品味 | B51: 越式 | C51: 越式素菜 | D51: 越式素菜菜式 | E51: 馬拉盞炒通菜 | F51: 菜
A52: 和味 | B52: 越式 | C52: 越式素菜 | D52: 越式素菜菜式 | E52: 馬拉盞炒通菜 | F52: 菜
A53: 品味 | B53: 中式 | C53: 中式頭盤 | D53: 中式頭盤菜式 | E53: 涼伴豬耳絲 | F53: 豬
A54: 品味 | B54: 中式 | C54: 中式頭盤 | D54: 中式頭盤菜式 | E54: 涼伴豬肚絲 | F54: 豬
A55: 和味 | B55: 中式 | C55: 中式頭盤 | D55: 中式頭盤菜式 | E55: 涼伴豬肚絲 | F55: 豬
A56: 品味 | B56: 中式 | C56: 中式頭盤 | D56: 中式頭盤菜式 | E56: 手拍青瓜 | F56: 菜
A57: 和味 | B57: 中式 | C57: 中式頭盤 | D57: 中式頭盤菜式 | E57: 手拍青瓜 | F57: 菜
A58: 品味 | B58: 中式 | C58: 中式頭盤 | D58: 中式頭盤菜式 | E58: 蔥油海蜇 | F58: 海鮮
A59: 品味 | B59: 越式 | C59: 越式小菜 | D59: 越式小菜菜式 | E59: 迷你春卷 | F59: 菜
A60: 和味 | B60: 越式 | C60: 越式小菜 | D60: 越式小菜菜式 | E60: 迷你春卷 | F60: 菜
A61: 品味 | B61: 中式 | C61: 中式頭盤 | D61: 中式頭盤菜式 | E61: 陳醋雲耳 | F61: 菜
A62: 和味 | B62: 中式 | C62: 中式素菜 | D62: 中式素菜菜式 | E62: 郊外油菜 | F62: 菜
A63: 品味 | B63: 西式 | C63: 西式小食 | D63: 西式小食菜式 | E63: 炸雞中翼配薯條 | F63: 雞
A64: 和味 | B64: 西式 | C64: 西式小食 | D64: 西式小食菜式 | E64: 炸雞中翼配薯條 | F64: 雞
A65: 和味 | B65: 西式 | C65: 西式麵包 | D65: 西式麵包菜式 | E65: 脆脆豬扒包 | F65: 包類
A66: 品味 | B66: 西式 | C66: 西式麵包 | D66: 西式麵包菜式 | E66: 脆脆豬扒包 | F66: 包類
A67: 品味 | B67: 西式 | C67: 西式麵包 | D67: 西式麵包菜式 | E67: 雞扒包 | F67: 包類
A68: 品味 | B68: 越式 | C68: 越式麵包 | D68: 越式麵包菜式 | E68: 扎肉包 | F68: 包類
A69: 品味 | B69: 西式 | C69: 西式小食 | D69: 西式小食菜式 | E69: 炸魚柳薯條 | F69: 海鮮
A70: 和味 | B70: 西式 | C70: 西式小食 | D70: 西式小食菜式 | E70: 炸魚柳薯條 | F70: 海鮮
A71: 和味 | B71: 西式 | C71: 西式麵包 | D71: 西式麵包菜式 | E71: 西多士 | F71: 包類
A72: 品味 | B72: 西式 | C72: 西式麵包 | D72: 西式麵包菜式 | E72: 西多士 | F72: 包類
A73: 品味 | B73: 西式 | C73: 西式小食 | D73: 西式小食菜式 | E73: 雞全翼配蒜蓉包 | F73: 雞
A74: 和味 | B74: 西式 | C74: 西式小食 | D74: 西式小食菜式 | E74: 雞全翼配蒜蓉包 | F74: 雞
A75: 品味 | B75: 西式 | C75: 西式小食 | D75: 西式小食菜式 | E75: 豬肉串配薯條 | F75: 豬
A76: 和味 | B76: 西式 | C76: 西式小食 | D76: 西式小食菜式 | E76: 薯條 | F76: 菜
A77: 品味 | B77: 西式 | C77: 西式小食 | D77: 西式小食菜式 | E77: 牛肉串配薯條 | F77: 牛
A78: 品味 | B78: 西式 | C78: 西式小食 | D78: 西式小食菜式 | E78: 雞肉串配薯條 | F78: 雞
A79: 和味 | B79: 西式 | C79: 西式麵包 | D79: 西式麵包菜式 | E79: 雙拼三文治 | F79: 包類
A80: 品味 | B80: 西式 | C80: 西式麵包 | D80: 西式麵包菜式 | E80: 雙拼三文治 | F80: 包類
A81: 和味 | B81: 西式 | C81: 西式麵包 | D81: 西式麵包菜式 | E81: 雙拼多士 | F81: 包類
A82: 品味 | B82: 西式 | C82: 西式麵包 | D82: 西式麵包菜式 | E82: 雙拼多士 | F82: 包類
A83: 和味 | B83: 西式 | C83: 西式麵包 | D83: 西式麵包菜式 | E83: 公司三文治 | F83: 包類
A84: 和味 | B84: 西式 | C84: 西式麵包 | D84: 西式麵包菜式 | E84: 脆脆豬仔包 | F84: 包類
A85: 品味 | B85: 西式 | C85: 西式麵包 | D85: 西式麵包菜式 | E85: 脆脆豬仔包 | F85: 包類
A86: 品味 | B86: 西式 | C86: 西式麵包 | D86: 西式麵包菜式 | E86: 菠蘿包 | F86: 包類
A87: 品味 | B87: 西式 | C87: 西式麵包 | D87: 西式麵包菜式 | E87: 菠蘿油 | F87: 包類
A88: 和味 | B88: 西式 | C88: 西式麵包 | D88: 西式麵包菜式 | E88: 菠蘿油 | F88: 包類
A89: 和味 | B89: 中式 | C89: 中式粉麵飯 | D89: 中式飯 | E89: 咖喱牛腩飯 | F89: 牛
A90: 品味 | B90: 中式 | C90: 中式粉麵飯 | D90: 中式飯 | E90: 咖喱牛腩飯 | F90: 牛
A91: 品味 | B91: 西式 | C91: 西式粉麵飯 | D91: 西式粉麵飯菜式 | E91: 薯仔雞脾飯 | F91: 雞
A92: 和味 | B92: 中式 | C92: 中式小菜 | D92: 中式小菜菜式 | E92: 尖椒炒豬肚 | F92: 豬
A93: 品味 | B93: 中式 | C93: 中式小菜 | D93: 中式小菜菜式 | E93: 尖椒炒豬肚 | F93: 豬
A94: 品味 | B94: 中式 | C94: 中式小菜 | D94: 中式小菜菜式 | E94: 啫啫通菜蝦乾煲 | F94: 菜
A95: 品味 | B95: 中式 | C95: 中式小菜 | D95: 中式小菜菜式 | E95: 麻婆豆腐 | F95: 菜
A96: 和味 | B96: 中式 | C96: 中式小菜 | D96: 中式小菜菜式 | E96: 麻婆豆腐 | F96: 菜
A97: 和味 | B97: 中式 | C97: 中式小菜 | D97: 中式小菜菜式 | E97: 麻辣豆角炒肥牛 | F97: 牛
A98: 品味 | B98: 中式 | C98: 中式小菜 | D98: 中式小菜菜式 | E98: 麻辣豆角炒肥牛 | F98: 牛
A99: 和味 | B99: 中式 | C99: 中式小菜 | D99: 中式小菜菜式 | E99: 啫啫通菜蝦乾煲 | F99: 菜
A100: 和味 | B100: 中式 | C100: 中式小菜 | D100: 中式小菜菜式 | E100: 蝦醬通菜炒牛肉 | F100: 牛
A101: 品味 | B101: 中式 | C101: 中式小菜 | D101: 中式小菜菜式 | E101: 蝦醬通菜炒牛肉 | F101: 牛
A102: 品味 | B102: 中式 | C102: 中式小菜 | D102: 中式小菜菜式 | E102: 鮮茄牛肉 | F102: 牛
A103: 品味 | B103: 中式 | C103: 中式小菜 | D103: 中式小菜菜式 | E103: 醬爆蝦球 | F103: 海鮮
A104: 和味 | B104: 中式 | C104: 中式小菜 | D104: 中式小菜菜式 | E104: 醬爆蝦球 | F104: 海鮮
A105: 品味 | B105: 中式 | C105: 中式小菜 | D105: 中式小菜菜式 | E105: 冬瓜火腩煲 | F105: 豬
A106: 和味 | B106: 中式 | C106: 中式小菜 | D106: 中式小菜菜式 | E106: 冬瓜火腩煲 | F106: 豬
A107: 品味 | B107: 中式 | C107: 中式小菜 | D107: 中式小菜菜式 | E107: 枝竹豆卜火腩飯 | F107: 豬
A108: 和味 | B108: 中式 | C108: 中式小菜 | D108: 中式小菜菜式 | E108: 枝竹豆卜火腩飯 | F108: 豬
A109: 品味 | B109: 中式 | C109: 中式小菜 | D109: 中式小菜菜式 | E109: 節瓜排骨煲 | F109: 豬
A110: 和味 | B110: 中式 | C110: 中式小菜 | D110: 中式小菜菜式 | E110: 節瓜排骨煲 | F110: 豬
A111: 品味 | B111: 中式 | C111: 中式小菜 | D111: 中式小菜菜式 | E111: 鮮茄牛肉 | F111: 牛
A112: 和味 | B112: 中式 | C112: 中式小菜 | D112: 中式小菜菜式 | E112: 鮮茄牛肉 | F112: 牛
A113: 品味 | B113: 中式 | C113: 中式小菜 | D113: 中式小菜菜式 | E113: 欖菜肉碎四季豆 | F113: 雜肉
A114: 和味 | B114: 中式 | C114: 中式小菜 | D114: 中式小菜菜式 | E114: 欖菜肉碎四季豆 | F114: 雜肉
A115: 品味 | B115: 中式 | C115: 中式小菜 | D115: 中式小菜菜式 | E115: 土魷蒸肉餅 | F115: 豬
A116: 和味 | B116: 中式 | C116: 中式小菜 | D116: 中式小菜菜式 | E116: 土魷蒸肉餅 | F116: 豬
A117: 品味 | B117: 中式 | C117: 中式小菜 | D117: 中式小菜菜式 | E117: 南瓜蒸排骨 | F117: 豬
A118: 品味 | B118: 中式 | C118: 中式小菜 | D118: 中式小菜菜式 | E118: 蝦醬豆卜蒸腩片 | F118: 海鮮
A119: 和味 | B119: 中式 | C119: 中式小菜 | D119: 中式小菜菜式 | E119: 蝦醬豆卜蒸腩片 | F119: 海鮮
A120: 品味 | B120: 中式 | C120: 中式小菜 | D120: 中式小菜菜式 | E120: 蟲草花蒸雞 | F120: 雞
A121: 和味 | B121: 中式 | C121: 中式小菜 | D121: 中式小菜菜式 | E121: 蟲草花蒸雞 | F121: 雞
A122: 品味 | B122: 中式 | C122: 中式小菜 | D122: 中式小菜菜式 | E122: 鹹蛋蒸肉餅 | F122: 豬
A123: 和味 | B123: 中式 | C123: 中式小菜 | D123: 中式小菜菜式 | E123: 鹹蛋蒸肉餅 | F123: 豬
A124: 品味 | B124: 中式 | C124: 中式小菜 | D124: 中式小菜菜式 | E124: 啫啫通菜蝦乾煲 | F124: 菜
A125: 品味 | B125: 中式 | C125: 中式小菜 | D125: 中式小菜菜式 | E125: 虎皮尖椒肉碎 | F125: 菜
A126: 和味 | B126: 中式 | C126: 中式小菜 | D126: 中式小菜菜式 | E126: 虎皮尖椒肉碎 | F126: 菜
A127: 品味 | B127: 中式 | C127: 中式小菜 | D127: 中式小菜菜式 | E127: 茄子班腩煲 | F127: 海鮮
A128: 和味 | B128: 中式 | C128: 中式小菜 | D128: 中式小菜菜式 | E128: 茄子班腩煲 | F128: 海鮮
A129: 品味 | B129: 中式 | C129: 中式小菜 | D129: 中式小菜菜式 | E129: 豉椒涼瓜炒鮮魷 | F129: 海鮮
A130: 和味 | B130: 中式 | C130: 中式小菜 | D130: 中式小菜菜式 | E130: 豉椒涼瓜炒鮮魷 | F130: 海鮮
A131: 和味 | B131: 中式 | C131: 中式小菜 | D131: 中式小菜菜式 | E131: 啫啫通菜蝦乾煲 | F131: 菜
A132: 品味 | B132: 中式 | C132: 中式小菜 | D132: 中式小菜菜式 | E132: 粟米魚柳 | F132: 海鮮
A133: 和味 | B133: 中式 | C133: 中式小菜 | D133: 中式小菜菜式 | E133: 粟米魚柳 | F133: 海鮮
A134: 品味 | B134: 中式 | C134: 中式小菜 | D134: 中式小菜菜式 | E134: 薑蔥魚腩枝竹煲 | F134: 海鮮
A135: 和味 | B135: 中式 | C135: 中式小菜 | D135: 中式小菜菜式 | E135: 薑蔥魚腩枝竹煲 | F135: 海鮮
A136: 品味 | B136: 中式 | C136: 中式小菜 | D136: 中式小菜菜式 | E136: 西芹雲耳炒雞柳 | F136: 雞
A137: 和味 | B137: 中式 | C137: 中式小菜 | D137: 中式小菜菜式 | E137: 西芹雲耳炒雞柳 | F137: 雞
A138: 品味 | B138: 中式 | C138: 中式小菜 | D138: 中式小菜菜式 | E138: 豆豉凌魚油麥菜炒扎肉 | F138: 雜肉
A139: 品味 | B139: 中式 | C139: 中式小菜 | D139: 中式小菜菜式 | E139: 沙嗲金菇肥牛粉絲煲 | F139: 牛
A140: 和味 | B140: 中式 | C140: 中式小菜 | D140: 中式小菜菜式 | E140: 沙嗲金菇肥牛粉絲煲 | F140: 牛
A141: 和味 | B141: 中式 | C141: 中式小菜 | D141: 中式小菜菜式 | E141: 豆豉凌魚油麥菜炒扎肉 | F141: 雜肉
A142: 和味 | B142: 中式 | C142: 中式小菜 | D142: 中式小菜菜式 | E142: 青瓜雲耳炒牛肉 | F142: 牛
A143: 品味 | B143: 中式 | C143: 中式小菜 | D143: 中式小菜菜式 | E143: 蒜心炒蝦球 | F143: 海鮮
A144: 和味 | B144: 中式 | C144: 中式小菜 | D144: 中式小菜菜式 | E144: 蒜心炒蝦球 | F144: 海鮮
A145: 品味 | B145: 中式 | C145: 中式小菜 | D145: 中式小菜菜式 | E145: 薑蔥蒸黃花魚 | F145: 海鮮
A146: 和味 | B146: 中式 | C146: 中式海鮮 | D146: 中式海鮮菜式 | E146: 薑蔥蒸黃花魚 | F146: 海鮮
A147: 品味 | B147: 中式 | C147: 中式小菜 | D147: 中式小菜菜式 | E147: XO醬雜菇炒蝦球 | F147: 海鮮
A148: 和味 | B148: 中式 | C148: 中式小菜 | D148: 中式小菜菜式 | E148: XO醬雜菇炒蝦球 | F148: 海鮮
A149: 品味 | B149: 中式 | C149: 中式小菜 | D149: 中式小菜菜式 | E149: XO醬雜菇炒雞球 | F149: 雞
A150: 和味 | B150: 中式 | C150: 中式小菜 | D150: 中式小菜菜式 | E150: XO醬雜菇炒雞球 | F150: 雞
A151: 品味 | B151: 中式 | C151: 中式海鮮 | D151: 中式海鮮菜式 | E151: 果皮蒸泥孟 | F151: 海鮮
A152: 和味 | B152: 中式 | C152: 中式小菜 | D152: 中式海鮮菜式 | E152: 果皮蒸泥孟 | F152: 海鮮
A153: 品味 | B153: 中式 | C153: 中式小菜 | D153: 中式小菜菜式 | E153: 海皇粉絲雑菜煲 | F153: 海鮮
A154: 和味 | B154: 中式 | C154: 中式小菜 | D154: 中式小菜菜式 | E154: 海皇粉絲雑菜煲 | F154: 海鮮
A155: 品味 | B155: 中式 | C155: 中式海鮮 | D155: 中式海鮮菜式 | E155: 豉汁蒸盲曹 | F155: 海鮮
A156: 和味 | B156: 中式 | C156: 中式海鮮 | D156: 中式海鮮菜式 | E156: 豉汁蒸盲曹 | F156: 海鮮
A157: 品味 | B157: 中式 | C157: 中式小菜 | D157: 中式小菜菜式 | E157: 雲吞雞煲 | F157: 雞
A158: 品味 | B158: 中式 | C158: 中式小菜 | D158: 中式小菜菜式 | E158: 翠玉瓜炒蝦球 | F158: 海鮮
A159: 和味 | B159: 中式 | C159: 中式小菜 | D159: 中式小菜菜式 | E159: 翠玉瓜炒蝦球 | F159: 海鮮
A160: 品味 | B160: 中式 | C160: 燒味 | D160: 淨燒味 | E160: 燒味三拼 | F160: 雜肉
A161: 和味 | B161: 中式 | C161: 燒味 | D161: 淨燒味 | E161: 燒味三拼 | F161: 雜肉
A162: 品味 | B162: 中式 | C162: 燒味 | D162: 淨燒味 | E162: 燒味三拼 | F162: 雜肉
A163: 品味 | B163: 中式 | C163: 燒味 | D163: 燒味飯 | E163: 燒味三寶飯 | F163: 雜肉
A164: 和味 | B164: 中式 | C164: 燒味 | D164: 燒味飯 | E164: 燒味三寶飯 | F164: 雜肉
A165: 和味 | B165: 中式 | C165: 燒味 | D165: 淨燒味 | E165: 燒味雙拼 | F165: 雜肉
A166: 和味 | B166: 中式 | C166: 燒味 | D166: 淨燒味 | E166: 燒味雙拼 | F166: 雜肉
A167: 品味 | B167: 中式 | C167: 燒味 | D167: 淨燒味 | E167: 燒味雙拼 | F167: 雜肉
A168: 品味 | B168: 中式 | C168: 中式海鮮 | D168: 中式海鮮菜式 | E168: 鮑魚拼鮑片 | F168: 海鮮
A169: 和味 | B169: 中式 | C169: 中式海鮮 | D169: 中式海鮮菜式 | E169: 鮑魚拼鮑片 | F169: 海鮮
A170: 品味 | B170: 越式 | C170: 越式粉麵飯 | D170: 越式飯 | E170: 香茅牛肉餐肉飯 | F170: 雜肉
A171: 和味 | B171: 越式 | C171: 越式粉麵飯 | D171: 越式飯 | E171: 香茅牛肉煎蛋飯 | F171: 牛
A172: 品味 | B172: 越式 | C172: 越式粉麵飯 | D172: 越式飯 | E172: 香茅牛肉煎蛋飯 | F172: 牛
A173: 和味 | B173: 越式 | C173: 越式粉麵飯 | D173: 越式飯 | E173: 香茅牛肉餐肉飯 | F173: 雜肉
A174: 品味 | B174: 越式 | C174: 越式粉麵飯 | D174: 越式飯 | E174: 香茅雞扒拼餐肉飯 | F174: 雞
A175: 和味 | B175: 越式 | C175: 越式粉麵飯 | D175: 越式飯 | E175: 香茅雞翼煎蛋飯 | F175: 雞
A176: 品味 | B176: 越式 | C176: 越式粉麵飯 | D176: 越式飯 | E176: 香茅雞翼煎蛋飯 | F176: 雞
A177: 品味 | B177: 西式 | C177: 西式粉麵飯 | D177: 西式粉麵飯菜式 | E177: 豬扒餐肉飯 | F177: 豬
A178: 和味 | B178: 西式 | C178: 西式粉麵飯 | D178: 西式粉麵飯菜式 | E178: 豬扒餐肉飯 | F178: 豬
A179: 和味 | B179: 西式 | C179: 西式粉麵飯 | D179: 西式粉麵飯菜式 | E179: 豬頸肉煎蛋飯 | F179: 豬
A180: 品味 | B180: 西式 | C180: 西式粉麵飯 | D180: 西式粉麵飯菜式 | E180: 豬頸肉煎蛋飯 | F180: 豬
A181: 和味 | B181: 西式 | C181: 西式粉麵飯 | D181: 西式粉麵飯菜式 | E181: 雞扒餐肉飯 | F181: 雜肉
A182: 和味 | B182: 越式 | C182: 越式粉麵飯 | D182: 越式河 | E182: 牛肉拼豬肉丸湯河 | F182: 雜肉
A183: 品味 | B183: 越式 | C183: 越式粉麵飯 | D183: 越式河 | E183: 牛肉拼豬肉丸湯河 | F183: 雜肉
A184: 和味 | B184: 越式 | C184: 越式粉麵飯 | D184: 越式河 | E184: 牛肉拼豬肚絲湯河 | F184: 雜肉
A185: 品味 | B185: 越式 | C185: 越式粉麵飯 | D185: 越式河 | E185: 牛肉拼豬肚絲湯河 | F185: 雜肉
A186: 和味 | B186: 中式 | C186: 中式粉麵飯 | D186: 中式飯 | E186: 南乳豬手飯 | F186: 豬
A187: 品味 | B187: 中式 | C187: 中式粉麵飯 | D187: 中式飯 | E187: 南乳豬手飯 | F187: 豬
A188: 和味 | B188: 越式 | C188: 越式粉麵飯 | D188: 越式河 | E188: 豬肚絲拼扎肉湯河 | F188: 雜肉
A189: 品味 | B189: 越式 | C189: 越式粉麵飯 | D189: 越式河 | E189: 豬肚絲拼扎肉湯河 | F189: 雜肉
A190: 品味 | B190: 越式 | C190: 越式粉麵飯 | D190: 越式河 | E190: 牛肉拼豬肉丸湯河 | F190: 雜肉
A191: 品味 | B191: 西式 | C191: 西式粉麵飯 | D191: 西式粉麵飯菜式 | E191: 雞絲煎蛋通粉 | F191: 粉麵飯
A192: 品味 | B192: 越式 | C192: 越式粉麵飯 | D192: 越式河 | E192: 河內生牛肉湯河 | F192: 牛
A193: 品味 | B193: 越式 | C193: 越式粉麵飯 | D193: 越式河 | E193: 香茅豬扒湯河 | F193: 豬
A194: 品味 | B194: 越式 | C194: 越式粉麵飯 | D194: 越式河 | E194: 牛肉拼豬肚絲湯河 | F194: 雜肉
A195: 品味 | B195: 越式 | C195: 越式粉麵飯 | D195: 越式河 | E195: 牛肉拼豬肚絲湯河 | F195: 雜肉
A196: 品味 | B196: 越式 | C196: 越式粉麵飯 | D196: 越式河 | E196: 豬肉丸拼豬肚絲湯河 | F196: 雜肉
A197: 品味 | B197: 越式 | C197: 檬 | D197: 湯檬 | E197: 豬肉丸拼豬肚絲湯檬 | F197: 豬
A198: 品味 | B198: 中式 | C198: 中式粉麵飯 | D198: 中式其他 | E198: 雪菜肉碎拼紅腸米粉 | F198: 雜肉
A199: 品味 | B199: 越式 | C199: 檬 | D199: 湯檬 | E199: 香茅雞扒湯檬 | F199: 雞
A200: 品味 | B200: 中式 | C200: 中式粉麵飯 | D200: 中式河 | E200: 雪菜肉碎拼雲吞河 | F200: 雜肉
... 807 more rows

Sheet 工作表1
B3: 店舖
B4: 主類別
B5: 副類別
B6: =LOOKUP(F12,DataNov.xlsm!UniFoodItem[gdName],DataNov.xlsm!UniFoodItem[amount])
B7: =INDIRECT("[DataNov.xlsm]UniGroup!$G" & MATCH(F12,DataNov.xlsm!UniFoodItem[gdName],0)+4)
B11: 店舖 | C11: 主類別 | D11: 副類別 | E11: 次類別 | F11: 食品名稱 | G11: 主食材 | H11: 總銷售額 | I11: 一月 | J11: 二月 | K11: 三月 | L11: 4月 | M11: 5月 | N11: 6月 | O11: 7月 | P11: 8月 | Q11: 9月 | R11: 10月 | S11: 11月 | T11: 12月
B12: 品味 | C12: 中式 | D12: 燒味 | E12: 燒味飯 | F12: 明爐燒鵝髀飯 | G12: 鵝 | H12: =SUM(I12:T12) -> 4185 | R12: =[12]UniGroup!$G117 -> 4185
B13: 品味 | C13: 中式 | D13: 燒味 | E13: 燒味飯 | F13: 海蜇燻蹄飯 | G13: 雜肉 | H13: =SUM(I13:T13) -> 0
B14: 品味 | C14: 中式 | D14: 燒味 | E14: 淨燒味 | F14: 紅燒乳鴿 | G14: 鴿 | H14: 0
B15: 品味 | C15: 中式 | D15: 燒味 | E15: 淨燒味 | F15: 燒味三拼 | G15: 雜肉 | H15: 0
B16: 品味 | C16: 中式 | D16: 燒味 | E16: 燒味飯 | F16: 燒味三寶飯 | G16: 雜肉 | H16: 0
B17: 品味 | C17: 中式 | D17: 燒味 | E17: 淨燒味 | F17: 燒味雙拼 | G17: 雜肉 | H17: 0
B18: 品味 | C18: 中式 | D18: 燒味 | E18: 燒味飯 | F18: 明爐燒鵝飯 | G18: 鵝 | H18: 0
B19: 品味 | C19: 中式 | D19: 燒味 | E19: 燒味飯 | F19: 脆皮燒腩仔飯 | G19: 豬 | H19: =SUM(I19:T19) -> 0
B20: 品味 | C20: 中式 | D20: 燒味 | E20: 燒味飯 | F20: 蜜汁叉燒飯 | G20: 豬 | H20: 0
B21: 品味 | C21: 中式 | D21: 燒味 | E21: 燒味飯 | F21: 白切雞飯 | G21: 雞 | H21: 0
B22: 品味 | C22: 中式 | D22: 燒味 | E22: 燒味飯 | F22: 豉油雞飯 | G22: 雞 | H22: 0
B23: 品味 | C23: 中式 | D23: 燒味 | E23: 燒味飯 | F23: 燻蹄飯 | G23: 豬 | H23: 0
B24: 品味 | C24: 中式 | D24: 燒味 | E24: 燒味飯 | F24: 白切雞髀飯 | G24: 雞 | H24: 0
B25: 品味 | C25: 中式 | D25: 燒味 | E25: 燒味飯 | F25: 豉油雞髀飯 | G25: 雞 | H25: 0
B26: 品味 | C26: 中式 | D26: 燒味 | E26: 燒味飯 | F26: 燒味四寶飯 | G26: 雜肉 | H26: 0
B27: 品味 | C27: 中式 | D27: 燒味 | E27: 燒味飯 | F27: 雙拼飯 | G27: 雜肉 | H27: 0
B28: 品味 | C28: 中式 | D28: 燒味 | E28: 淨燒味 | F28: 蜜汁叉燒 | G28: 豬 | H28: 0
B29: 品味 | C29: 中式 | D29: 燒味 | E29: 淨燒味 | F29: 白切農場雞 | G29: 雞 | H29: 0
B30: 品味 | C30: 中式 | D30: 燒味 | E30: 淨燒味 | F30: 白切雞脾 | G30: 雞 | H30: 0
B31: 品味 | C31: 中式 | D31: 燒味 | E31: 淨燒味 | F31: 燒鵝皇 | G31: 鵝 | H31: 0
B32: 品味 | C32: 中式 | D32: 燒味 | E32: 淨燒味 | F32: 玫瑰豉油雞 | G32: 雞 | H32: 0
B33: 品味 | C33: 中式 | D33: 燒味 | E33: 淨燒味 | F33: 迷你拼盤 | G33: 雜肉 | H33: 0
B34: 品味 | C34: 中式 | D34: 燒味 | E34: 淨燒味 | F34: 豉油雞脾 | G34: 雞 | H34: 0
B35: 品味 | C35: 中式 | D35: 燒味 | E35: 淨燒味 | F35: 脆皮三層焼腩仔 | G35: 豬 | H35: 0
B36: 品味 | C36: 中式 | D36: 燒味 | E36: 淨燒味 | F36: 鵝頭 | G36: 鵝 | H36: 0
B37: 品味 | C37: 中式 | D37: 燒味 | E37: 淨燒味 | F37: 鹹蛋 | G37: 鴨 | H37: 0
B38: 品味 | C38: 中式 | D38: 燒味 | E38: 淨燒味 | F38: 乳豬全體 | G38: 豬 | H38: 0
B39: 品味 | C39: 中式 | D39: 燒味 | E39: 淨燒味 | F39: 油鴨脾拼臘味 | G39: 雜肉 | H39: 0

Sheet 工作表2
B1: ='[14]FOOD TYPE MASTER'!$B3 -> 食材分類 | D1: ='[14]MENU MASTER'!$A3 -> 中式 | F1: ='[14]MENU MASTER'!$B4 -> 中式頭盤 | G1: ='[14]MENU MASTER'!$C4 -> 西式小食 | H1: ='[14]MENU MASTER'!$D4 -> 越式小菜 | I1: ='[14]MENU MASTER'!$E4 -> 酒精 | J1: ='[14]MENU MASTER'!$F4 -> 餐牌其他 | L1: =_xlfn.IFS(FoodItem!$J$4=1,F1,FoodItem!$J$4=2,G1,FoodItem!$J$4=3,H1,FoodItem!$J$4=4,I1,FoodItem!$J$4=5,J1) ->  | M1: 品味
B2: ='[14]FOOD TYPE MASTER'!$B4 -> 無分類 | D2: ='[14]MENU MASTER'!$A4 -> 西式 | F2: ='[14]MENU MASTER'!$B5 -> 燒味 | G2: ='[14]MENU MASTER'!$C5 -> 西式麵包 | H2: ='[14]MENU MASTER'!$D5 -> 越式燒物 | I2: ='[14]MENU MASTER'!$E5 -> 無酒精 | J2: ='[14]MENU MASTER'!$F5 -> 0 | L2: =_xlfn.IFS(FoodItem!$J$4=1,F2,FoodItem!$J$4=2,G2,FoodItem!$J$4=3,H2,FoodItem!$J$4=4,I2,FoodItem!$J$4=5,J2) ->  | M2: 和味
B3: ='[14]FOOD TYPE MASTER'!$B5 -> 豬 | D3: ='[14]MENU MASTER'!$A5 -> 越式 | F3: ='[14]MENU MASTER'!$B6 -> 中式小菜 | G3: ='[14]MENU MASTER'!$C6 -> 西式粉麵飯 | H3: ='[14]MENU MASTER'!$D6 -> 越式海鮮 | I3: ='[14]MENU MASTER'!$E6 -> 0 | J3: ='[14]MENU MASTER'!$F6 -> 0 | L3: =_xlfn.IFS(FoodItem!$J$4=1,F3,FoodItem!$J$4=2,G3,FoodItem!$J$4=3,H3,FoodItem!$J$4=4,I3,FoodItem!$J$4=5,J3) ->  | M3: 全部
B4: ='[14]FOOD TYPE MASTER'!$B6 -> 牛 | D4: ='[14]MENU MASTER'!$A6 -> 飲料 | F4: ='[14]MENU MASTER'!$B7 -> 中式海鮮 | G4: ='[14]MENU MASTER'!$C7 -> 0 | H4: ='[14]MENU MASTER'!$D7 -> 咖喱 | I4: ='[14]MENU MASTER'!$E7 -> 0 | J4: ='[14]MENU MASTER'!$F7 -> 0 | L4: =_xlfn.IFS(FoodItem!$J$4=1,F4,FoodItem!$J$4=2,G4,FoodItem!$J$4=3,H4,FoodItem!$J$4=4,I4,FoodItem!$J$4=5,J4) -> 
B5: ='[14]FOOD TYPE MASTER'!$B7 -> 羊 | D5: ='[14]MENU MASTER'!$A7 -> 其他 | F5: ='[14]MENU MASTER'!$B8 -> 中式素菜 | G5: ='[14]MENU MASTER'!$C8 -> 0 | H5: ='[14]MENU MASTER'!$D8 -> 越式素菜 | I5: ='[14]MENU MASTER'!$E8 -> 0 | J5: ='[14]MENU MASTER'!$F8 -> 0 | L5: =_xlfn.IFS(FoodItem!$J$4=1,F5,FoodItem!$J$4=2,G5,FoodItem!$J$4=3,H5,FoodItem!$J$4=4,I5,FoodItem!$J$4=5,J5) -> 
B6: ='[14]FOOD TYPE MASTER'!$B8 -> 雞 | D6: ='[14]MENU MASTER'!$A8 ->  | F6: ='[14]MENU MASTER'!$B9 -> 中式粉麵飯 | G6: ='[14]MENU MASTER'!$C9 -> 0 | H6: ='[14]MENU MASTER'!$D9 -> 米紙卷 | I6: ='[14]MENU MASTER'!$E9 -> 0 | J6: ='[14]MENU MASTER'!$F9 -> 0 | L6: =_xlfn.IFS(FoodItem!$J$4=1,F6,FoodItem!$J$4=2,G6,FoodItem!$J$4=3,H6,FoodItem!$J$4=4,I6,FoodItem!$J$4=5,J6) -> 
B7: ='[14]FOOD TYPE MASTER'!$B9 -> 鴨 | D7: ='[14]MENU MASTER'!$A9 ->  | F7: ='[14]MENU MASTER'!$B10 -> 中式湯 | G7: ='[14]MENU MASTER'!$C10 -> 0 | H7: ='[14]MENU MASTER'!$D10 -> 檬 | I7: ='[14]MENU MASTER'!$E10 -> 0 | J7: ='[14]MENU MASTER'!$F10 -> 0 | L7: =_xlfn.IFS(FoodItem!$J$4=1,F7,FoodItem!$J$4=2,G7,FoodItem!$J$4=3,H7,FoodItem!$J$4=4,I7,FoodItem!$J$4=5,J7) -> 
B8: ='[14]FOOD TYPE MASTER'!$B10 -> 鵝 | D8: ='[14]MENU MASTER'!$A10 ->  | F8: ='[14]MENU MASTER'!$B11 -> 0 | G8: ='[14]MENU MASTER'!$C11 -> 0 | H8: ='[14]MENU MASTER'!$D11 -> 越式麵包 | I8: ='[14]MENU MASTER'!$E11 -> 0 | J8: ='[14]MENU MASTER'!$F11 -> 0 | L8: =_xlfn.IFS(FoodItem!$J$4=1,F8,FoodItem!$J$4=2,G8,FoodItem!$J$4=3,H8,FoodItem!$J$4=4,I8,FoodItem!$J$4=5,J8) -> 
B9: ='[14]FOOD TYPE MASTER'!$B11 -> 鴿 | D9: ='[14]MENU MASTER'!$A11 ->  | F9: ='[14]MENU MASTER'!$B12 -> 0 | G9: ='[14]MENU MASTER'!$C12 -> 0 | H9: ='[14]MENU MASTER'!$D12 -> 越式粉麵飯 | I9: ='[14]MENU MASTER'!$E12 -> 0 | J9: ='[14]MENU MASTER'!$F12 -> 0 | L9: =_xlfn.IFS(FoodItem!$J$4=1,F9,FoodItem!$J$4=2,G9,FoodItem!$J$4=3,H9,FoodItem!$J$4=4,I9,FoodItem!$J$4=5,J9) -> 
B10: ='[14]FOOD TYPE MASTER'!$B12 -> 雜肉 | D10: ='[14]MENU MASTER'!$A12 -> 0 | F10: ='[14]MENU MASTER'!$B13 -> 0 | G10: ='[14]MENU MASTER'!$C13 -> 0 | H10: ='[14]MENU MASTER'!$D13 -> 越式湯 | I10: ='[14]MENU MASTER'!$E13 -> 0 | J10: ='[14]MENU MASTER'!$F13 -> 0 | L10: =_xlfn.IFS(FoodItem!$J$4=1,F10,FoodItem!$J$4=2,G10,FoodItem!$J$4=3,H10,FoodItem!$J$4=4,I10,FoodItem!$J$4=5,J10) -> 
B11: ='[14]FOOD TYPE MASTER'!$B13 -> 海鮮 | D11: ='[14]MENU MASTER'!$A13 -> 0 | F11: ='[14]MENU MASTER'!$B14 -> 0 | G11: ='[14]MENU MASTER'!$C14 -> 0 | H11: ='[14]MENU MASTER'!$D14 -> 0 | I11: ='[14]MENU MASTER'!$E14 -> 0 | J11: ='[14]MENU MASTER'!$F14 -> 0 | L11: =_xlfn.IFS(FoodItem!$J$4=1,F11,FoodItem!$J$4=2,G11,FoodItem!$J$4=3,H11,FoodItem!$J$4=4,I11,FoodItem!$J$4=5,J11) -> 
B12: ='[14]FOOD TYPE MASTER'!$B14 -> 菜 | D12: ='[14]MENU MASTER'!$A14 -> 0 | F12: ='[14]MENU MASTER'!$B15 -> 0 | G12: ='[14]MENU MASTER'!$C15 -> 0 | H12: ='[14]MENU MASTER'!$D15 -> 0 | I12: ='[14]MENU MASTER'!$E15 -> 0 | J12: ='[14]MENU MASTER'!$F15 -> 0 | L12: =_xlfn.IFS(FoodItem!$J$4=1,F12,FoodItem!$J$4=2,G12,FoodItem!$J$4=3,H12,FoodItem!$J$4=4,I12,FoodItem!$J$4=5,J12) -> 
B13: ='[14]FOOD TYPE MASTER'!$B15 -> 飲品 | D13: ='[14]MENU MASTER'!$A15 -> 0 | F13: ='[14]MENU MASTER'!$B16 -> 0 | G13: ='[14]MENU MASTER'!$C16 -> 0 | H13: ='[14]MENU MASTER'!$D16 -> 0 | I13: ='[14]MENU MASTER'!$E16 -> 0 | J13: ='[14]MENU MASTER'!$F16 -> 0 | L13: =_xlfn.IFS(FoodItem!$J$4=1,F13,FoodItem!$J$4=2,G13,FoodItem!$J$4=3,H13,FoodItem!$J$4=4,I13,FoodItem!$J$4=5,J13) -> 
B14: ='[14]FOOD TYPE MASTER'!$B16 -> 酒類 | D14: ='[14]MENU MASTER'!$A16 -> 0 | F14: ='[14]MENU MASTER'!$B17 -> 0 | G14: ='[14]MENU MASTER'!$C17 -> 0 | H14: ='[14]MENU MASTER'!$D17 -> 0 | I14: ='[14]MENU MASTER'!$E17 -> 0 | J14: ='[14]MENU MASTER'!$F17 -> 0 | L14: =_xlfn.IFS(FoodItem!$J$4=1,F14,FoodItem!$J$4=2,G14,FoodItem!$J$4=3,H14,FoodItem!$J$4=4,I14,FoodItem!$J$4=5,J14) -> 
B15: ='[14]FOOD TYPE MASTER'!$B17 -> 包類 | D15: ='[14]MENU MASTER'!$A17 -> 0 | F15: ='[14]MENU MASTER'!$B18 -> 0 | G15: ='[14]MENU MASTER'!$C18 -> 0 | H15: ='[14]MENU MASTER'!$D18 -> 0 | I15: ='[14]MENU MASTER'!$E18 -> 0 | J15: ='[14]MENU MASTER'!$F18 -> 0 | L15: =_xlfn.IFS(FoodItem!$J$4=1,F15,FoodItem!$J$4=2,G15,FoodItem!$J$4=3,H15,FoodItem!$J$4=4,I15,FoodItem!$J$4=5,J15) -> 
B16: ='[14]FOOD TYPE MASTER'!$B18 -> 粉麵飯 | D16: ='[14]MENU MASTER'!$A18 -> 0 | F16: ='[14]MENU MASTER'!$B19 -> 0 | G16: ='[14]MENU MASTER'!$C19 -> 0 | H16: ='[14]MENU MASTER'!$D19 -> 0 | I16: ='[14]MENU MASTER'!$E19 -> 0 | J16: ='[14]MENU MASTER'!$F19 -> 0 | L16: =_xlfn.IFS(FoodItem!$J$4=1,F16,FoodItem!$J$4=2,G16,FoodItem!$J$4=3,H16,FoodItem!$J$4=4,I16,FoodItem!$J$4=5,J16) -> 
B17: ='[14]FOOD TYPE MASTER'!$B19 -> 湯 | D17: ='[14]MENU MASTER'!$A19 -> 0 | F17: ='[14]MENU MASTER'!$B20 -> 0 | G17: ='[14]MENU MASTER'!$C20 -> 0 | H17: ='[14]MENU MASTER'!$D20 -> 0 | I17: ='[14]MENU MASTER'!$E20 -> 0 | J17: ='[14]MENU MASTER'!$F20 -> 0 | L17: =_xlfn.IFS(FoodItem!$J$4=1,F17,FoodItem!$J$4=2,G17,FoodItem!$J$4=3,H17,FoodItem!$J$4=4,I17,FoodItem!$J$4=5,J17) -> 
B18: ='[14]FOOD TYPE MASTER'!$B20 -> 無分類
B19: ='[14]FOOD TYPE MASTER'!$B21 -> 0
B20: ='[14]FOOD TYPE MASTER'!$B22 -> 0
